Workbook

Sheet Main
B10: 2019-09-09
B12: Sheet No. | C12: Template Name | D12: Summary
B13: 1 | C13: Future Intra | D13: For Intraday trading in F&O segment
B14: 2 | C14: Cash Intra | D14: For Intraday trading in cash market segment
B15: 3 | C15: Mid-cap Intra | D15: For Intraday trading in Mid-cap stocks
B16: 4 | C16: Bulk Deals | D16: Reveals Bulk Deals carried on NSE & BSE
B17: 5 | C17: Call Tracker
K27: `

Sheet Future Intra
M5: Back to Main Page
A6: FOR INTRA DAY TRADING | L6: =Main!B10 -> 2019-09-09
A9: Sr.no | B9: Sector | C9: Scrip | D9: CLOSE RATE | E9: Pivot Point | F9: Supports | I9: Resistances
B10: Sector | D10: Point | E10: Point | F10: S1 | G10: S2 | H10: S3 | I10: R1 | J10: R2 | K10: R3 | L10: HIGH | M10: LOW | N10: OI | O10: % Change in OI
A11: 1 | B11: Index | C11: BANKNIFTY | D11: 27306.00 | E11: 27243.02 | F11: 27088.03 | G11: 26870.07 | H11: 26715.08 | I11: 27460.98 | J11: 27615.97 | K11: 27833.93 | L11: 27398 | M11: 27025.05 | N11: 1662540 | O11: -3.08%
A12: 2 | B12: Index | C12: NIFTY | D12: 10973.65 | E12: 10952.55 | F12: 10921.10 | G12: 10868.55 | H12: 10837.10 | I12: 11005.10 | J12: 11036.55 | K12: 11089.10 | L12: 10984 | M12: 10900 | N12: 18134250 | O12: -1.88%
A13: 3 | B13: Index | C13: NIFTYIT | D13: 16092.00 | E13: 16114.00 | F13: 16028.00 | G13: 15964.00 | H13: 15878.00 | I13: 16178.00 | J13: 16264.00 | K13: 16328.00 | L13: 16200 | M13: 16050 | N13: 9550 | O13: 3.24%
A14: 4 | B14: Cement | C14: ACC | D14: 1469.85 | E14: 1470.35 | F14: 1458.70 | G14: 1447.55 | H14: 1435.90 | I14: 1481.50 | J14: 1493.15 | K14: 1504.30 | L14: 1482 | M14: 1459.2 | N14: 2283600 | O14: 1.44%
A15: 5 | B15: Others | C15: ADANIENT | D15: 138.15 | E15: 137.28 | F15: 135.97 | G15: 133.78 | H15: 132.47 | I15: 139.47 | J15: 140.78 | K15: 142.97 | L15: 138.6 | M15: 135.1 | N15: 26664000 | O15: -1.97%
A16: 6 | B16: Others | C16: ADANIPORTS | D16: 366.40 | E16: 366.70 | F16: 363.90 | G16: 361.40 | H16: 358.60 | I16: 369.20 | J16: 372.00 | K16: 374.50 | L16: 369.5 | M16: 364.2 | N16: 16270000 | O16: -1.71%
A17: 7 | B17: Power | C17: ADANIPOWER | D17: 58.50 | E17: 58.37 | F17: 57.53 | G17: 56.57 | H17: 55.73 | I17: 59.33 | J17: 60.17 | K17: 61.13 | L17: 59.2 | M17: 57.4 | N17: 97180000 | O17: 0.00%
A18: 8 | B18: Automobile | C18: AMARAJABAT | D18: 625.35 | E18: 622.65 | F18: 618.25 | G18: 611.15 | H18: 606.75 | I18: 629.75 | J18: 634.15 | K18: 641.25 | L18: 627.05 | M18: 615.55 | N18: 1447600 | O18: -1.38%
A19: 9 | B19: Cement | C19: AMBUJACEM | D19: 195.20 | E19: 195.45 | F19: 193.70 | G19: 192.20 | H19: 190.45 | I19: 196.95 | J19: 198.70 | K19: 200.20 | L19: 197.2 | M19: 193.95 | N19: 22475000 | O19: 0.56%
A20: 10 | B20: Others | C20: APOLLOHOSP | D20: 1487.00 | E20: 1494.67 | F20: 1467.33 | G20: 1447.67 | H20: 1420.33 | I20: 1514.33 | J20: 1541.67 | K20: 1561.33 | L20: 1522 | M20: 1475 | N20: 1364500 | O20: 12.03%
A21: 11 | B21: Automobile | C21: APOLLOTYRE | D21: 173.95 | E21: 173.17 | F21: 171.83 | G21: 169.72 | H21: 168.38 | I21: 175.28 | J21: 176.62 | K21: 178.73 | L21: 174.5 | M21: 171.05 | N21: 10431000 | O21: -1.53%
A22: 12 | B22: Textile | C22: ARVIND | D22: 50.70 | E22: 50.00 | F22: 49.00 | G22: 47.30 | H22: 46.30 | I22: 51.70 | J22: 52.70 | K22: 54.40 | L22: 51 | M22: 48.3 | N22: 5442000 | O22: 1.80%
A23: 13 | B23: Automobile | C23: ASHOKLEY | D23: 64.25 | E23: 63.82 | F23: 62.88 | G23: 61.52 | H23: 60.58 | I23: 65.18 | J23: 66.12 | K23: 67.48 | L23: 64.75 | M23: 62.45 | N23: 86010000 | O23: 5.76%
A24: 14 | B24: FMCG | C24: ASIANPAINT | D24: 1536.50 | E24: 1534.87 | F24: 1526.38 | G24: 1516.27 | H24: 1507.78 | I24: 1544.98 | J24: 1553.47 | K24: 1563.58 | L24: 1543.35 | M24: 1524.75 | N24: 9000600 | O24: -1.45%
A25: 15 | B25: Pharma | C25: AUROPHARMA | D25: 620.35 | E25: 618.97 | F25: 614.43 | G25: 608.52 | H25: 603.98 | I25: 624.88 | J25: 629.42 | K25: 635.33 | L25: 623.5 | M25: 613.05 | N25: 16271000 | O25: 0.02%
A26: 16 | B26: Banking | C26: AXISBANK | D26: 671.95 | E26: 666.88 | F26: 659.97 | G26: 647.98 | H26: 641.07 | I26: 678.87 | J26: 685.78 | K26: 697.77 | L26: 673.8 | M26: 654.9 | N26: 48487200 | O26: -2.09%
A27: 17 | B27: Automobile | C27: BAJAJ-AUTO | D27: 2841.85 | E27: 2821.27 | F27: 2780.48 | G27: 2719.12 | H27: 2678.33 | I27: 2882.63 | J27: 2923.42 | K27: 2984.78 | L27: 2862.05 | M27: 2759.9 | N27: 2290000 | O27: 3.07%
A28: 18 | B28: Finance | C28: BAJAJFINSV | D28: 7204.60 | E28: 7156.25 | F28: 7094.75 | G28: 6984.90 | H28: 6923.40 | I28: 7266.10 | J28: 7327.60 | K28: 7437.45 | L28: 7217.75 | M28: 7046.4 | N28: 1048250 | O28: 2.91%
A29: 19 | B29: Finance | C29: BAJFINANCE | D29: 3376.80 | E29: 3358.32 | F29: 3320.63 | G29: 3264.47 | H29: 3226.78 | I29: 3414.48 | J29: 3452.17 | K29: 3508.33 | L29: 3396 | M29: 3302.15 | N29: 7080750 | O29: 0.92%
A30: 20 | B30: Automobile | C30: BALKRISIND | D30: 727.35 | E30: 724.28 | F30: 719.57 | G30: 711.78 | H30: 707.07 | I30: 732.07 | J30: 736.78 | K30: 744.57 | L30: 729 | M30: 716.5 | N30: 1891200 | O30: -3.47%
A31: 21 | B31: Banking | C31: BANKBARODA | D31: 94.60 | E31: 94.48 | F31: 93.72 | G31: 92.83 | H31: 92.07 | I31: 95.37 | J31: 96.13 | K31: 97.02 | L31: 95.25 | M31: 93.6 | N31: 67630500 | O31: -1.47%
A32: 22 | B32: Banking | C32: BANKINDIA | D32: 63.70 | E32: 63.83 | F32: 62.52 | G32: 61.33 | H32: 60.02 | I32: 65.02 | J32: 66.33 | K32: 67.52 | L32: 65.15 | M32: 62.65 | N32: 27234000 | O32: 2.65%
A33: 23 | B33: FMCG | C33: BATAINDIA | D33: 1536.05 | E33: 1528.37 | F33: 1517.88 | G33: 1499.72 | H33: 1489.23 | I33: 1546.53 | J33: 1557.02 | K33: 1575.18 | L33: 1538.85 | M33: 1510.2 | N33: 2593800 | O33: 1.64%
A34: 24 | B34: Capital_Goods | C34: BEL | D34: 109.25 | E34: 108.68 | F34: 107.77 | G34: 106.28 | H34: 105.37 | I34: 110.17 | J34: 111.08 | K34: 112.57 | L34: 109.6 | M34: 107.2 | N34: 22200000 | O34: -4.27%
A35: 25 | B35: FMCG | C35: BERGEPAINT | D35: 364.55 | E35: 363.05 | F35: 361.10 | G35: 357.65 | H35: 355.70 | I35: 366.50 | J35: 368.45 | K35: 371.90 | L35: 365 | M35: 359.6 | N35: 3744400 | O35: -2.13%
A36: 26 | B36: Automobile | C36: BHARATFORG | D36: 396.25 | E36: 395.68 | F36: 391.92 | G36: 387.58 | H36: 383.82 | I36: 400.02 | J36: 403.78 | K36: 408.12 | L36: 399.45 | M36: 391.35 | N36: 7519200 | O36: -0.93%
A37: 27 | B37: Telecom | C37: BHARTIARTL | D37: 351.05 | E37: 351.13 | F37: 346.42 | G37: 341.78 | H37: 337.07 | I37: 355.77 | J37: 360.48 | K37: 365.12 | L37: 355.85 | M37: 346.5 | N37: 36840453 | O37: 3.81%
A38: 28 | B38: Capital_Goods | C38: BHEL | D38: 50.90 | E38: 50.60 | F38: 50.10 | G38: 49.30 | H38: 48.80 | I38: 51.40 | J38: 51.90 | K38: 52.70 | L38: 51.1 | M38: 49.8 | N38: 49185000 | O38: 0.95%
A39: 29 | B39: Pharma | C39: BIOCON | D39: 236.80 | E39: 234.68 | F39: 232.12 | G39: 227.43 | H39: 224.87 | I39: 239.37 | J39: 241.93 | K39: 246.62 | L39: 237.25 | M39: 230 | N39: 12461400 | O39: -1.14%
A40: 30 | B40: Automobile | C40: BOSCHLTD | D40: 13874.05 | E40: 13813.07 | F40: 13696.13 | G40: 13518.22 | H40: 13401.28 | I40: 13990.98 | J40: 14107.92 | K40: 14285.83 | L40: 13930 | M40: 13635.15 | N40: 157890 | O40: -0.27%
A41: 31 | B41: Oil_Gas | C41: BPCL | D41: 380.55 | E41: 379.22 | F41: 375.63 | G41: 370.72 | H41: 367.13 | I41: 384.13 | J41: 387.72 | K41: 392.63 | L41: 382.8 | M41: 374.3 | N41: 14072400 | O41: -0.37%
A42: 32 | B42: FMCG | C42: BRITANNIA | D42: 2664.45 | E42: 2673.12 | F42: 2633.83 | G42: 2603.22 | H42: 2563.93 | I42: 2703.73 | J42: 2743.02 | K42: 2773.63 | L42: 2712.4 | M42: 2642.5 | N42: 2371200 | O42: 0.77%
A43: 33 | B43: Technology | C43: BSOFT | D43: 70.65 | E43: 69.47 | F43: 67.38 | G43: 64.12 | H43: 62.03 | I43: 72.73 | J43: 74.82 | K43: 78.08 | L43: 71.55 | M43: 66.2 | N43: 3371100 | O43: 9.44%
A44: 34 | B44: Pharma | C44: CADILAHC | D44: 239.10 | E44: 237.98 | F44: 234.77 | G44: 230.43 | H44: 227.22 | I44: 242.32 | J44: 245.53 | K44: 249.87 | L44: 241.2 | M44: 233.65 | N44: 10443200 | O44: -1.64%
A45: 35 | B45: Banking | C45: CANBK | D45: 192.65 | E45: 193.57 | F45: 190.68 | G45: 188.72 | H45: 185.83 | I45: 195.53 | J45: 198.42 | K45: 200.38 | L45: 196.45 | M45: 191.6 | N45: 14016000 | O45: 0.68%
A46: 36 | B46: Oil_Gas | C46: CASTROLIND | D46: 121.00 | E46: 121.18 | F46: 120.42 | G46: 119.83 | H46: 119.07 | I46: 121.77 | J46: 122.53 | K46: 123.12 | L46: 121.95 | M46: 120.6 | N46: 6364800 | O46: 2.02%
A47: 37 | B47: Textile | C47: CENTURYTEX | D47: 853.70 | E47: 852.52 | F47: 847.18 | G47: 840.67 | H47: 835.33 | I47: 859.03 | J47: 864.37 | K47: 870.88 | L47: 857.85 | M47: 846 | N47: 3043200 | O47: -1.80%
A48: 38 | B48: Power | C48: CESC | D48: 785.60 | E48: 780.25 | F48: 771.55 | G48: 757.50 | H48: 748.80 | I48: 794.30 | J48: 803.00 | K48: 817.05 | L48: 788.95 | M48: 766.2 | N48: 514400 | O48: -11.55%
A49: 39 | B49: Finance | C49: CHOLAFIN | D49: 268.95 | E49: 268.60 | F49: 266.60 | G49: 264.25 | H49: 262.25 | I49: 270.95 | J49: 272.95 | K49: 275.30 | L49: 270.6 | M49: 266.25 | N49: 3292500 | O49: 0.30%
A50: 40 | B50: Pharma | C50: CIPLA | D50: 477.15 | E50: 478.45 | F50: 473.65 | G50: 470.15 | H50: 465.35 | I50: 481.95 | J50: 486.75 | K50: 490.25 | L50: 483.25 | M50: 474.95 | N50: 10737000 | O50: 1.01%
A51: 41 | B51: Others | C51: COALINDIA | D51: 198.75 | E51: 197.03 | F51: 194.52 | G51: 190.28 | H51: 187.77 | I51: 201.27 | J51: 203.78 | K51: 208.02 | L51: 199.55 | M51: 192.8 | N51: 41087200 | O51: -3.39%
A52: 42 | B52: FMCG | C52: COLPAL | D52: 1248.85 | E52: 1246.07 | F52: 1241.13 | G52: 1233.42 | H52: 1228.48 | I52: 1253.78 | J52: 1258.72 | K52: 1266.43 | L52: 1251 | M52: 1238.35 | N52: 1521100 | O52: 1.88%
A53: 43 | B53: Others | C53: CONCOR | D53: 506.85 | E53: 510.40 | F53: 500.80 | G53: 494.75 | H53: 485.15 | I53: 516.45 | J53: 526.05 | K53: 532.10 | L53: 520 | M53: 504.35 | N53: 3082236 | O53: 3.30%
A54: 44 | B54: Capital_Goods | C54: CUMMINSIND | D54: 574.75 | E54: 572.93 | F54: 566.82 | G54: 558.88 | H54: 552.77 | I54: 580.87 | J54: 586.98 | K54: 594.92 | L54: 579.05 | M54: 565 | N54: 1717800 | O54: -0.24%
A55: 45 | B55: FMCG | C55: DABUR | D55: 441.95 | E55: 441.32 | F55: 438.83 | G55: 435.72 | H55: 433.23 | I55: 444.43 | J55: 446.92 | K55: 450.03 | L55: 443.8 | M55: 438.2 | N55: 11125000 | O55: -0.55%
A56: 46 | B56: Finance | C56: DHFL | D56: 45.35 | E56: 45.22 | F56: 43.93 | G56: 42.52 | H56: 41.23 | I56: 46.63 | J56: 47.92 | K56: 49.33 | L56: 46.5 | M56: 43.8 | N56: 12624000 | O56: 0.99%
A57: 47 | B57: Media | C57: DISHTV | D57: 22.90 | E57: 23.23 | F57: 21.97 | G57: 21.03 | H57: 19.77 | I57: 24.17 | J57: 25.43 | K57: 26.37 | L57: 24.5 | M57: 22.3 | N57: 105994000 | O57: 2.87%
A58: 48 | B58: Pharma | C58: DIVISLAB | D58: 1645.85 | E58: 1645.17 | F58: 1629.38 | G58: 1612.92 | H58: 1597.13 | I58: 1661.63 | J58: 1677.42 | K58: 1693.88 | L58: 1660.95 | M58: 1628.7 | N58: 2542000 | O58: 1.10%
A59: 49 | B59: Realty | C59: DLF | D59: 155.10 | E59: 154.33 | F59: 149.57 | G59: 144.03 | H59: 139.27 | I59: 159.87 | J59: 164.63 | K59: 170.17 | L59: 159.1 | M59: 148.8 | N59: 38124800 | O59: 13.87%
A60: 50 | B60: Pharma | C60: DRREDDY | D60: 2741.90 | E60: 2722.93 | F60: 2698.32 | G60: 2654.73 | H60: 2630.12 | I60: 2766.52 | J60: 2791.13 | K60: 2834.72 | L60: 2747.55 | M60: 2679.35 | N60: 3185000 | O60: -0.83%
A61: 51 | B61: Automobile | C61: EICHERMOT | D61: 16420.55 | E61: 16250.73 | F61: 15932.67 | G61: 15444.78 | H61: 15126.72 | I61: 16738.62 | J61: 17056.68 | K61: 17544.57 | L61: 16568.8 | M61: 15762.85 | N61: 409100 | O61: -0.57%
A62: 52 | B62: Infrastructure | C62: ENGINERSIN | D62: 108.15 | E62: 107.97 | F62: 106.43 | G62: 104.72 | H62: 103.18 | I62: 109.68 | J62: 111.22 | K62: 112.93 | L62: 109.5 | M62: 106.25 | N62: 6913800 | O62: 4.88%
A63: 53 | B63: Finance | C63: EQUITAS | D63: 116.25 | E63: 115.90 | F63: 114.20 | G63: 112.15 | H63: 110.45 | I63: 117.95 | J63: 119.65 | K63: 121.70 | L63: 117.6 | M63: 113.85 | N63: 14132000 | O63: 1.46%
A64: 54 | B64: Automobile | C64: ESCORTS | D64: 487.90 | E64: 479.93 | F64: 469.97 | G64: 452.03 | H64: 442.07 | I64: 497.87 | J64: 507.83 | K64: 525.77 | L64: 489.9 | M64: 462 | N64: 4577100 | O64: -0.02%
A65: 55 | B65: Automobile | C65: EXIDEIND | D65: 180.70 | E65: 180.20 | F65: 178.40 | G65: 176.10 | H65: 174.30 | I65: 182.50 | J65: 184.30 | K65: 186.60 | L65: 182 | M65: 177.9 | N65: 8284800 | O65: -0.86%
A66: 56 | B66: Banking | C66: FEDERALBNK | D66: 83.40 | E66: 82.75 | F66: 81.90 | G66: 80.40 | H66: 79.55 | I66: 84.25 | J66: 85.10 | K66: 86.60 | L66: 83.6 | M66: 81.25 | N66: 44737000 | O66: -0.20%
A67: 57 | B67: Oil_Gas | C67: GAIL | D67: 131.65 | E67: 131.15 | F67: 130.10 | G67: 128.55 | H67: 127.50 | I67: 132.70 | J67: 133.75 | K67: 135.30 | L67: 132.2 | M67: 129.6 | N67: 38836854 | O67: -0.93%
A68: 58 | B68: Pharma | C68: GLENMARK | D68: 389.95 | E68: 388.28 | F68: 383.97 | G68: 377.98 | H68: 373.67 | I68: 394.27 | J68: 398.58 | K68: 404.57 | L68: 392.6 | M68: 382.3 | N68: 4234000 | O68: -0.31%
A69: 59 | B69: Infrastructure | C69: GMRINFRA | D69: 15.60 | E69: 15.40 | F69: 15.15 | G69: 14.70 | H69: 14.45 | I69: 15.85 | J69: 16.10 | K69: 16.55 | L69: 15.65 | M69: 14.95 | N69: 148005000 | O69: 0.27%
A70: 60 | B70: FMCG | C70: GODREJCP | D70: 600.35 | E70: 601.47 | F70: 589.48 | G70: 578.62 | H70: 566.63 | I70: 612.33 | J70: 624.32 | K70: 635.18 | L70: 613.45 | M70: 590.6 | N70: 6664800 | O70: 0.24%
A71: 61 | B71: Cement | C71: GRASIM | D71: 706.70 | E71: 707.33 | F71: 700.37 | G71: 694.03 | H71: 687.07 | I71: 713.67 | J71: 720.63 | K71: 726.97 | L71: 714.3 | M71: 701 | N71: 16566000 | O71: 0.22%
A72: 62 | B72: Others | C72: HAVELLS | D72: 661.80 | E72: 661.00 | F72: 655.80 | G72: 649.80 | H72: 644.60 | I72: 667.00 | J72: 672.20 | K72: 678.20 | L72: 666.2 | M72: 655 | N72: 6673000 | O72: 0.63%
A73: 63 | B73: Technology | C73: HCLTECH | D73: 1105.70 | E73: 1111.43 | F73: 1097.32 | G73: 1088.93 | H73: 1074.82 | I73: 1119.82 | J73: 1133.93 | K73: 1142.32 | L73: 1125.55 | M73: 1103.05 | N73: 10188500 | O73: 2.74%
A74: 64 | B74: Finance | C74: HDFC | D74: 2052.05 | E74: 2050.27 | F74: 2035.78 | G74: 2019.52 | H74: 2005.03 | I74: 2066.53 | J74: 2081.02 | K74: 2097.28 | L74: 2064.75 | M74: 2034 | N74: 33080500 | O74: 1.50%
A75: 65 | B75: Banking | C75: HDFCBANK | D75: 2246.15 | E75: 2243.73 | F75: 2227.52 | G75: 2208.88 | H75: 2192.67 | I75: 2262.37 | J75: 2278.58 | K75: 2297.22 | L75: 2259.95 | M75: 2225.1 | N75: 17476750 | O75: 0.52%
A76: 66 | B76: Automobile | C76: HEROMOTOCO | D76: 2673.30 | E76: 2650.70 | F76: 2618.85 | G76: 2564.40 | H76: 2532.55 | I76: 2705.15 | J76: 2737.00 | K76: 2791.45 | L76: 2682.55 | M76: 2596.25 | N76: 2685000 | O76: 3.50%
A77: 67 | B77: Technology | C77: HEXAWARE | D77: 388.80 | E77: 390.88 | F77: 384.37 | G77: 379.93 | H77: 373.42 | I77: 395.32 | J77: 401.83 | K77: 406.27 | L77: 397.4 | M77: 386.45 | N77: 2289000 | O77: 3.95%
A78: 68 | B78: Metals | C78: HINDALCO | D78: 188.70 | E78: 187.08 | F78: 184.37 | G78: 180.03 | H78: 177.32 | I78: 191.42 | J78: 194.13 | K78: 198.47 | L78: 189.8 | M78: 182.75 | N78: 31125500 | O78: 0.49%
A79: 69 | B79: Oil_Gas | C79: HINDPETRO | D79: 263.20 | E79: 263.05 | F79: 259.40 | G79: 255.60 | H79: 251.95 | I79: 266.85 | J79: 270.50 | K79: 274.30 | L79: 266.7 | M79: 259.25 | N79: 18509400 | O79: 3.89%
A80: 70 | B80: FMCG | C80: HINDUNILVR | D80: 1826.35 | E80: 1832.38 | F80: 1815.07 | G80: 1803.78 | H80: 1786.47 | I80: 1843.67 | J80: 1860.98 | K80: 1872.27 | L80: 1849.7 | M80: 1821.1 | N80: 9588600 | O80: -0.27%
A81: 71 | B81: Metals | C81: HINDZINC | D81: 218.45 | E81: 216.97 | F81: 214.83 | G81: 211.22 | H81: 209.08 | I81: 220.58 | J81: 222.72 | K81: 226.33 | L81: 219.1 | M81: 213.35 | N81: 5116800 | O81: 1.98%
A82: 72 | B82: Finance | C82: IBULHSGFIN | D82: 390.35 | E82: 392.00 | F82: 379.00 | G82: 367.65 | H82: 354.65 | I82: 403.35 | J82: 416.35 | K82: 427.70 | L82: 405 | M82: 380.65 | N82: 23188000 | O82: 10.15%
A83: 73 | B83: Banking | C83: ICICIBANK | D83: 393.40 | E83: 393.40 | F83: 390.45 | G83: 387.50 | H83: 384.55 | I83: 396.35 | J83: 399.30 | K83: 402.25 | L83: 396.35 | M83: 390.45 | N83: 84255875 | O83: 4.45%
A84: 74 | B84: Finance | C84: ICICIPRULI | D84: 437.95 | E84: 435.02 | F84: 429.58 | G84: 421.22 | H84: 415.78 | I84: 443.38 | J84: 448.82 | K84: 457.18 | L84: 440.45 | M84: 426.65 | N84: 6190500 | O84: 3.90%
A85: 75 | B85: Banking | C85: IDBI | D85: 27.70 | E85: 27.40 | F85: 26.95 | G85: 26.20 | H85: 25.75 | I85: 28.15 | J85: 28.60 | K85: 29.35 | L85: 27.85 | M85: 26.65 | N85: 22152000 | O85: 1.71%
A86: 76 | B86: Telecom | C86: IDEA | D86: 5.20 | E86: 5.23 | F86: 5.07 | G86: 4.93 | H86: 4.77 | I86: 5.37 | J86: 5.53 | K86: 5.67 | L86: 5.4 | M86: 5.1 | N86: 469196000 | O86: 0.99%
A87: 77 | B87: Banking | C87: IDFCFIRSTB | D87: 42.55 | E87: 42.43 | F87: 42.12 | G87: 41.68 | H87: 41.37 | I87: 42.87 | J87: 43.18 | K87: 43.62 | L87: 42.75 | M87: 42 | N87: 172788000 | O87: 2.11%
A88: 78 | B88: Oil_Gas | C88: IGL | D88: 327.50 | E88: 326.82 | F88: 324.18 | G88: 320.87 | H88: 318.23 | I88: 330.13 | J88: 332.77 | K88: 336.08 | L88: 329.45 | M88: 323.5 | N88: 4287250 | O88: 0.39%
A89: 79 | B89: Others | C89: INDIGO | D89: 1656.50 | E89: 1652.77 | F89: 1643.73 | G89: 1630.97 | H89: 1621.93 | I89: 1665.53 | J89: 1674.57 | K89: 1687.33 | L89: 1661.8 | M89: 1640 | N89: 2668200 | O89: 1.81%
A90: 80 | B90: Banking | C90: INDUSINDBK | D90: 1337.95 | E90: 1334.08 | F90: 1321.07 | G90: 1304.18 | H90: 1291.17 | I90: 1350.97 | J90: 1363.98 | K90: 1380.87 | L90: 1347.1 | M90: 1317.2 | N90: 13456800 | O90: 0.98%
A91: 81 | B91: Telecom | C91: INFRATEL | D91: 250.95 | E91: 249.97 | F91: 247.48 | G91: 244.02 | H91: 241.53 | I91: 253.43 | J91: 255.92 | K91: 259.38 | L91: 252.45 | M91: 246.5 | N91: 7546000 | O91: -0.03%
A92: 82 | B92: Technology | C92: INFY | D92: 844.20 | E92: 844.58 | F92: 838.77 | G92: 833.33 | H92: 827.52 | I92: 850.02 | J92: 855.83 | K92: 861.27 | L92: 850.4 | M92: 839.15 | N92: 58417200 | O92: 1.51%
A93: 83 | B93: Oil_Gas | C93: IOC | D93: 126.90 | E93: 126.00 | F93: 124.50 | G93: 122.10 | H93: 120.60 | I93: 128.40 | J93: 129.90 | K93: 132.30 | L93: 127.5 | M93: 123.6 | N93: 47698000 | O93: -1.73%
A94: 84 | B94: FMCG | C94: ITC | D94: 244.25 | E94: 244.88 | F94: 243.02 | G94: 241.78 | H94: 239.92 | I94: 246.12 | J94: 247.98 | K94: 249.22 | L94: 246.75 | M94: 243.65 | N94: 102230400 | O94: -1.33%
A95: 85 | B95: Metals | C95: JINDALSTEL | D95: 96.25 | E95: 95.45 | F95: 93.50 | G95: 90.75 | H95: 88.80 | I95: 98.20 | J95: 100.15 | K95: 102.90 | L95: 97.4 | M95: 92.7 | N95: 37635200 | O95: 7.22%
A96: 86 | B96: Metals | C96: JSWSTEEL | D96: 218.90 | E96: 217.25 | F96: 214.15 | G96: 209.40 | H96: 206.30 | I96: 222.00 | J96: 225.10 | K96: 229.85 | L96: 220.35 | M96: 212.5 | N96: 57964000 | O96: 1.40%
A97: 87 | B97: Others | C97: JUBLFOOD | D97: 1190.65 | E97: 1189.62 | F97: 1177.23 | G97: 1163.82 | H97: 1151.43 | I97: 1203.03 | J97: 1215.42 | K97: 1228.83 | L97: 1202 | M97: 1176.2 | N97: 2779000 | O97: 3.73%
A98: 88 | B98: Others | C98: JUSTDIAL | D98: 692.70 | E98: 690.97 | F98: 686.98 | G98: 681.27 | H98: 677.28 | I98: 696.68 | J98: 700.67 | K98: 706.38 | L98: 694.95 | M98: 685.25 | N98: 2058000 | O98: -3.16%
A99: 89 | B99: Others | C99: KAJARIACER | D99: 490.35 | E99: 486.83 | F99: 482.22 | G99: 474.08 | H99: 469.47 | I99: 494.97 | J99: 499.58 | K99: 507.72 | L99: 491.45 | M99: 478.7 | N99: 910000 | O99: -0.57%
A100: 90 | B100: Banking | C100: KOTAKBANK | D100: 1445.35 | E100: 1437.00 | F100: 1425.30 | G100: 1405.25 | H100: 1393.55 | I100: 1457.05 | J100: 1468.75 | K100: 1488.80 | L100: 1448.7 | M100: 1416.95 | N100: 9857200 | O100: 3.93%
A101: 91 | B101: Finance | C101: L&TFH | D101: 92.20 | E101: 92.43 | F101: 90.87 | G101: 89.53 | H101: 87.97 | I101: 93.77 | J101: 95.33 | K101: 96.67 | L101: 94 | M101: 91.1 | N101: 34204500 | O101: 2.94%
A102: 92 | B102: Finance | C102: LICHSGFIN | D102: 400.75 | E102: 400.33 | F102: 396.77 | G102: 392.78 | H102: 389.22 | I102: 404.32 | J102: 407.88 | K102: 411.87 | L102: 403.9 | M102: 396.35 | N102: 11757900 | O102: 1.86%
A103: 93 | B103: Capital_Goods | C103: LT | D103: 1330.45 | E103: 1330.72 | F103: 1323.33 | G103: 1316.22 | H103: 1308.83 | I103: 1337.83 | J103: 1345.22 | K103: 1352.33 | L103: 1338.1 | M103: 1323.6 | N103: 14051625 | O103: 1.22%
A104: 94 | B104: Pharma | C104: LUPIN | D104: 774.20 | E104: 769.33 | F104: 762.97 | G104: 751.73 | H104: 745.37 | I104: 780.57 | J104: 786.93 | K104: 798.17 | L104: 775.7 | M104: 758.1 | N104: 7070700 | O104: 1.16%
A105: 95 | B105: Automobile | C105: M&M | D105: 531.10 | E105: 526.85 | F105: 521.20 | G105: 511.30 | H105: 505.65 | I105: 536.75 | J105: 542.40 | K105: 552.30 | L105: 532.5 | M105: 516.95 | N105: 22512000 | O105: -0.73%
A106: 96 | B106: Finance | C106: M&MFIN | D106: 325.35 | E106: 324.05 | F106: 317.75 | G106: 310.15 | H106: 303.85 | I106: 331.65 | J106: 337.95 | K106: 345.55 | L106: 330.35 | M106: 316.45 | N106: 14138750 | O106: 1.43%
A107: 97 | B107: Finance | C107: MANAPPURAM | D107: 118.75 | E107: 118.03 | F107: 115.57 | G107: 112.38 | H107: 109.92 | I107: 121.22 | J107: 123.68 | K107: 126.87 | L107: 120.5 | M107: 114.85 | N107: 14802000 | O107: 3.74%
A108: 98 | B108: FMCG | C108: MARICO | D108: 384.45 | E108: 384.88 | F108: 381.67 | G108: 378.88 | H108: 375.67 | I108: 387.67 | J108: 390.88 | K108: 393.67 | L108: 388.1 | M108: 382.1 | N108: 12196600 | O108: 1.85%
A109: 99 | B109: Automobile | C109: MARUTI | D109: 6206.20 | E109: 6135.85 | F109: 6040.70 | G109: 5875.20 | H109: 5780.05 | I109: 6301.35 | J109: 6396.50 | K109: 6562.00 | L109: 6231 | M109: 5970.35 | N109: 2779050 | O109: -1.49%
A110: 100 | B110: FMCG | C110: MCDOWELL-N | D110: 612.05 | E110: 610.25 | F110: 606.30 | G110: 600.55 | H110: 596.60 | I110: 616.00 | J110: 619.95 | K110: 625.70 | L110: 614.2 | M110: 604.5 | N110: 10977500 | O110: 1.26%
A111: 101 | B111: Others | C111: MCX | D111: 868.85 | E111: 861.92 | F111: 848.93 | G111: 829.02 | H111: 816.03 | I111: 881.83 | J111: 894.82 | K111: 914.73 | L111: 874.9 | M111: 842 | N111: 2296700 | O111: -2.58%
A112: 102 | B112: Finance | C112: MFSL | D112: 407.05 | E112: 409.02 | F112: 403.03 | G112: 399.02 | H112: 393.03 | I112: 413.03 | J112: 419.02 | K112: 423.03 | L112: 415 | M112: 405 | N112: 2664000 | O112: 12.01%
A113: 103 | B113: Oil_Gas | C113: MGL | D113: 851.65 | E113: 853.47 | F113: 843.93 | G113: 836.22 | H113: 826.68 | I113: 861.18 | J113: 870.72 | K113: 878.43 | L113: 863 | M113: 845.75 | N113: 2257200 | O113: -2.49%
A114: 104 | B114: Technology | C114: MINDTREE | D114: 688.60 | E114: 691.80 | F114: 680.95 | G114: 673.30 | H114: 662.45 | I114: 699.45 | J114: 710.30 | K114: 717.95 | L114: 702.65 | M114: 684.15 | N114: 1690800 | O114: 4.80%
A115: 105 | B115: Automobile | C115: MOTHERSUMI | D115: 99.40 | E115: 99.42 | F115: 97.58 | G115: 95.77 | H115: 93.93 | I115: 101.23 | J115: 103.07 | K115: 104.88 | L115: 101.25 | M115: 97.6 | N115: 33128700 | O115: 3.98%
A116: 106 | B116: Automobile | C116: MRF | D116: 58998.85 | E116: 58715.20 | F116: 58333.65 | G116: 57668.45 | H116: 57286.90 | I116: 59380.40 | J116: 59761.95 | K116: 60427.15 | L116: 59096.75 | M116: 58050 | N116: 17170 | O116: -2.22%
A117: 107 | B117: Finance | C117: MUTHOOTFIN | D117: 584.90 | E117: 576.62 | F117: 565.28 | G117: 545.67 | H117: 534.33 | I117: 596.23 | J117: 607.57 | K117: 627.18 | L117: 587.95 | M117: 557 | N117: 2365500 | O117: 10.05%
A118: 108 | B118: Metals | C118: NATIONALUM | D118: 42.15 | E118: 41.73 | F118: 40.92 | G118: 39.68 | H118: 38.87 | I118: 42.97 | J118: 43.78 | K118: 45.02 | L118: 42.55 | M118: 40.5 | N118: 31890000 | O118: -1.67%
A119: 109 | B119: Infrastructure | C119: NBCC | D119: 35.35 | E119: 35.02 | F119: 34.28 | G119: 33.22 | H119: 32.48 | I119: 36.08 | J119: 36.82 | K119: 37.88 | L119: 35.75 | M119: 33.95 | N119: 33507000 | O119: -3.22%
A120: 110 | B120: Infrastructure | C120: NCC | D120: 57.25 | E120: 56.90 | F120: 56.00 | G120: 54.75 | H120: 53.85 | I120: 58.15 | J120: 59.05 | K120: 60.30 | L120: 57.8 | M120: 55.65 | N120: 39120000 | O120: 2.24%
A121: 111 | B121: FMCG | C121: NESTLEIND | D121: 12667.25 | E121: 12657.17 | F121: 12546.08 | G121: 12424.92 | H121: 12313.83 | I121: 12778.33 | J121: 12889.42 | K121: 13010.58 | L121: 12768.25 | M121: 12536 | N121: 445550 | O121: -0.26%
A122: 112 | B122: Technology | C122: NIITTECH | D122: 1443.50 | E122: 1442.35 | F122: 1432.85 | G122: 1422.20 | H122: 1412.70 | I122: 1453.00 | J122: 1462.50 | K122: 1473.15 | L122: 1451.85 | M122: 1431.7 | N122: 846000 | O122: 2.45%
A123: 113 | B123: Metals | C123: NMDC | D123: 83.85 | E123: 83.10 | F123: 81.65 | G123: 79.45 | H123: 78.00 | I123: 85.30 | J123: 86.75 | K123: 88.95 | L123: 84.55 | M123: 80.9 | N123: 27456000 | O123: 0.18%
A124: 114 | B124: Power | C124: NTPC | D124: 127.05 | E124: 125.95 | F124: 124.20 | G124: 121.35 | H124: 119.60 | I124: 128.80 | J124: 130.55 | K124: 133.40 | L124: 127.7 | M124: 123.1 | N124: 70267200 | O124: 0.54%
A125: 115 | B125: Technology | C125: OFSS | D125: 3049.40 | E125: 3051.07 | F125: 3024.78 | G125: 3000.17 | H125: 2973.88 | I125: 3075.68 | J125: 3101.97 | K125: 3126.58 | L125: 3077.35 | M125: 3026.45 | N125: 159750 | O125: 0.38%
A126: 116 | B126: Oil_Gas | C126: OIL | D126: 152.65 | E126: 151.62 | F126: 150.03 | G126: 147.42 | H126: 145.83 | I126: 154.23 | J126: 155.82 | K126: 158.43 | L126: 153.2 | M126: 149 | N126: 7613760 | O126: -0.27%
A127: 117 | B127: Oil_Gas | C127: ONGC | D127: 127.95 | E127: 126.98 | F127: 125.52 | G127: 123.08 | H127: 121.62 | I127: 129.42 | J127: 130.88 | K127: 133.32 | L127: 128.45 | M127: 124.55 | N127: 67653750 | O127: -4.37%
A128: 118 | B128: Textile | C128: PAGEIND | D128: 17933.50 | E128: 17916.13 | F128: 17803.47 | G128: 17673.43 | H128: 17560.77 | I128: 18046.17 | J128: 18158.83 | K128: 18288.87 | L128: 18028.8 | M128: 17786.1 | N128: 203825 | O128: -0.20%
A129: 119 | B129: Pharma | C129: PEL | D129: 1888.10 | E129: 1907.63 | F129: 1843.67 | G129: 1799.23 | H129: 1735.27 | I129: 1952.07 | J129: 2016.03 | K129: 2060.47 | L129: 1971.6 | M129: 1863.2 | N129: 3379984 | O129: 6.78%
A130: 120 | B130: Oil_Gas | C130: PETRONET | D130: 265.35 | E130: 265.38 | F130: 262.82 | G130: 260.28 | H130: 257.72 | I130: 267.92 | J130: 270.48 | K130: 273.02 | L130: 267.95 | M130: 262.85 | N130: 14475000 | O130: 1.97%
A131: 121 | B131: Finance | C131: PFC | D131: 109.00 | E131: 108.18 | F131: 106.67 | G131: 104.33 | H131: 102.82 | I131: 110.52 | J131: 112.03 | K131: 114.37 | L131: 109.7 | M131: 105.85 | N131: 39419600 | O131: 1.37%
A132: 122 | B132: FMCG | C132: PIDILITIND | D132: 1374.80 | E132: 1371.98 | F132: 1365.52 | G132: 1356.23 | H132: 1349.77 | I132: 1381.27 | J132: 1387.73 | K132: 1397.02 | L132: 1378.45 | M132: 1362.7 | N132: 2282500 | O132: 1.02%
A133: 123 | B133: Banking | C133: PNB | D133: 61.60 | E133: 61.48 | F133: 61.07 | G133: 60.53 | H133: 60.12 | I133: 62.02 | J133: 62.43 | K133: 62.97 | L133: 61.9 | M133: 60.95 | N133: 106659000 | O133: -0.92%
A134: 124 | B134: Power | C134: POWERGRID | D134: 203.75 | E134: 202.98 | F134: 201.57 | G134: 199.38 | H134: 197.97 | I134: 205.17 | J134: 206.58 | K134: 208.77 | L134: 204.4 | M134: 200.8 | N134: 30620000 | O134: -3.95%
A135: 125 | B135: Media | C135: PVR | D135: 1564.40 | E135: 1548.37 | F135: 1526.63 | G135: 1488.87 | H135: 1467.13 | I135: 1586.13 | J135: 1607.87 | K135: 1645.63 | L135: 1570.1 | M135: 1510.6 | N135: 1039200 | O135: 3.22%
A136: 126 | B136: Cement | C136: RAMCOCEM | D136: 707.35 | E136: 707.18 | F136: 700.42 | G136: 693.48 | H136: 686.72 | I136: 714.12 | J136: 720.88 | K136: 727.82 | L136: 713.95 | M136: 700.25 | N136: 1467200 | O136: 0.66%
A137: 127 | B137: Textile | C137: RAYMOND | D137: 565.95 | E137: 567.58 | F137: 558.27 | G137: 550.58 | H137: 541.27 | I137: 575.27 | J137: 584.58 | K137: 592.27 | L137: 576.9 | M137: 559.9 | N137: 1447200 | O137: -6.22%
A138: 128 | B138: Banking | C138: RBLBANK | D138: 336.85 | E138: 330.88 | F138: 322.82 | G138: 308.78 | H138: 300.72 | I138: 344.92 | J138: 352.98 | K138: 367.02 | L138: 338.95 | M138: 316.85 | N138: 11985600 | O138: 1.32%
A139: 129 | B139: Power | C139: RECLTD | D139: 151.05 | E139: 149.12 | F139: 146.53 | G139: 142.02 | H139: 139.43 | I139: 153.63 | J139: 156.22 | K139: 160.73 | L139: 151.7 | M139: 144.6 | N139: 28512000 | O139: 10.80%
A140: 130 | B140: Finance | C140: RELCAPITAL | D140: 35.25 | E140: 35.05 | F140: 34.40 | G140: 33.55 | H140: 32.90 | I140: 35.90 | J140: 36.55 | K140: 37.40 | L140: 35.7 | M140: 34.2 | N140: 13170000 | O140: -4.19%
A141: 131 | B141: Oil_Gas | C141: RELIANCE | D141: 1226.30 | E141: 1220.28 | F141: 1207.02 | G141: 1187.73 | H141: 1174.47 | I141: 1239.57 | J141: 1252.83 | K141: 1272.12 | L141: 1233.55 | M141: 1201 | N141: 56684000 | O141: -1.83%
A142: 132 | B142: Power | C142: RELINFRA | D142: 37.80 | E142: 37.43 | F142: 36.72 | G142: 35.63 | H142: 34.92 | I142: 38.52 | J142: 39.23 | K142: 40.32 | L142: 38.15 | M142: 36.35 | N142: 13580000 | O142: -3.91%
A143: 133 | B143: Metals | C143: SAIL | D143: 33.15 | E143: 32.88 | F143: 32.37 | G143: 31.58 | H143: 31.07 | I143: 33.67 | J143: 34.18 | K143: 34.97 | L143: 33.4 | M143: 32.1 | N143: 87576000 | O143: 0.91%
A144: 134 | B144: Banking | C144: SBIN | D144: 274.85 | E144: 275.12 | F144: 272.48 | G144: 270.12 | H144: 267.48 | I144: 277.48 | J144: 280.12 | K144: 282.48 | L144: 277.75 | M144: 272.75 | N144: 109563000 | O144: 0.86%
A145: 135 | B145: Cement | C145: SHREECEM | D145: 17926.15 | E145: 17856.70 | F145: 17714.45 | G145: 17502.75 | H145: 17360.50 | I145: 18068.40 | J145: 18210.65 | K145: 18422.35 | L145: 17998.95 | M145: 17645 | N145: 192700 | O145: 1.13%
A146: 136 | B146: Capital_Goods | C146: SIEMENS | D146: 1191.65 | E146: 1185.52 | F146: 1175.03 | G146: 1158.42 | H146: 1147.93 | I146: 1202.13 | J146: 1212.62 | K146: 1229.23 | L146: 1196 | M146: 1168.9 | N146: 1034550 | O146: -0.11%
A147: 137 | B147: Textile | C147: SRF | D147: 2778.15 | E147: 2770.20 | F147: 2740.95 | G147: 2703.75 | H147: 2674.50 | I147: 2807.40 | J147: 2836.65 | K147: 2873.85 | L147: 2799.45 | M147: 2733 | N147: 815000 | O147: 1.97%
A148: 138 | B148: Finance | C148: SRTRANSFIN | D148: 996.40 | E148: 992.33 | F148: 985.22 | G148: 974.03 | H148: 966.92 | I148: 1003.52 | J148: 1010.63 | K148: 1021.82 | L148: 999.45 | M148: 981.15 | N148: 4389600 | O148: -2.49%
A149: 139 | B149: Pharma | C149: STAR | D149: 394.00 | E149: 390.78 | F149: 386.22 | G149: 378.43 | H149: 373.87 | I149: 398.57 | J149: 403.13 | K149: 410.92 | L149: 395.35 | M149: 383 | N149: 2082000 | O149: -2.36%
A150: 140 | B150: Pharma | C150: SUNPHARMA | D150: 427.00 | E150: 424.10 | F150: 419.20 | G150: 411.40 | H150: 406.50 | I150: 431.90 | J150: 436.80 | K150: 444.60 | L150: 429 | M150: 416.3 | N150: 50194100 | O150: 1.50%
A151: 141 | B151: Media | C151: SUNTV | D151: 438.10 | E151: 437.50 | F151: 433.60 | G151: 429.10 | H151: 425.20 | I151: 442.00 | J151: 445.90 | K151: 450.40 | L151: 441.4 | M151: 433 | N151: 5594000 | O151: 0.02%
A152: 142 | B152: Fertilisers | C152: TATACHEM | D152: 580.90 | E152: 580.60 | F152: 577.20 | G152: 573.50 | H152: 570.10 | I152: 584.30 | J152: 587.70 | K152: 591.40 | L152: 584 | M152: 576.9 | N152: 1840500 | O152: 1.74%
A153: 143 | B153: Technology | C153: TATAELXSI | D153: 632.00 | E153: 632.35 | F153: 623.65 | G153: 615.30 | H153: 606.60 | I153: 640.70 | J153: 649.40 | K153: 657.75 | L153: 641.05 | M153: 624 | N153: 1910400 | O153: -1.58%
A154: 144 | B154: FMCG | C154: TATAGLOBAL | D154: 264.05 | E154: 264.18 | F154: 260.77 | G154: 257.48 | H154: 254.07 | I154: 267.47 | J154: 270.88 | K154: 274.17 | L154: 267.6 | M154: 260.9 | N154: 9069300 | O154: 5.26%
A155: 145 | B155: Automobile | C155: TATAMOTORS | D155: 121.80 | E155: 120.52 | F155: 118.28 | G155: 114.77 | H155: 112.53 | I155: 124.03 | J155: 126.27 | K155: 129.78 | L155: 122.75 | M155: 117 | N155: 66231000 | O155: -4.70%
A156: 146 | B156: Automobile | C156: TATAMTRDVR | D156: 55.30 | E156: 54.57 | F156: 53.23 | G156: 51.17 | H156: 49.83 | I156: 56.63 | J156: 57.97 | K156: 60.03 | L156: 55.9 | M156: 52.5 | N156: 39870000 | O156: 1.75%
A157: 147 | B157: Power | C157: TATAPOWER | D157: 58.10 | E157: 57.53 | F157: 55.87 | G157: 53.63 | H157: 51.97 | I157: 59.77 | J157: 61.43 | K157: 63.67 | L157: 59.2 | M157: 55.3 | N157: 42165000 | O157: -4.76%
A158: 148 | B158: Metals | C158: TATASTEEL | D158: 356.35 | E158: 352.93 | F158: 347.47 | G158: 338.58 | H158: 333.12 | I158: 361.82 | J158: 367.28 | K158: 376.17 | L158: 358.4 | M158: 344.05 | N158: 33426805 | O158: -0.32%
A159: 149 | B159: Technology | C159: TCS | D159: 2208.45 | E159: 2218.15 | F159: 2192.60 | G159: 2176.75 | H159: 2151.20 | I159: 2234.00 | J159: 2259.55 | K159: 2275.40 | L159: 2243.7 | M159: 2202.3 | N159: 16615750 | O159: 0.27%
A160: 150 | B160: Technology | C160: TECHM | D160: 724.15 | E160: 727.20 | F160: 717.00 | G160: 709.85 | H160: 699.65 | I160: 734.35 | J160: 744.55 | K160: 751.70 | L160: 737.4 | M160: 720.05 | N160: 14226000 | O160: 3.65%
A161: 151 | B161: FMCG | C161: TITAN | D161: 1069.55 | E161: 1062.47 | F161: 1053.18 | G161: 1036.82 | H161: 1027.53 | I161: 1078.83 | J161: 1088.12 | K161: 1104.48 | L161: 1071.75 | M161: 1046.1 | N161: 9067500 | O161: -1.14%
A162: 152 | B162: Pharma | C162: TORNTPHARM | D162: 1742.25 | E162: 1738.55 | F162: 1726.60 | G162: 1710.95 | H162: 1699.00 | I162: 1754.20 | J162: 1766.15 | K162: 1781.80 | L162: 1750.5 | M162: 1722.9 | N162: 360000 | O162: 3.60%
A163: 153 | B163: Power | C163: TORNTPOWER | D163: 275.20 | E163: 275.30 | F163: 273.80 | G163: 272.40 | H163: 270.90 | I163: 276.70 | J163: 278.20 | K163: 279.60 | L163: 276.8 | M163: 273.9 | N163: 4404000 | O163: -1.14%
A164: 154 | B164: Automobile | C164: TVSMOTOR | D164: 378.75 | E164: 374.52 | F164: 367.38 | G164: 356.02 | H164: 348.88 | I164: 385.88 | J164: 393.02 | K164: 404.38 | L164: 381.65 | M164: 363.15 | N164: 8261000 | O164: 2.22%
A165: 155 | B165: FMCG | C165: UBL | D165: 1306.65 | E165: 1314.15 | F165: 1290.75 | G165: 1274.85 | H165: 1251.45 | I165: 1330.05 | J165: 1353.45 | K165: 1369.35 | L165: 1337.55 | M165: 1298.25 | N165: 1234100 | O165: 8.43%
A166: 156 | B166: Finance | C166: UJJIVAN | D166: 310.65 | E166: 309.12 | F166: 304.93 | G166: 299.22 | H166: 295.03 | I166: 314.83 | J166: 319.02 | K166: 324.73 | L166: 313.3 | M166: 303.4 | N166: 8059200 | O166: -8.45%
A167: 157 | B167: Cement | C167: ULTRACEMCO | D167: 3919.90 | E167: 3929.67 | F167: 3882.43 | G167: 3844.97 | H167: 3797.73 | I167: 3967.13 | J167: 4014.37 | K167: 4051.83 | L167: 3976.9 | M167: 3892.2 | N167: 2948600 | O167: -1.03%
A168: 158 | B168: Banking | C168: UNIONBANK | D168: 55.40 | E168: 55.33 | F168: 54.47 | G168: 53.53 | H168: 52.67 | I168: 56.27 | J168: 57.13 | K168: 58.07 | L168: 56.2 | M168: 54.4 | N168: 36610000 | O168: -0.08%
A169: 159 | B169: Fertilisers | C169: UPL | D169: 568.00 | E169: 568.70 | F169: 563.00 | G169: 558.00 | H169: 552.30 | I169: 573.70 | J169: 579.40 | K169: 584.40 | L169: 574.4 | M169: 563.7 | N169: 15350400 | O169: 0.50%
A170: 160 | B170: Metals | C170: VEDL | D170: 142.45 | E170: 141.52 | F170: 140.03 | G170: 137.62 | H170: 136.13 | I170: 143.93 | J170: 145.42 | K170: 147.83 | L170: 143 | M170: 139.1 | N170: 63156000 | O170: -0.28%
A171: 161 | B171: Capital_Goods | C171: VOLTAS | D171: 632.05 | E171: 630.75 | F171: 627.05 | G171: 622.05 | H171: 618.35 | I171: 635.75 | J171: 639.45 | K171: 644.45 | L171: 634.45 | M171: 625.75 | N171: 2502000 | O171: -2.07%
A172: 162 | B172: Technology | C172: WIPRO | D172: 253.20 | E172: 253.67 | F172: 249.58 | G172: 245.97 | H172: 241.88 | I172: 257.28 | J172: 261.37 | K172: 264.98 | L172: 257.75 | M172: 250.05 | N172: 33305600 | O172: -4.03%
A173: 163 | B173: Banking | C173: YESBANK | D173: 60.70 | E173: 60.88 | F173: 59.42 | G173: 58.13 | H173: 56.67 | I173: 62.17 | J173: 63.63 | K173: 64.92 | L173: 62.35 | M173: 59.6 | N173: 141607400 | O173: 0.50%
A174: 164 | B174: Media | C174: ZEEL | D174: 363.00 | E174: 363.65 | F174: 359.40 | G174: 355.80 | H174: 351.55 | I174: 367.25 | J174: 371.50 | K174: 375.10 | L174: 367.9 | M174: 360.05 | N174: 16978000 | O174: -0.28%
A190: Pivot Point: This is trigger point for intra day buy/sell based on the price range of the previous day
A191: As per the tool,the trader should take BUY position just above Pivot and keep the stop loss of pivot point and the first target would be Resistance 1(R1)
A192: If R1 is crossed then R2 becomes the next target with stop loss of at R1
A193: Similarly if price goes below pivot point then the trader should sell and keep a stop loss of pivot point and the first target would be S1
A194: If S1 is crossed then S2 becomes the next target with stop loss of at S1
A196: Disclaimer:
A197: This document has been prepared by the Retail Research Desk of Asit C Mehta
A198: Investment Intermediates Ltd. and is meant for use of the recipient only
A199: and is not for circulation. This document is not to be reported or
A200: copied or made available to others. It should not be considered to be
A201: taken as an offer to sell or a solicitation to buy any security. The
A202: information contained herein is from sources believed reliable. We do
A203: not represent that it is accurate or complete and it should not be
A204: relied upon as such. We may from time to time have positions in and buy
A205: and sell securities referred to herein

Sheet Cash Intra
M5: Back to Main Page
A6: FOR INTRA DAY TRADING | K6: =Main!B10 -> 2019-09-09
A8: Sr.no | B8: Scrip | C8: CLOSE RATE | D8: Pivot Point | E8: Supports | H8: Resistances
C9: Point | E9: S1 | F9: S2 | G9: S3 | H9: R1 | I9: R2 | J9: R3 | K9: HIGH | L9: LOW | M9: Total Trade Quanity in Lakhs
A10: 1 | B10: Nifty 50 | C10: 10946.2 | D10: 10923.57 | E10: 10890.08 | F10: 10833.97 | G10: 10800.48 | H10: 10979.68 | I10: 11013.17 | J10: 11069.28 | K10: 10957.05 | L10: 10867.45
A11: 2 | B11: Nifty Bank | C11: 27247.9 | D11: 27169.83 | E11: 27028.62 | F11: 26809.33 | G11: 26668.12 | H11: 27389.12 | I11: 27530.33 | J11: 27749.62 | K11: 27311.05 | L11: 26950.55
A12: 3 | B12: Nifty CPSE | C12: 1938.15 | D12: 1924.83 | E12: 1906.02 | F12: 1873.88 | G12: 1855.07 | H12: 1956.97 | I12: 1975.78 | J12: 2007.92 | K12: 1943.65 | L12: 1892.7
A13: 4 | B13: Nifty Infra | C13: 3025.1 | D13: 3018.88 | E13: 3008.12 | F13: 2991.13 | G13: 2980.37 | H13: 3035.87 | I13: 3046.63 | J13: 3063.62 | K13: 3029.65 | L13: 3001.9
A14: 5 | B14: Nifty IT | C14: 16034.55 | D14: 16081.47 | E14: 15944.13 | F14: 15853.72 | G14: 15716.38 | H14: 16171.88 | I14: 16309.22 | J14: 16399.63 | K14: 16218.8 | L14: 15991.05
A15: 6 | B15: Nifty PSE | C15: 3141.6 | D15: 3126.03 | E15: 3104.52 | F15: 3067.43 | G15: 3045.92 | H15: 3163.12 | I15: 3184.63 | J15: 3221.72 | K15: 3147.55 | L15: 3088.95
A16: 7 | B16: Nifty Midcap 50 | C16: 4255 | D16: 4240.75 | E16: 4222.15 | F16: 4189.30 | G16: 4170.70 | H16: 4273.60 | I16: 4292.20 | J16: 4325.05 | K16: 4259.35 | L16: 4207.9
A17: 8 | B17: ABB | C17: 1319.3 | D17: 1322.88 | E17: 1306.77 | F17: 1294.23 | G17: 1278.12 | H17: 1335.42 | I17: 1351.53 | J17: 1364.07 | K17: 1339 | L17: 1310.35 | M17: 0.28271
A18: 9 | B18: ACC | C18: 1463.25 | D18: 1464.65 | E18: 1452.30 | F18: 1441.35 | G18: 1429.00 | H18: 1475.60 | I18: 1487.95 | J18: 1498.90 | K18: 1477 | L18: 1453.7 | M18: 4.64686
A19: 10 | B19: AUBANK | C19: 667.1 | D19: 669.85 | E19: 662.75 | F19: 658.40 | G19: 651.30 | H19: 674.20 | I19: 681.30 | J19: 685.65 | K19: 676.95 | L19: 665.5 | M19: 2.60791
A20: 11 | B20: ADANIPORTS | C20: 365.75 | D20: 366.08 | E20: 363.47 | F20: 361.18 | G20: 358.57 | H20: 368.37 | I20: 370.98 | J20: 373.27 | K20: 368.7 | L20: 363.8 | M20: 23.66109
A21: 12 | B21: ADANIPOWER | C21: 58.35 | D21: 58.37 | E21: 57.43 | F21: 56.52 | G21: 55.58 | H21: 59.28 | I21: 60.22 | J21: 61.13 | K21: 59.3 | L21: 57.45 | M21: 84.65988
A22: 13 | B22: ABCAPITAL | C22: 92.6 | D22: 92.53 | E22: 92.07 | F22: 91.53 | G22: 91.07 | H22: 93.07 | I22: 93.53 | J22: 94.07 | K22: 93 | L22: 92 | M22: 13.25343
A23: 14 | B23: ABFRL | C23: 194.15 | D23: 192.32 | E23: 189.63 | F23: 185.12 | G23: 182.43 | H23: 196.83 | I23: 199.52 | J23: 204.03 | K23: 195 | L23: 187.8 | M23: 2.652
A24: 15 | B24: AJANTPHARM | C24: 1033.1 | D24: 1031.87 | E24: 1022.83 | F24: 1012.57 | G24: 1003.53 | H24: 1042.13 | I24: 1051.17 | J24: 1061.43 | K24: 1040.9 | L24: 1021.6 | M24: 1.08658
A25: 16 | B25: ALKEM | C25: 1835.9 | D25: 1835.30 | E25: 1815.60 | F25: 1795.30 | G25: 1775.60 | H25: 1855.60 | I25: 1875.30 | J25: 1895.60 | K25: 1855 | L25: 1815 | M25: 0.11061
A26: 17 | B26: AMARAJABAT | C26: 625.55 | D26: 623.88 | E26: 619.67 | F26: 613.78 | G26: 609.57 | H26: 629.77 | I26: 633.98 | J26: 639.87 | K26: 628.1 | L26: 618 | M26: 2.6546
A27: 18 | B27: AMBUJACEM | C27: 194.7 | D27: 194.90 | E27: 193.10 | F27: 191.50 | G27: 189.70 | H27: 196.50 | I27: 198.30 | J27: 199.90 | K27: 196.7 | L27: 193.3 | M27: 15.65369
A28: 19 | B28: APOLLOHOSP | C28: 1500.2 | D28: 1507.15 | E28: 1477.85 | F28: 1455.50 | G28: 1426.20 | H28: 1529.50 | I28: 1558.80 | J28: 1581.15 | K28: 1536.45 | L28: 1484.8 | M28: 10.98301
A29: 20 | B29: APOLLOTYRE | C29: 175.25 | D29: 175.52 | E29: 174.33 | F29: 173.42 | G29: 172.23 | H29: 176.43 | I29: 177.62 | J29: 178.53 | K29: 176.7 | L29: 174.6 | M29: 20.10523
A30: 21 | B30: ASHOKLEY | C30: 63.9 | D30: 63.52 | E30: 62.63 | F30: 61.37 | G30: 60.48 | H30: 64.78 | I30: 65.67 | J30: 66.93 | K30: 64.4 | L30: 62.25 | M30: 324.39839
A31: 22 | B31: ASIANPAINT | C31: 1532.4 | D31: 1530.53 | E31: 1521.62 | F31: 1510.83 | G31: 1501.92 | H31: 1541.32 | I31: 1550.23 | J31: 1561.02 | K31: 1539.45 | L31: 1519.75 | M31: 8.01338
A32: 23 | B32: AUROPHARMA | C32: 619.45 | D32: 617.62 | E32: 613.68 | F32: 607.92 | G32: 603.98 | H32: 623.38 | I32: 627.32 | J32: 633.08 | K32: 621.55 | L32: 611.85 | M32: 23.60423
A33: 24 | B33: DMART | C33: 1529.7 | D33: 1529.58 | E33: 1515.27 | F33: 1500.83 | G33: 1486.52 | H33: 1544.02 | I33: 1558.33 | J33: 1572.77 | K33: 1543.9 | L33: 1515.15 | M33: 2.08829
A34: 25 | B34: AXISBANK | C34: 671.1 | D34: 665.65 | E34: 658.55 | F34: 646.00 | G34: 638.90 | H34: 678.20 | I34: 685.30 | J34: 697.85 | K34: 672.75 | L34: 653.1 | M34: 111.01456
A35: 26 | B35: BAJAJ-AUTO | C35: 2839.35 | D35: 2816.55 | E35: 2768.30 | F35: 2697.25 | G35: 2649.00 | H35: 2887.60 | I35: 2935.85 | J35: 3006.90 | K35: 2864.8 | L35: 2745.5 | M35: 10.0518
A36: 27 | B36: BAJFINANCE | C36: 3373 | D36: 3353.00 | E36: 3318.00 | F36: 3263.00 | G36: 3228.00 | H36: 3408.00 | I36: 3443.00 | J36: 3498.00 | K36: 3388 | L36: 3298 | M36: 17.00894
A37: 28 | B37: BAJAJFINSV | C37: 7175.9 | D37: 7129.12 | E37: 7070.28 | F37: 6964.67 | G37: 6905.83 | H37: 7234.73 | I37: 7293.57 | J37: 7399.18 | K37: 7187.95 | L37: 7023.5 | M37: 3.02126
A38: 29 | B38: BAJAJHLDNG | C38: 3305.1 | D38: 3301.55 | E38: 3273.10 | F38: 3241.10 | G38: 3212.65 | H38: 3333.55 | I38: 3362.00 | J38: 3394.00 | K38: 3330 | L38: 3269.55 | M38: 0.16285
A39: 30 | B39: BALKRISIND | C39: 724.7 | D39: 722.82 | E39: 717.63 | F39: 710.57 | G39: 705.38 | H39: 729.88 | I39: 735.07 | J39: 742.13 | K39: 728 | L39: 715.75 | M39: 2.6861
A40: 31 | B40: BANDHANBNK | C40: 449.75 | D40: 449.57 | E40: 447.18 | F40: 444.62 | G40: 442.23 | H40: 452.13 | I40: 454.52 | J40: 457.08 | K40: 451.95 | L40: 447 | M40: 2.01372
A41: 32 | B41: BANKBARODA | C41: 94.4 | D41: 94.32 | E41: 93.23 | F41: 92.07 | G41: 90.98 | H41: 95.48 | I41: 96.57 | J41: 97.73 | K41: 95.4 | L41: 93.15 | M41: 199.83569
A42: 33 | B42: BANKINDIA | C42: 63.7 | D42: 63.80 | E42: 62.70 | F42: 61.70 | G42: 60.60 | H42: 64.80 | I42: 65.90 | J42: 66.90 | K42: 64.9 | L42: 62.8 | M42: 69.79117
A43: 34 | B43: BATAINDIA | C43: 1541.35 | D43: 1532.32 | E43: 1520.08 | F43: 1498.82 | G43: 1486.58 | H43: 1553.58 | I43: 1565.82 | J43: 1587.08 | K43: 1544.55 | L43: 1511.05 | M43: 3.56817
A44: 35 | B44: BERGEPAINT | C44: 364.4 | D44: 362.82 | E44: 360.68 | F44: 356.97 | G44: 354.83 | H44: 366.53 | I44: 368.67 | J44: 372.38 | K44: 364.95 | L44: 359.1 | M44: 6.91781
A45: 36 | B45: BEL | C45: 109.05 | D45: 108.50 | E45: 107.50 | F45: 105.95 | G45: 104.95 | H45: 110.05 | I45: 111.05 | J45: 112.60 | K45: 109.5 | L45: 106.95 | M45: 98.29787
A46: 37 | B46: BHARATFORG | C46: 394.95 | D46: 394.68 | E46: 391.47 | F46: 387.98 | G46: 384.77 | H46: 398.17 | I46: 401.38 | J46: 404.87 | K46: 397.9 | L46: 391.2 | M46: 7.9752
A47: 38 | B47: BHEL | C47: 51.8 | D47: 51.53 | E47: 50.97 | F47: 50.13 | G47: 49.57 | H47: 52.37 | I47: 52.93 | J47: 53.77 | K47: 52.1 | L47: 50.7 | M47: 78.66773
A48: 39 | B48: BPCL | C48: 379 | D48: 378.28 | E48: 374.22 | F48: 369.43 | G48: 365.37 | H48: 383.07 | I48: 387.13 | J48: 391.92 | K48: 382.35 | L48: 373.5 | M48: 74.21767
A49: 40 | B49: BHARTIARTL | C49: 349.25 | D49: 349.45 | E49: 344.90 | F49: 340.55 | G49: 336.00 | H49: 353.80 | I49: 358.35 | J49: 362.70 | K49: 354 | L49: 345.1 | M49: 62.74987
A50: 41 | B50: INFRATEL | C50: 250.35 | D50: 249.07 | E50: 246.28 | F50: 242.22 | G50: 239.43 | H50: 253.13 | I50: 255.92 | J50: 259.98 | K50: 251.85 | L50: 245 | M50: 14.16878
A51: 42 | B51: BIOCON | C51: 236.45 | D51: 234.27 | E51: 231.53 | F51: 226.62 | G51: 223.88 | H51: 239.18 | I51: 241.92 | J51: 246.83 | K51: 237 | L51: 229.35 | M51: 37.0265
A52: 43 | B52: BBTC | C52: 980.65 | D52: 980.88 | E52: 964.77 | F52: 948.88 | G52: 932.77 | H52: 996.77 | I52: 1012.88 | J52: 1028.77 | K52: 997 | L52: 965 | M52: 4.81824
A53: 44 | B53: BOSCHLTD | C53: 13807.25 | D53: 13762.42 | E53: 13644.83 | F53: 13482.42 | G53: 13364.83 | H53: 13924.83 | I53: 14042.42 | J53: 14204.83 | K53: 13880 | L53: 13600 | M53: 0.10111
A54: 45 | B54: BRITANNIA | C54: 2668 | D54: 2678.50 | E54: 2635.70 | F54: 2603.40 | G54: 2560.60 | H54: 2710.80 | I54: 2753.60 | J54: 2785.90 | K54: 2721.3 | L54: 2646.2 | M54: 4.78053
A55: 46 | B55: CADILAHC | C55: 238.8 | D55: 237.57 | E55: 234.33 | F55: 229.87 | G55: 226.63 | H55: 242.03 | I55: 245.27 | J55: 249.73 | K55: 240.8 | L55: 233.1 | M55: 16.75968
A56: 47 | B56: CANBK | C56: 191.7 | D56: 192.83 | E56: 189.77 | F56: 187.83 | G56: 184.77 | H56: 194.77 | I56: 197.83 | J56: 199.77 | K56: 195.9 | L56: 190.9 | M56: 80.63242
A57: 48 | B57: CASTROLIND | C57: 120.35 | D57: 120.65 | E57: 119.70 | F57: 119.05 | G57: 118.10 | H57: 121.30 | I57: 122.25 | J57: 122.90 | K57: 121.6 | L57: 120 | M57: 6.48238
A58: 49 | B58: CHOLAFIN | C58: 269.2 | D58: 269.72 | E58: 267.33 | F58: 265.47 | G58: 263.08 | H58: 271.58 | I58: 273.97 | J58: 275.83 | K58: 272.1 | L58: 267.85 | M58: 27.50665
A59: 50 | B59: CIPLA | C59: 474.9 | D59: 477.05 | E59: 471.60 | F59: 468.30 | G59: 462.85 | H59: 480.35 | I59: 485.80 | J59: 489.10 | K59: 482.5 | L59: 473.75 | M59: 16.68897
A60: 51 | B60: COALINDIA | C60: 198.6 | D60: 196.97 | E60: 194.43 | F60: 190.27 | G60: 187.73 | H60: 201.13 | I60: 203.67 | J60: 207.83 | K60: 199.5 | L60: 192.8 | M60: 160.95238
A61: 52 | B61: COLPAL | C61: 1251.8 | D61: 1247.95 | E61: 1241.90 | F61: 1232.00 | G61: 1225.95 | H61: 1257.85 | I61: 1263.90 | J61: 1273.80 | K61: 1254 | L61: 1238.05 | M61: 2.35891
A62: 53 | B62: CONCOR | C62: 504.5 | D62: 508.37 | E62: 498.38 | F62: 492.27 | G62: 482.28 | H62: 514.48 | I62: 524.47 | J62: 530.58 | K62: 518.35 | L62: 502.25 | M62: 9.9508
A63: 54 | B63: COROMANDEL | C63: 382 | D63: 381.68 | E63: 379.52 | F63: 377.03 | G63: 374.87 | H63: 384.17 | I63: 386.33 | J63: 388.82 | K63: 383.85 | L63: 379.2 | M63: 0.58615
A64: 55 | B64: CROMPTON | C64: 233.9 | D64: 233.03 | E64: 231.07 | F64: 228.23 | G64: 226.27 | H64: 235.87 | I64: 237.83 | J64: 240.67 | K64: 235 | L64: 230.2 | M64: 3.66826
A65: 56 | B65: CUMMINSIND | C65: 574.25 | D65: 573.47 | E65: 566.43 | F65: 558.62 | G65: 551.58 | H65: 581.28 | I65: 588.32 | J65: 596.13 | K65: 580.5 | L65: 565.65 | M65: 2.96872
A66: 57 | B66: DLF | C66: 154.25 | D66: 154.00 | E66: 148.45 | F66: 142.65 | G66: 137.10 | H66: 159.80 | I66: 165.35 | J66: 171.15 | K66: 159.55 | L66: 148.2 | M66: 335.59078
A67: 58 | B67: DABUR | C67: 441.3 | D67: 440.37 | E67: 438.08 | F67: 434.87 | G67: 432.58 | H67: 443.58 | I67: 445.87 | J67: 449.08 | K67: 442.65 | L67: 437.15 | M67: 5.00428
A68: 59 | B68: DHFL | C68: 46.6 | D68: 46.73 | E68: 45.52 | F68: 44.43 | G68: 43.22 | H68: 47.82 | I68: 49.03 | J68: 50.12 | K68: 47.95 | L68: 45.65 | M68: 92.25491
A69: 60 | B69: DBL | C69: 385.3 | D69: 382.30 | E69: 371.40 | F69: 357.50 | G69: 346.60 | H69: 396.20 | I69: 407.10 | J69: 421.00 | K69: 393.2 | L69: 368.4 | M69: 4.51121
A70: 61 | B70: DISHTV | C70: 22.75 | D70: 23.12 | E70: 21.83 | F70: 20.92 | G70: 19.63 | H70: 24.03 | I70: 25.32 | J70: 26.23 | K70: 24.4 | L70: 22.2 | M70: 355.5324
A71: 62 | B71: DIVISLAB | C71: 1637.6 | D71: 1637.78 | E71: 1620.77 | F71: 1603.93 | G71: 1586.92 | H71: 1654.62 | I71: 1671.63 | J71: 1688.47 | K71: 1654.8 | L71: 1620.95 | M71: 4.26978
A72: 63 | B72: DRREDDY | C72: 2739.95 | D72: 2720.65 | E72: 2694.35 | F72: 2648.75 | G72: 2622.45 | H72: 2766.25 | I72: 2792.55 | J72: 2838.15 | K72: 2746.95 | L72: 2675.05 | M72: 7.91834
A73: 64 | B73: EDELWEISS | C73: 104.8 | D73: 105.10 | E73: 103.20 | F73: 101.60 | G73: 99.70 | H73: 106.70 | I73: 108.60 | J73: 110.20 | K73: 107 | L73: 103.5 | M73: 28.30875
A74: 65 | B74: EICHERMOT | C74: 16407.25 | D74: 16212.65 | E74: 15926.30 | F74: 15445.35 | G74: 15159.00 | H74: 16693.60 | I74: 16979.95 | J74: 17460.90 | K74: 16499 | L74: 15731.7 | M74: 2.47513
A75: 66 | B75: ENDURANCE | C75: 950.15 | D75: 943.08 | E75: 922.67 | F75: 895.18 | G75: 874.77 | H75: 970.57 | I75: 990.98 | J75: 1018.47 | K75: 963.5 | L75: 915.6 | M75: 0.22066
A76: 67 | B76: ENGINERSIN | C76: 108.6 | D76: 108.58 | E76: 107.02 | F76: 105.43 | G76: 103.87 | H76: 110.17 | I76: 111.73 | J76: 113.32 | K76: 110.15 | L76: 107 | M76: 23.88484
A77: 68 | B77: ESCORTS | C77: 485.8 | D77: 478.17 | E77: 467.98 | F77: 450.17 | G77: 439.98 | H77: 495.98 | I77: 506.17 | J77: 523.98 | K77: 488.35 | L77: 460.35 | M77: 44.62663
A78: 69 | B78: EXIDEIND | C78: 180.15 | D78: 179.55 | E78: 178.00 | F78: 175.85 | G78: 174.30 | H78: 181.70 | I78: 183.25 | J78: 185.40 | K78: 181.1 | L78: 177.4 | M78: 5.95688
A79: 70 | B79: FEDERALBNK | C79: 83.15 | D79: 82.48 | E79: 81.57 | F79: 79.98 | G79: 79.07 | H79: 84.07 | I79: 84.98 | J79: 86.57 | K79: 83.4 | L79: 80.9 | M79: 79.14489
A80: 71 | B80: FCONSUMER | C80: 26.3 | D80: 26.35 | E80: 25.95 | F80: 25.60 | G80: 25.20 | H80: 26.70 | I80: 27.10 | J80: 27.45 | K80: 26.75 | L80: 26 | M80: 7.55381
A81: 72 | B81: FRETAIL | C81: 405.6 | D81: 404.00 | E81: 400.10 | F81: 394.60 | G81: 390.70 | H81: 409.50 | I81: 413.40 | J81: 418.90 | K81: 407.9 | L81: 398.5 | M81: 5.03737
A82: 73 | B82: GAIL | C82: 131.35 | D82: 130.88 | E82: 129.72 | F82: 128.08 | G82: 126.92 | H82: 132.52 | I82: 133.68 | J82: 135.32 | K82: 132.05 | L82: 129.25 | M82: 64.05463
A83: 74 | B83: GMRINFRA | C83: 15.55 | D83: 15.38 | E83: 15.12 | F83: 14.68 | G83: 14.42 | H83: 15.82 | I83: 16.08 | J83: 16.52 | K83: 15.65 | L83: 14.95 | M83: 100.90076
A84: 75 | B84: GICRE | C84: 173.45 | D84: 173.02 | E84: 171.03 | F84: 168.62 | G84: 166.63 | H84: 175.43 | I84: 177.42 | J84: 179.83 | K84: 175 | L84: 170.6 | M84: 0.64196
A85: 76 | B85: GSKCONS | C85: 7860.05 | D85: 7883.03 | E85: 7806.12 | F85: 7752.18 | G85: 7675.27 | H85: 7936.97 | I85: 8013.88 | J85: 8067.82 | K85: 7959.95 | L85: 7829.1 | M85: 0.1494
A86: 77 | B86: GLENMARK | C86: 390.95 | D86: 389.03 | E86: 384.32 | F86: 377.68 | G86: 372.97 | H86: 395.67 | I86: 400.38 | J86: 407.02 | K86: 393.75 | L86: 382.4 | M86: 6.75693
A87: 78 | B87: GODREJAGRO | C87: 462.05 | D87: 458.52 | E87: 452.53 | F87: 443.02 | G87: 437.03 | H87: 468.03 | I87: 474.02 | J87: 483.53 | K87: 464.5 | L87: 449 | M87: 0.25983
A88: 79 | B88: GODREJCP | C88: 599.5 | D88: 598.85 | E88: 588.55 | F88: 577.60 | G88: 567.30 | H88: 609.80 | I88: 620.10 | J88: 631.05 | K88: 609.15 | L88: 587.9 | M88: 7.02374
A89: 80 | B89: GODREJIND | C89: 400.1 | D89: 399.87 | E89: 397.73 | F89: 395.37 | G89: 393.23 | H89: 402.23 | I89: 404.37 | J89: 406.73 | K89: 402 | L89: 397.5 | M89: 0.85612
A90: 81 | B90: GRAPHITE | C90: 272.55 | D90: 272.87 | E90: 270.73 | F90: 268.92 | G90: 266.78 | H90: 274.68 | I90: 276.82 | J90: 278.63 | K90: 275 | L90: 271.05 | M90: 6.67081
A91: 82 | B91: GRASIM | C91: 703.7 | D91: 704.93 | E91: 698.42 | F91: 693.13 | G91: 686.62 | H91: 710.22 | I91: 716.73 | J91: 722.02 | K91: 711.45 | L91: 699.65 | M91: 12.4853
A92: 83 | B92: GRUH | C92: 246.05 | D92: 245.95 | E92: 242.10 | F92: 238.15 | G92: 234.30 | H92: 249.90 | I92: 253.75 | J92: 257.70 | K92: 249.8 | L92: 242 | M92: 5.41945
A93: 84 | B93: GSPL | C93: 218.8 | D93: 219.27 | E93: 217.23 | F93: 215.67 | G93: 213.63 | H93: 220.83 | I93: 222.87 | J93: 224.43 | K93: 221.3 | L93: 217.7 | M93: 4.18609
A94: 85 | B94: HEG | C94: 1025.4 | D94: 1025.52 | E94: 1015.03 | F94: 1004.67 | G94: 994.18 | H94: 1035.88 | I94: 1046.37 | J94: 1056.73 | K94: 1036 | L94: 1015.15 | M94: 1.79165
A95: 86 | B95: HCLTECH | C95: 1100.4 | D95: 1106.17 | E95: 1091.18 | F95: 1081.97 | G95: 1066.98 | H95: 1115.38 | I95: 1130.37 | J95: 1139.58 | K95: 1121.15 | L95: 1096.95 | M95: 10.37843
A96: 87 | B96: HDFCAMC | C96: 2611.25 | D96: 2617.07 | E96: 2590.28 | F96: 2569.32 | G96: 2542.53 | H96: 2638.03 | I96: 2664.82 | J96: 2685.78 | K96: 2643.85 | L96: 2596.1 | M96: 2.51312
A97: 88 | B97: HDFCBANK | C97: 2245.9 | D97: 2241.27 | E97: 2225.93 | F97: 2205.97 | G97: 2190.63 | H97: 2261.23 | I97: 2276.57 | J97: 2296.53 | K97: 2256.6 | L97: 2221.3 | M97: 32.17501
A98: 89 | B98: HDFCLIFE | C98: 529.9 | D98: 531.30 | E98: 526.60 | F98: 523.30 | G98: 518.60 | H98: 534.60 | I98: 539.30 | J98: 542.60 | K98: 536 | L98: 528 | M98: 16.41066
A99: 90 | B99: HAVELLS | C99: 659.85 | D99: 659.40 | E99: 653.45 | F99: 647.05 | G99: 641.10 | H99: 665.80 | I99: 671.75 | J99: 678.15 | K99: 665.35 | L99: 653 | M99: 7.51108
A100: 91 | B100: HEROMOTOCO | C100: 2659.95 | D100: 2640.02 | E100: 2610.03 | F100: 2560.12 | G100: 2530.13 | H100: 2689.93 | I100: 2719.92 | J100: 2769.83 | K100: 2670 | L100: 2590.1 | M100: 10.21359
A101: 92 | B101: HEXAWARE | C101: 386.85 | D101: 389.00 | E101: 382.45 | F101: 378.05 | G101: 371.50 | H101: 393.40 | I101: 399.95 | J101: 404.35 | K101: 395.55 | L101: 384.6 | M101: 7.98325
A102: 93 | B102: HINDALCO | C102: 188.4 | D102: 186.70 | E102: 183.70 | F102: 179.00 | G102: 176.00 | H102: 191.40 | I102: 194.40 | J102: 199.10 | K102: 189.7 | L102: 182 | M102: 55.70553
A103: 94 | B103: HINDPETRO | C103: 261.9 | D103: 262.05 | E103: 258.10 | F103: 254.30 | G103: 250.35 | H103: 265.85 | I103: 269.80 | J103: 273.60 | K103: 266 | L103: 258.25 | M103: 50.69905
A104: 95 | B104: HINDUNILVR | C104: 1819.15 | D104: 1825.57 | E104: 1807.78 | F104: 1796.42 | G104: 1778.63 | H104: 1836.93 | I104: 1854.72 | J104: 1866.08 | K104: 1843.35 | L104: 1814.2 | M104: 6.31575
A105: 96 | B105: HINDZINC | C105: 217.05 | D105: 215.87 | E105: 213.63 | F105: 210.22 | G105: 207.98 | H105: 219.28 | I105: 221.52 | J105: 224.93 | K105: 218.1 | L105: 212.45 | M105: 4.65144
A106: 97 | B106: HUDCO | C106: 35.65 | D106: 35.63 | E106: 35.32 | F106: 34.98 | G106: 34.67 | H106: 35.97 | I106: 36.28 | J106: 36.62 | K106: 35.95 | L106: 35.3 | M106: 5.93872
A107: 98 | B107: HDFC | C107: 2041.45 | D107: 2040.30 | E107: 2024.15 | F107: 2006.85 | G107: 1990.70 | H107: 2057.60 | I107: 2073.75 | J107: 2091.05 | K107: 2056.45 | L107: 2023 | M107: 42.27171
A108: 99 | B108: ICICIBANK | C108: 391.35 | D108: 391.68 | E108: 388.87 | F108: 386.38 | G108: 383.57 | H108: 394.17 | I108: 396.98 | J108: 399.47 | K108: 394.5 | L108: 389.2 | M108: 175.64286
A109: 100 | B109: ICICIGI | C109: 1196.15 | D109: 1193.88 | E109: 1182.77 | F109: 1169.38 | G109: 1158.27 | H109: 1207.27 | I109: 1218.38 | J109: 1231.77 | K109: 1205 | L109: 1180.5 | M109: 4.35484
A110: 101 | B110: ICICIPRULI | C110: 440.95 | D110: 437.45 | E110: 430.50 | F110: 420.05 | G110: 413.10 | H110: 447.90 | I110: 454.85 | J110: 465.30 | K110: 444.4 | L110: 427 | M110: 36.25686
A111: 102 | B111: IDBI | C111: 27.85 | D111: 27.73 | E111: 27.32 | F111: 26.78 | G111: 26.37 | H111: 28.27 | I111: 28.68 | J111: 29.22 | K111: 28.15 | L111: 27.2 | M111: 74.84781
A112: 103 | B112: IDFCFIRSTB | C112: 42.95 | D112: 42.93 | E112: 42.72 | F112: 42.48 | G112: 42.27 | H112: 43.17 | I112: 43.38 | J112: 43.62 | K112: 43.15 | L112: 42.7 | M112: 88.67672
A113: 104 | B113: ITC | C113: 243.9 | D113: 244.33 | E113: 242.82 | F113: 241.73 | G113: 240.22 | H113: 245.42 | I113: 246.93 | J113: 248.02 | K113: 245.85 | L113: 243.25 | M113: 87.04669
A114: 105 | B114: IBULHSGFIN | C114: 425.7 | D114: 422.90 | E114: 407.80 | F114: 389.90 | G114: 374.80 | H114: 440.80 | I114: 455.90 | J114: 473.80 | K114: 438 | L114: 405 | M114: 341.99127
A115: 106 | B115: IBVENTURES | C115: 157.2 | D115: 156.92 | E115: 145.93 | F115: 134.67 | G115: 123.68 | H115: 168.18 | I115: 179.17 | J115: 190.43 | K115: 167.9 | L115: 145.65 | M115: 108.71157
A116: 107 | B116: INDIANB | C116: 164.35 | D116: 165.93 | E116: 161.92 | F116: 159.48 | G116: 155.47 | H116: 168.37 | I116: 172.38 | J116: 174.82 | K116: 169.95 | L116: 163.5 | M116: 10.19304
A117: 108 | B117: INDHOTEL | C117: 132.85 | D117: 132.72 | E117: 131.68 | F117: 130.52 | G117: 129.48 | H117: 133.88 | I117: 134.92 | J117: 136.08 | K117: 133.75 | L117: 131.55 | M117: 2.62624
A118: 109 | B118: IOC | C118: 126.95 | D118: 126.07 | E118: 124.38 | F118: 121.82 | G118: 120.13 | H118: 128.63 | I118: 130.32 | J118: 132.88 | K118: 127.75 | L118: 123.5 | M118: 126.41145
A119: 110 | B119: IGL | C119: 328.4 | D119: 328.15 | E119: 324.65 | F119: 320.90 | G119: 317.40 | H119: 331.90 | I119: 335.40 | J119: 339.15 | K119: 331.65 | L119: 324.4 | M119: 19.5073
A120: 111 | B120: INDUSINDBK | C120: 1331.1 | D120: 1327.47 | E120: 1314.93 | F120: 1298.77 | G120: 1286.23 | H120: 1343.63 | I120: 1356.17 | J120: 1372.33 | K120: 1340 | L120: 1311.3 | M120: 27.44448
A121: 112 | B121: NAUKRI | C121: 2055.05 | D121: 2084.40 | E121: 1994.80 | F121: 1934.55 | G121: 1844.95 | H121: 2144.65 | I121: 2234.25 | J121: 2294.50 | K121: 2174 | L121: 2024.15 | M121: 2.16103
A122: 113 | B122: INFY | C122: 840.15 | D122: 840.73 | E122: 834.47 | F122: 828.78 | G122: 822.52 | H122: 846.42 | I122: 852.68 | J122: 858.37 | K122: 847 | L122: 835.05 | M122: 61.06841
A123: 114 | B123: INDIGO | C123: 1648.65 | D123: 1645.78 | E123: 1636.87 | F123: 1625.08 | G123: 1616.17 | H123: 1657.57 | I123: 1666.48 | J123: 1678.27 | K123: 1654.7 | L123: 1634 | M123: 6.97759
A124: 115 | B124: JSWENERGY | C124: 65.3 | D124: 65.75 | E124: 64.60 | F124: 63.90 | G124: 62.75 | H124: 66.45 | I124: 67.60 | J124: 68.30 | K124: 66.9 | L124: 65.05 | M124: 5.75545
A125: 116 | B125: JSWSTEEL | C125: 217.95 | D125: 216.52 | E125: 213.68 | F125: 209.42 | G125: 206.58 | H125: 220.78 | I125: 223.62 | J125: 227.88 | K125: 219.35 | L125: 212.25 | M125: 84.94436
A126: 117 | B126: JINDALSTEL | C126: 95.65 | D126: 95.05 | E126: 93.10 | F126: 90.55 | G126: 88.60 | H126: 97.60 | I126: 99.55 | J126: 102.10 | K126: 97 | L126: 92.5 | M126: 283.42974
A127: 118 | B127: JUBLFOOD | C127: 1205 | D127: 1206.93 | E127: 1191.22 | F127: 1177.43 | G127: 1161.72 | H127: 1220.72 | I127: 1236.43 | J127: 1250.22 | K127: 1222.65 | L127: 1193.15 | M127: 7.53019
A128: 119 | B128: JUBILANT | C128: 472.9 | D128: 467.07 | E128: 456.13 | F128: 439.37 | G128: 428.43 | H128: 483.83 | I128: 494.77 | J128: 511.53 | K128: 478 | L128: 450.3 | M128: 7.19222
A129: 120 | B129: KOTAKBANK | C129: 1441.55 | D129: 1432.88 | E129: 1421.17 | F129: 1400.78 | G129: 1389.07 | H129: 1453.27 | I129: 1464.98 | J129: 1485.37 | K129: 1444.6 | L129: 1412.5 | M129: 22.45219
A130: 121 | B130: L&TFH | C130: 91.9 | D130: 92.12 | E130: 90.73 | F130: 89.57 | G130: 88.18 | H130: 93.28 | I130: 94.67 | J130: 95.83 | K130: 93.5 | L130: 90.95 | M130: 82.64026
A131: 122 | B131: LTTS | C131: 1625.7 | D131: 1629.57 | E131: 1617.13 | F131: 1608.57 | G131: 1596.13 | H131: 1638.13 | I131: 1650.57 | J131: 1659.13 | K131: 1642 | L131: 1621 | M131: 0.57434
A132: 123 | B132: LICHSGFIN | C132: 398.95 | D132: 399.08 | E132: 395.92 | F132: 392.88 | G132: 389.72 | H132: 402.12 | I132: 405.28 | J132: 408.32 | K132: 402.25 | L132: 396.05 | M132: 27.16127
A133: 124 | B133: LTI | C133: 1693.85 | D133: 1685.97 | E133: 1674.03 | F133: 1654.22 | G133: 1642.28 | H133: 1705.78 | I133: 1717.72 | J133: 1737.53 | K133: 1697.9 | L133: 1666.15 | M133: 0.83138
A134: 125 | B134: LT | C134: 1328.65 | D134: 1327.67 | E134: 1321.33 | F134: 1314.02 | G134: 1307.68 | H134: 1334.98 | I134: 1341.32 | J134: 1348.63 | K134: 1334 | L134: 1320.35 | M134: 16.94661
A135: 126 | B135: LUPIN | C135: 773 | D135: 768.22 | E135: 761.78 | F135: 750.57 | G135: 744.13 | H135: 779.43 | I135: 785.87 | J135: 797.08 | K135: 774.65 | L135: 757 | M135: 13.49319
A136: 127 | B136: MRF | C136: 58754.3 | D136: 58544.80 | E136: 58109.60 | F136: 57464.90 | G136: 57029.70 | H136: 59189.50 | I136: 59624.70 | J136: 60269.40 | K136: 58980 | L136: 57900.1 | M136: 0.02892
A137: 128 | B137: MGL | C137: 846.75 | D137: 849.60 | E137: 839.15 | F137: 831.55 | G137: 821.10 | H137: 857.20 | I137: 867.65 | J137: 875.25 | K137: 860.05 | L137: 842 | M137: 2.84842
A138: 129 | B138: M&MFIN | C138: 324.1 | D138: 323.00 | E138: 317.10 | F138: 310.10 | G138: 304.20 | H138: 330.00 | I138: 335.90 | J138: 342.90 | K138: 328.9 | L138: 316 | M138: 16.43228
A139: 130 | B139: M&M | C139: 529.5 | D139: 525.03 | E139: 519.07 | F139: 508.63 | G139: 502.67 | H139: 535.47 | I139: 541.43 | J139: 551.87 | K139: 531 | L139: 514.6 | M139: 26.70087
A140: 131 | B140: MANAPPURAM | C140: 118.05 | D140: 117.58 | E140: 115.22 | F140: 112.38 | G140: 110.02 | H140: 120.42 | I140: 122.78 | J140: 125.62 | K140: 119.95 | L140: 114.75 | M140: 42.59268
A141: 132 | B141: MRPL | C141: 46.75 | D141: 46.45 | E141: 45.70 | F141: 44.65 | G141: 43.90 | H141: 47.50 | I141: 48.25 | J141: 49.30 | K141: 47.2 | L141: 45.4 | M141: 2.07121
A142: 133 | B142: MARICO | C142: 382.5 | D142: 383.80 | E142: 379.70 | F142: 376.90 | G142: 372.80 | H142: 386.60 | I142: 390.70 | J142: 393.50 | K142: 387.9 | L142: 381 | M142: 12.32781
A143: 134 | B143: MARUTI | C143: 6186.95 | D143: 6123.02 | E143: 6026.03 | F143: 5865.12 | G143: 5768.13 | H143: 6283.93 | I143: 6380.92 | J143: 6541.83 | K143: 6220 | L143: 5962.1 | M143: 15.24051
A144: 135 | B144: MFSL | C144: 405.8 | D144: 407.35 | E144: 400.45 | F144: 395.10 | G144: 388.20 | H144: 412.70 | I144: 419.60 | J144: 424.95 | K144: 414.25 | L144: 402 | M144: 19.11751
A145: 136 | B145: MINDTREE | C145: 685.5 | D145: 689.82 | E145: 677.68 | F145: 669.87 | G145: 657.73 | H145: 697.63 | I145: 709.77 | J145: 717.58 | K145: 701.95 | L145: 682 | M145: 3.69792
A146: 137 | B146: MOTHERSUMI | C146: 98.9 | D146: 99.03 | E146: 97.17 | F146: 95.43 | G146: 93.57 | H146: 100.77 | I146: 102.63 | J146: 104.37 | K146: 100.9 | L146: 97.3 | M146: 96.49735
A147: 138 | B147: MPHASIS | C147: 970.8 | D147: 969.18 | E147: 964.02 | F147: 957.23 | G147: 952.07 | H147: 975.97 | I147: 981.13 | J147: 987.92 | K147: 974.35 | L147: 962.4 | M147: 0.51047
A148: 139 | B148: MUTHOOTFIN | C148: 585.25 | D148: 577.07 | E148: 565.18 | F148: 545.12 | G148: 533.23 | H148: 597.13 | I148: 609.02 | J148: 629.08 | K148: 588.95 | L148: 557 | M148: 38.46318
A149: 140 | B149: NATCOPHARM | C149: 564.35 | D149: 562.47 | E149: 557.83 | F149: 551.32 | G149: 546.68 | H149: 568.98 | I149: 573.62 | J149: 580.13 | K149: 567.1 | L149: 555.95 | M149: 0.77518
A150: 141 | B150: NBCC | C150: 35.75 | D150: 35.47 | E150: 34.68 | F150: 33.62 | G150: 32.83 | H150: 36.53 | I150: 37.32 | J150: 38.38 | K150: 36.25 | L150: 34.4 | M150: 124.79236
A151: 142 | B151: NHPC | C151: 24.05 | D151: 24.05 | E151: 23.90 | F151: 23.75 | G151: 23.60 | H151: 24.20 | I151: 24.35 | J151: 24.50 | K151: 24.2 | L151: 23.9 | M151: 106.67102
A152: 143 | B152: NMDC | C152: 83.6 | D152: 82.83 | E152: 81.47 | F152: 79.33 | G152: 77.97 | H152: 84.97 | I152: 86.33 | J152: 88.47 | K152: 84.2 | L152: 80.7 | M152: 35.08146
A153: 144 | B153: NTPC | C153: 127 | D153: 126.03 | E153: 124.27 | F153: 121.53 | G153: 119.77 | H153: 128.77 | I153: 130.53 | J153: 133.27 | K153: 127.8 | L153: 123.3 | M153: 118.91983
A154: 145 | B154: NATIONALUM | C154: 43.25 | D154: 42.90 | E154: 42.05 | F154: 40.85 | G154: 40.00 | H154: 44.10 | I154: 44.95 | J154: 46.15 | K154: 43.75 | L154: 41.7 | M154: 56.58814
A155: 146 | B155: OBEROIRLTY | C155: 500.7 | D155: 507.02 | E155: 489.68 | F155: 478.67 | G155: 461.33 | H155: 518.03 | I155: 535.37 | J155: 546.38 | K155: 524.35 | L155: 496 | M155: 11.07347
A156: 147 | B156: ONGC | C156: 127.95 | D156: 127.00 | E156: 125.45 | F156: 122.95 | G156: 121.40 | H156: 129.50 | I156: 131.05 | J156: 133.55 | K156: 128.55 | L156: 124.5 | M156: 157.59526
A157: 148 | B157: OIL | C157: 152.15 | D157: 151.12 | E157: 149.28 | F157: 146.42 | G157: 144.58 | H157: 153.98 | I157: 155.82 | J157: 158.68 | K157: 152.95 | L157: 148.25 | M157: 7.90525
A158: 149 | B158: OFSS | C158: 3041.5 | D158: 3048.02 | E158: 3016.03 | F158: 2990.57 | G158: 2958.58 | H158: 3073.48 | I158: 3105.47 | J158: 3130.93 | K158: 3080 | L158: 3022.55 | M158: 0.81153
A159: 150 | B159: PIIND | C159: 1207.3 | D159: 1201.35 | E159: 1188.70 | F159: 1170.10 | G159: 1157.45 | H159: 1219.95 | I159: 1232.60 | J159: 1251.20 | K159: 1214 | L159: 1182.75 | M159: 1.45907
A160: 151 | B160: PNBHOUSING | C160: 639.15 | D160: 636.70 | E160: 629.40 | F160: 619.65 | G160: 612.35 | H160: 646.45 | I160: 653.75 | J160: 663.50 | K160: 644 | L160: 626.95 | M160: 0.81339
A161: 152 | B161: PAGEIND | C161: 17959.75 | D161: 18006.32 | E161: 17813.63 | F161: 17667.52 | G161: 17474.83 | H161: 18152.43 | I161: 18345.12 | J161: 18491.23 | K161: 18199 | L161: 17860.2 | M161: 0.23789
A162: 153 | B162: PETRONET | C162: 264.15 | D162: 264.37 | E162: 261.33 | F162: 258.52 | G162: 255.48 | H162: 267.18 | I162: 270.22 | J162: 273.03 | K162: 267.4 | L162: 261.55 | M162: 36.96312
A163: 154 | B163: PFIZER | C163: 3021.45 | D163: 3011.17 | E163: 2992.33 | F163: 2963.22 | G163: 2944.38 | H163: 3040.28 | I163: 3059.12 | J163: 3088.23 | K163: 3030 | L163: 2982.05 | M163: 0.0801
A164: 155 | B164: PIDILITIND | C164: 1372.15 | D164: 1369.45 | E164: 1362.05 | F164: 1351.95 | G164: 1344.55 | H164: 1379.55 | I164: 1386.95 | J164: 1397.05 | K164: 1376.85 | L164: 1359.35 | M164: 1.82002
A165: 156 | B165: PEL | C165: 1882.2 | D165: 1902.35 | E165: 1839.70 | F165: 1797.20 | G165: 1734.55 | H165: 1944.85 | I165: 2007.50 | J165: 2050.00 | K165: 1965 | L165: 1859.85 | M165: 12.53771
A166: 157 | B166: PFC | C166: 108.5 | D166: 107.85 | E166: 106.40 | F166: 104.30 | G166: 102.85 | H166: 109.95 | I166: 111.40 | J166: 113.50 | K166: 109.3 | L166: 105.75 | M166: 113.05745
A167: 158 | B167: POWERGRID | C167: 203.5 | D167: 202.63 | E167: 200.92 | F167: 198.33 | G167: 196.62 | H167: 205.22 | I167: 206.93 | J167: 209.52 | K167: 204.35 | L167: 200.05 | M167: 77.529
A168: 159 | B168: PRESTIGE | C168: 298.95 | D168: 297.32 | E168: 294.63 | F168: 290.32 | G168: 287.63 | H168: 301.63 | I168: 304.32 | J168: 308.63 | K168: 300 | L168: 293 | M168: 1.24788
A169: 160 | B169: PGHH | C169: 10152.05 | D169: 10128.60 | E169: 10078.45 | F169: 10004.85 | G169: 9954.70 | H169: 10202.20 | I169: 10252.35 | J169: 10325.95 | K169: 10178.75 | L169: 10055 | M169: 0.09353
A170: 161 | B170: PNB | C170: 61.3 | D170: 61.23 | E170: 60.87 | F170: 60.43 | G170: 60.07 | H170: 61.67 | I170: 62.03 | J170: 62.47 | K170: 61.6 | L170: 60.8 | M170: 195.97727
A171: 162 | B171: QUESS | C171: 452 | D171: 452.77 | E171: 447.63 | F171: 443.27 | G171: 438.13 | H171: 457.13 | I171: 462.27 | J171: 466.63 | K171: 457.9 | L171: 448.4 | M171: 1.37412
A172: 163 | B172: RBLBANK | C172: 336.45 | D172: 330.78 | E172: 322.67 | F172: 308.88 | G172: 300.77 | H172: 344.57 | I172: 352.68 | J172: 366.47 | K172: 338.9 | L172: 317 | M172: 113.58527
A173: 164 | B173: RECLTD | C173: 150.65 | D173: 148.85 | E173: 146.25 | F173: 141.85 | G173: 139.25 | H173: 153.25 | I173: 155.85 | J173: 160.25 | K173: 151.45 | L173: 144.45 | M173: 117.12331
A174: 165 | B174: RAJESHEXPO | C174: 674.2 | D174: 675.82 | E174: 670.88 | F174: 667.57 | G174: 662.63 | H174: 679.13 | I174: 684.07 | J174: 687.38 | K174: 680.75 | L174: 672.5 | M174: 1.76136
A175: 166 | B175: RELCAPITAL | C175: 35.25 | D175: 35.15 | E175: 34.60 | F175: 33.95 | G175: 33.40 | H175: 35.80 | I175: 36.35 | J175: 37.00 | K175: 35.7 | L175: 34.5 | M175: 173.27134
A176: 167 | B176: RELIANCE | C176: 1222.5 | D176: 1215.58 | E176: 1202.17 | F176: 1181.83 | G176: 1168.42 | H176: 1235.92 | I176: 1249.33 | J176: 1269.67 | K176: 1229 | L176: 1195.25 | M176: 106.00234
A177: 168 | B177: RELINFRA | C177: 37.7 | D177: 37.47 | E177: 36.78 | F177: 35.87 | G177: 35.18 | H177: 38.38 | I177: 39.07 | J177: 39.98 | K177: 38.15 | L177: 36.55 | M177: 153.96193
A178: 169 | B178: RPOWER | C178: 3.25 | D178: 3.35 | E178: 3.15 | F178: 3.05 | G178: 2.85 | H178: 3.45 | I178: 3.65 | J178: 3.75 | K178: 3.55 | L178: 3.25 | M178: 92.7014
A179: 170 | B179: SBILIFE | C179: 835.55 | D179: 831.28 | E179: 825.57 | F179: 815.58 | G179: 809.87 | H179: 841.27 | I179: 846.98 | J179: 856.97 | K179: 837 | L179: 821.3 | M179: 3.0838
A180: 171 | B180: SRF | C180: 2764.7 | D180: 2761.73 | E180: 2733.47 | F180: 2702.23 | G180: 2673.97 | H180: 2792.97 | I180: 2821.23 | J180: 2852.47 | K180: 2790 | L180: 2730.5 | M180: 2.22243
A181: 172 | B181: SHREECEM | C181: 17870.5 | D181: 17779.48 | E181: 17598.97 | F181: 17327.43 | G181: 17146.92 | H181: 18051.02 | I181: 18231.53 | J181: 18503.07 | K181: 17960 | L181: 17507.95 | M181: 0.19786
A182: 173 | B182: SRTRANSFIN | C182: 994.9 | D182: 990.20 | E182: 982.30 | F182: 969.70 | G182: 961.80 | H182: 1002.80 | I182: 1010.70 | J182: 1023.30 | K182: 998.1 | L182: 977.6 | M182: 6.40061
A183: 174 | B183: SIEMENS | C183: 1188.25 | D183: 1181.97 | E183: 1169.13 | F183: 1150.02 | G183: 1137.18 | H183: 1201.08 | I183: 1213.92 | J183: 1233.03 | K183: 1194.8 | L183: 1162.85 | M183: 1.96416
A184: 175 | B184: SBIN | C184: 273.95 | D184: 274.35 | E184: 271.70 | F184: 269.45 | G184: 266.80 | H184: 276.60 | I184: 279.25 | J184: 281.50 | K184: 277 | L184: 272.1 | M184: 166.75146
A185: 176 | B185: SAIL | C185: 33 | D185: 32.75 | E185: 32.30 | F185: 31.60 | G185: 31.15 | H185: 33.45 | I185: 33.90 | J185: 34.60 | K185: 33.2 | L185: 32.05 | M185: 237.28556
A186: 177 | B186: STRTECH | C186: 123.2 | D186: 121.02 | E186: 117.38 | F186: 111.57 | G186: 107.93 | H186: 126.83 | I186: 130.47 | J186: 136.28 | K186: 124.65 | L186: 115.2 | M186: 20.17515
A187: 178 | B187: SPARC | C187: 149.35 | D187: 148.78 | E187: 145.72 | F187: 142.08 | G187: 139.02 | H187: 152.42 | I187: 155.48 | J187: 159.12 | K187: 151.85 | L187: 145.15 | M187: 5.92288
A188: 179 | B188: SUNPHARMA | C188: 425.1 | D188: 422.25 | E188: 417.30 | F188: 409.50 | G188: 404.55 | H188: 430.05 | I188: 435.00 | J188: 442.80 | K188: 427.2 | L188: 414.45 | M188: 125.1304
A189: 180 | B189: SUNTV | C189: 435.7 | D189: 435.42 | E189: 430.98 | F189: 426.27 | G189: 421.83 | H189: 440.13 | I189: 444.57 | J189: 449.28 | K189: 439.85 | L189: 430.7 | M189: 9.45663
A190: 181 | B190: SYNGENE | C190: 321.65 | D190: 320.32 | E190: 317.08 | F190: 312.52 | G190: 309.28 | H190: 324.88 | I190: 328.12 | J190: 332.68 | K190: 323.55 | L190: 315.75 | M190: 0.6584
A191: 182 | B191: TVSMOTOR | C191: 381.5 | D191: 377.65 | E191: 369.65 | F191: 357.80 | G191: 349.80 | H191: 389.50 | I191: 397.50 | J191: 409.35 | K191: 385.65 | L191: 365.8 | M191: 34.61995
A192: 183 | B192: TATACHEM | C192: 579.45 | D192: 579.07 | E192: 575.38 | F192: 571.32 | G192: 567.63 | H192: 583.13 | I192: 586.82 | J192: 590.88 | K192: 582.75 | L192: 575 | M192: 1.76482
A193: 184 | B193: TCS | C193: 2197.5 | D193: 2207.87 | E193: 2182.23 | F193: 2166.97 | G193: 2141.33 | H193: 2223.13 | I193: 2248.77 | J193: 2264.03 | K193: 2233.5 | L193: 2192.6 | M193: 18.9055
A194: 185 | B194: TATAGLOBAL | C194: 262.75 | D194: 262.87 | E194: 259.43 | F194: 256.12 | G194: 252.68 | H194: 266.18 | I194: 269.62 | J194: 272.93 | K194: 266.3 | L194: 259.55 | M194: 12.55736
A195: 186 | B195: TATAMTRDVR | C195: 55 | D195: 54.27 | E195: 53.03 | F195: 51.07 | G195: 49.83 | H195: 56.23 | I195: 57.47 | J195: 59.43 | K195: 55.5 | L195: 52.3 | M195: 59.76948
A196: 187 | B196: TATAMOTORS | C196: 121.25 | D196: 120.03 | E196: 117.77 | F196: 114.28 | G196: 112.02 | H196: 123.52 | I196: 125.78 | J196: 129.27 | K196: 122.3 | L196: 116.55 | M196: 677.61586
A197: 188 | B197: TATAPOWER | C197: 58.2 | D197: 57.55 | E197: 55.85 | F197: 53.50 | G197: 51.80 | H197: 59.90 | I197: 61.60 | J197: 63.95 | K197: 59.25 | L197: 55.2 | M197: 102.95942
A198: 189 | B198: TATASTEEL | C198: 355.4 | D198: 352.03 | E198: 346.22 | F198: 337.03 | G198: 331.22 | H198: 361.22 | I198: 367.03 | J198: 376.22 | K198: 357.85 | L198: 342.85 | M198: 115.55487
A199: 190 | B199: TECHM | C199: 721.75 | D199: 724.18 | E199: 713.92 | F199: 706.08 | G199: 695.82 | H199: 732.02 | I199: 742.28 | J199: 750.12 | K199: 734.45 | L199: 716.35 | M199: 106.63234
A200: 191 | B200: NIACL | C200: 109.4 | D200: 109.33 | E200: 106.57 | F200: 103.73 | G200: 100.97 | H200: 112.17 | I200: 114.93 | J200: 117.77 | K200: 112.1 | L200: 106.5 | M200: 1.01328
A201: 192 | B201: RAMCOCEM | C201: 705 | D201: 705.03 | E201: 698.97 | F201: 692.93 | G201: 686.87 | H201: 711.07 | I201: 717.13 | J201: 723.17 | K201: 711.1 | L201: 699 | M201: 3.53166
A202: 193 | B202: TITAN | C202: 1068.7 | D202: 1060.70 | E202: 1050.45 | F202: 1032.20 | G202: 1021.95 | H202: 1078.95 | I202: 1089.20 | J202: 1107.45 | K202: 1070.95 | L202: 1042.45 | M202: 14.43212
A203: 194 | B203: TORNTPHARM | C203: 1739.15 | D203: 1734.27 | E203: 1718.88 | F203: 1698.62 | G203: 1683.23 | H203: 1754.53 | I203: 1769.92 | J203: 1790.18 | K203: 1749.65 | L203: 1714 | M203: 2.1503
A204: 195 | B204: TORNTPOWER | C204: 273.9 | D204: 274.27 | E204: 272.53 | F204: 271.17 | G204: 269.43 | H204: 275.63 | I204: 277.37 | J204: 278.73 | K204: 276 | L204: 272.9 | M204: 5.73732
A205: 196 | B205: UPL | C205: 567.95 | D205: 568.27 | E205: 562.78 | F205: 557.62 | G205: 552.13 | H205: 573.43 | I205: 578.92 | J205: 584.08 | K205: 573.75 | L205: 563.1 | M205: 21.0109
... 30 more rows

Sheet MidCap Intra
L5: Back To Main Page
A6: FOR INTRA DAY TRADING | K6: =Main!B10 -> 2019-09-09
A9: Sr.no | B9: Scrip | C9: CLOSE RATE | D9: Pivot Point | E9: Supports | H9: Resistances
C10: Point | E10: S1 | F10: S2 | G10: S3 | H10: R1 | I10: R2 | J10: R3 | K10: HIGH | L10: LOW | M10: Total Trade Quanity in Lakhs
A11: 1 | B11: 3MINDIA | C11: 20515.35 | D11: 20561.80 | E11: 20403.65 | F11: 20291.95 | G11: 20133.80 | H11: 20673.50 | I11: 20831.65 | J11: 20943.35 | K11: 20719.95 | L11: 20450.1 | M11: 0.01794
A12: 2 | B12: ABB | C12: 1319.3 | D12: 1322.88 | E12: 1306.77 | F12: 1294.23 | G12: 1278.12 | H12: 1335.42 | I12: 1351.53 | J12: 1364.07 | K12: 1339 | L12: 1310.35 | M12: 0.28271
A13: 3 | B13: ACC | C13: 1463.25 | D13: 1464.65 | E13: 1452.30 | F13: 1441.35 | G13: 1429.00 | H13: 1475.60 | I13: 1487.95 | J13: 1498.90 | K13: 1477 | L13: 1453.7 | M13: 4.64686
A14: 4 | B14: AIAENG | C14: 1507.2 | D14: 1509.08 | E14: 1495.12 | F14: 1483.03 | G14: 1469.07 | H14: 1521.17 | I14: 1535.13 | J14: 1547.22 | K14: 1523.05 | L14: 1497 | M14: 0.63048
A15: 5 | B15: APLAPOLLO | C15: 1286.05 | D15: 1285.32 | E15: 1270.73 | F15: 1255.42 | G15: 1240.83 | H15: 1300.63 | I15: 1315.22 | J15: 1330.53 | K15: 1299.9 | L15: 1270 | M15: 0.30504
A16: 6 | B16: AUBANK | C16: 667.1 | D16: 669.85 | E16: 662.75 | F16: 658.40 | G16: 651.30 | H16: 674.20 | I16: 681.30 | J16: 685.65 | K16: 676.95 | L16: 665.5 | M16: 2.60791
A17: 7 | B17: AAVAS | C17: 1565.45 | D17: 1566.18 | E17: 1547.27 | F17: 1529.08 | G17: 1510.17 | H17: 1584.37 | I17: 1603.28 | J17: 1621.47 | K17: 1585.1 | L17: 1548 | M17: 0.88435
A18: 8 | B18: ADANIGREEN | C18: 45.1 | D18: 45.22 | E18: 44.63 | F18: 44.17 | G18: 43.58 | H18: 45.68 | I18: 46.27 | J18: 46.73 | K18: 45.8 | L18: 44.75 | M18: 2.78208
A19: 9 | B19: ADANIPORTS | C19: 365.75 | D19: 366.08 | E19: 363.47 | F19: 361.18 | G19: 358.57 | H19: 368.37 | I19: 370.98 | J19: 373.27 | K19: 368.7 | L19: 363.8 | M19: 23.66109
A20: 10 | B20: ADANIPOWER | C20: 58.35 | D20: 58.37 | E20: 57.43 | F20: 56.52 | G20: 55.58 | H20: 59.28 | I20: 60.22 | J20: 61.13 | K20: 59.3 | L20: 57.45 | M20: 84.65988
A21: 11 | B21: ADANITRANS | C21: 238.3 | D21: 237.38 | E21: 234.77 | F21: 231.23 | G21: 228.62 | H21: 240.92 | I21: 243.53 | J21: 247.07 | K21: 240 | L21: 233.85 | M21: 0.597
A22: 12 | B22: ABCAPITAL | C22: 92.6 | D22: 92.53 | E22: 92.07 | F22: 91.53 | G22: 91.07 | H22: 93.07 | I22: 93.53 | J22: 94.07 | K22: 93 | L22: 92 | M22: 13.25343
A23: 13 | B23: ABFRL | C23: 194.15 | D23: 192.32 | E23: 189.63 | F23: 185.12 | G23: 182.43 | H23: 196.83 | I23: 199.52 | J23: 204.03 | K23: 195 | L23: 187.8 | M23: 2.652
A24: 14 | B24: ADVENZYMES | C24: 153.7 | D24: 152.23 | E24: 148.72 | F24: 143.73 | G24: 140.22 | H24: 157.22 | I24: 160.73 | J24: 165.72 | K24: 155.75 | L24: 147.25 | M24: 0.54815
A25: 15 | B25: AEGISCHEM | C25: 190.5 | D25: 188.62 | E25: 185.23 | F25: 179.97 | G25: 176.58 | H25: 193.88 | I25: 197.27 | J25: 202.53 | K25: 192 | L25: 183.35 | M25: 0.69691
A26: 16 | B26: AJANTPHARM | C26: 1033.1 | D26: 1031.87 | E26: 1022.83 | F26: 1012.57 | G26: 1003.53 | H26: 1042.13 | I26: 1051.17 | J26: 1061.43 | K26: 1040.9 | L26: 1021.6 | M26: 1.08658
A27: 17 | B27: AKZOINDIA | C27: 1704.2 | D27: 1707.17 | E27: 1697.03 | F27: 1689.87 | G27: 1679.73 | H27: 1714.33 | I27: 1724.47 | J27: 1731.63 | K27: 1717.3 | L27: 1700 | M27: 0.03069
A28: 18 | B28: APLLTD | C28: 493.7 | D28: 495.33 | E28: 490.67 | F28: 487.63 | G28: 482.97 | H28: 498.37 | I28: 503.03 | J28: 506.07 | K28: 500 | L28: 492.3 | M28: 0.11085
A29: 19 | B29: ALKEM | C29: 1835.9 | D29: 1835.30 | E29: 1815.60 | F29: 1795.30 | G29: 1775.60 | H29: 1855.60 | I29: 1875.30 | J29: 1895.60 | K29: 1855 | L29: 1815 | M29: 0.11061
A30: 20 | B30: ALBK | C30: 33 | D30: 33.15 | E30: 32.70 | F30: 32.40 | G30: 31.95 | H30: 33.45 | I30: 33.90 | J30: 34.20 | K30: 33.6 | L30: 32.85 | M30: 7.21386
A31: 21 | B31: ALLCARGO | C31: 91.55 | D31: 91.42 | E31: 90.48 | F31: 89.42 | G31: 88.48 | H31: 92.48 | I31: 93.42 | J31: 94.48 | K31: 92.35 | L31: 90.35 | M31: 0.84788
A32: 22 | B32: AMARAJABAT | C32: 625.55 | D32: 623.88 | E32: 619.67 | F32: 613.78 | G32: 609.57 | H32: 629.77 | I32: 633.98 | J32: 639.87 | K32: 628.1 | L32: 618 | M32: 2.6546
A33: 23 | B33: AMBUJACEM | C33: 194.7 | D33: 194.90 | E33: 193.10 | F33: 191.50 | G33: 189.70 | H33: 196.50 | I33: 198.30 | J33: 199.90 | K33: 196.7 | L33: 193.3 | M33: 15.65369
A34: 24 | B34: ANDHRABANK | C34: 18.9 | D34: 18.97 | E34: 18.68 | F34: 18.47 | G34: 18.18 | H34: 19.18 | I34: 19.47 | J34: 19.68 | K34: 19.25 | L34: 18.75 | M34: 5.68695
A35: 25 | B35: APOLLOHOSP | C35: 1500.2 | D35: 1507.15 | E35: 1477.85 | F35: 1455.50 | G35: 1426.20 | H35: 1529.50 | I35: 1558.80 | J35: 1581.15 | K35: 1536.45 | L35: 1484.8 | M35: 10.98301
A36: 26 | B36: APOLLOTYRE | C36: 175.25 | D36: 175.52 | E36: 174.33 | F36: 173.42 | G36: 172.23 | H36: 176.43 | I36: 177.62 | J36: 178.53 | K36: 176.7 | L36: 174.6 | M36: 20.10523
A37: 27 | B37: ASHOKLEY | C37: 63.9 | D37: 63.52 | E37: 62.63 | F37: 61.37 | G37: 60.48 | H37: 64.78 | I37: 65.67 | J37: 66.93 | K37: 64.4 | L37: 62.25 | M37: 324.39839
A38: 28 | B38: ASHOKA | C38: 96.9 | D38: 95.47 | E38: 92.33 | F38: 87.77 | G38: 84.63 | H38: 100.03 | I38: 103.17 | J38: 107.73 | K38: 98.6 | L38: 90.9 | M38: 5.12978
A39: 29 | B39: ASIANPAINT | C39: 1532.4 | D39: 1530.53 | E39: 1521.62 | F39: 1510.83 | G39: 1501.92 | H39: 1541.32 | I39: 1550.23 | J39: 1561.02 | K39: 1539.45 | L39: 1519.75 | M39: 8.01338
A40: 30 | B40: ASTERDM | C40: 118.8 | D40: 117.90 | E40: 116.30 | F40: 113.80 | G40: 112.20 | H40: 120.40 | I40: 122.00 | J40: 124.50 | K40: 119.5 | L40: 115.4 | M40: 0.40787
A41: 31 | B41: ASTRAZEN | C41: 1996.55 | D41: 2006.20 | E41: 1963.40 | F41: 1930.25 | G41: 1887.45 | H41: 2039.35 | I41: 2082.15 | J41: 2115.30 | K41: 2049 | L41: 1973.05 | M41: 0.82197
A42: 32 | B42: ASTRAL | C42: 1303.55 | D42: 1309.43 | E42: 1290.87 | F42: 1278.18 | G42: 1259.62 | H42: 1322.12 | I42: 1340.68 | J42: 1353.37 | K42: 1328 | L42: 1296.75 | M42: 0.21331
A43: 33 | B43: ATUL | C43: 3467.65 | D43: 3473.62 | E43: 3449.03 | F43: 3430.42 | G43: 3405.83 | H43: 3492.23 | I43: 3516.82 | J43: 3535.43 | K43: 3498.2 | L43: 3455 | M43: 0.4447
A44: 34 | B44: AUROPHARMA | C44: 619.45 | D44: 617.62 | E44: 613.68 | F44: 607.92 | G44: 603.98 | H44: 623.38 | I44: 627.32 | J44: 633.08 | K44: 621.55 | L44: 611.85 | M44: 23.60423
A45: 35 | B45: AVANTIFEED | C45: 346.9 | D45: 341.27 | E45: 333.53 | F45: 320.17 | G45: 312.43 | H45: 354.63 | I45: 362.37 | J45: 375.73 | K45: 349 | L45: 327.9 | M45: 5.53136
A46: 36 | B46: DMART | C46: 1529.7 | D46: 1529.58 | E46: 1515.27 | F46: 1500.83 | G46: 1486.52 | H46: 1544.02 | I46: 1558.33 | J46: 1572.77 | K46: 1543.9 | L46: 1515.15 | M46: 2.08829
A47: 37 | B47: AXISBANK | C47: 671.1 | D47: 665.65 | E47: 658.55 | F47: 646.00 | G47: 638.90 | H47: 678.20 | I47: 685.30 | J47: 697.85 | K47: 672.75 | L47: 653.1 | M47: 111.01456
A48: 38 | B48: BASF | C48: 1010 | D48: 1014.78 | E48: 1002.22 | F48: 994.43 | G48: 981.87 | H48: 1022.57 | I48: 1035.13 | J48: 1042.92 | K48: 1027.35 | L48: 1007 | M48: 0.03687
A49: 39 | B49: BEML | C49: 813.15 | D49: 814.68 | E49: 803.97 | F49: 794.78 | G49: 784.07 | H49: 823.87 | I49: 834.58 | J49: 843.77 | K49: 825.4 | L49: 805.5 | M49: 6.00397
A50: 40 | B50: BSE | C50: 528.05 | D50: 529.98 | E50: 523.37 | F50: 518.68 | G50: 512.07 | H50: 534.67 | I50: 541.28 | J50: 545.97 | K50: 536.6 | L50: 525.3 | M50: 0.42999
A51: 41 | B51: BAJAJ-AUTO | C51: 2839.35 | D51: 2816.55 | E51: 2768.30 | F51: 2697.25 | G51: 2649.00 | H51: 2887.60 | I51: 2935.85 | J51: 3006.90 | K51: 2864.8 | L51: 2745.5 | M51: 10.0518
A52: 42 | B52: BAJAJCON | C52: 252.05 | D52: 251.45 | E52: 250.10 | F52: 248.15 | G52: 246.80 | H52: 253.40 | I52: 254.75 | J52: 256.70 | K52: 252.8 | L52: 249.5 | M52: 0.87208
A53: 43 | B53: BAJAJELEC | C53: 375.6 | D53: 373.52 | E53: 370.08 | F53: 364.57 | G53: 361.13 | H53: 379.03 | I53: 382.47 | J53: 387.98 | K53: 376.95 | L53: 368 | M53: 0.32076
A54: 44 | B54: BAJFINANCE | C54: 3373 | D54: 3353.00 | E54: 3318.00 | F54: 3263.00 | G54: 3228.00 | H54: 3408.00 | I54: 3443.00 | J54: 3498.00 | K54: 3388 | L54: 3298 | M54: 17.00894
A55: 45 | B55: BAJAJFINSV | C55: 7175.9 | D55: 7129.12 | E55: 7070.28 | F55: 6964.67 | G55: 6905.83 | H55: 7234.73 | I55: 7293.57 | J55: 7399.18 | K55: 7187.95 | L55: 7023.5 | M55: 3.02126
A56: 46 | B56: BAJAJHLDNG | C56: 3305.1 | D56: 3301.55 | E56: 3273.10 | F56: 3241.10 | G56: 3212.65 | H56: 3333.55 | I56: 3362.00 | J56: 3394.00 | K56: 3330 | L56: 3269.55 | M56: 0.16285
A57: 47 | B57: BALKRISIND | C57: 724.7 | D57: 722.82 | E57: 717.63 | F57: 710.57 | G57: 705.38 | H57: 729.88 | I57: 735.07 | J57: 742.13 | K57: 728 | L57: 715.75 | M57: 2.6861
A58: 48 | B58: BALMLAWRIE | C58: 176.45 | D58: 175.82 | E58: 174.23 | F58: 172.02 | G58: 170.43 | H58: 178.03 | I58: 179.62 | J58: 181.83 | K58: 177.4 | L58: 173.6 | M58: 2.01475
A59: 49 | B59: BALRAMCHIN | C59: 132.5 | D59: 132.67 | E59: 130.43 | F59: 128.37 | G59: 126.13 | H59: 134.73 | I59: 136.97 | J59: 139.03 | K59: 134.9 | L59: 130.6 | M59: 7.59076
A60: 50 | B60: BANDHANBNK | C60: 449.75 | D60: 449.57 | E60: 447.18 | F60: 444.62 | G60: 442.23 | H60: 452.13 | I60: 454.52 | J60: 457.08 | K60: 451.95 | L60: 447 | M60: 2.01372
A61: 51 | B61: BANKBARODA | C61: 94.4 | D61: 94.32 | E61: 93.23 | F61: 92.07 | G61: 90.98 | H61: 95.48 | I61: 96.57 | J61: 97.73 | K61: 95.4 | L61: 93.15 | M61: 199.83569
A62: 52 | B62: BANKINDIA | C62: 63.7 | D62: 63.80 | E62: 62.70 | F62: 61.70 | G62: 60.60 | H62: 64.80 | I62: 65.90 | J62: 66.90 | K62: 64.9 | L62: 62.8 | M62: 69.79117
A63: 53 | B63: MAHABANK | C63: 11.95 | D63: 12.00 | E63: 11.85 | F63: 11.75 | G63: 11.60 | H63: 12.10 | I63: 12.25 | J63: 12.35 | K63: 12.15 | L63: 11.9 | M63: 2.88221
A64: 54 | B64: BATAINDIA | C64: 1541.35 | D64: 1532.32 | E64: 1520.08 | F64: 1498.82 | G64: 1486.58 | H64: 1553.58 | I64: 1565.82 | J64: 1587.08 | K64: 1544.55 | L64: 1511.05 | M64: 3.56817
A65: 55 | B65: BERGEPAINT | C65: 364.4 | D65: 362.82 | E65: 360.68 | F65: 356.97 | G65: 354.83 | H65: 366.53 | I65: 368.67 | J65: 372.38 | K65: 364.95 | L65: 359.1 | M65: 6.91781
A66: 56 | B66: BDL | C66: 276.75 | D66: 280.82 | E66: 271.08 | F66: 265.42 | G66: 255.68 | H66: 286.48 | I66: 296.22 | J66: 301.88 | K66: 290.55 | L66: 275.15 | M66: 0.59649
A67: 57 | B67: BEL | C67: 109.05 | D67: 108.50 | E67: 107.50 | F67: 105.95 | G67: 104.95 | H67: 110.05 | I67: 111.05 | J67: 112.60 | K67: 109.5 | L67: 106.95 | M67: 98.29787
A68: 58 | B68: BHARATFORG | C68: 394.95 | D68: 394.68 | E68: 391.47 | F68: 387.98 | G68: 384.77 | H68: 398.17 | I68: 401.38 | J68: 404.87 | K68: 397.9 | L68: 391.2 | M68: 7.9752
A69: 59 | B69: BHEL | C69: 51.8 | D69: 51.53 | E69: 50.97 | F69: 50.13 | G69: 49.57 | H69: 52.37 | I69: 52.93 | J69: 53.77 | K69: 52.1 | L69: 50.7 | M69: 78.66773
A70: 60 | B70: BPCL | C70: 379 | D70: 378.28 | E70: 374.22 | F70: 369.43 | G70: 365.37 | H70: 383.07 | I70: 387.13 | J70: 391.92 | K70: 382.35 | L70: 373.5 | M70: 74.21767
A71: 61 | B71: BHARTIARTL | C71: 349.25 | D71: 349.45 | E71: 344.90 | F71: 340.55 | G71: 336.00 | H71: 353.80 | I71: 358.35 | J71: 362.70 | K71: 354 | L71: 345.1 | M71: 62.74987
A72: 62 | B72: INFRATEL | C72: 250.35 | D72: 249.07 | E72: 246.28 | F72: 242.22 | G72: 239.43 | H72: 253.13 | I72: 255.92 | J72: 259.98 | K72: 251.85 | L72: 245 | M72: 14.16878
A73: 63 | B73: BIOCON | C73: 236.45 | D73: 234.27 | E73: 231.53 | F73: 226.62 | G73: 223.88 | H73: 239.18 | I73: 241.92 | J73: 246.83 | K73: 237 | L73: 229.35 | M73: 37.0265
A74: 64 | B74: BIRLACORPN | C74: 551.15 | D74: 547.38 | E74: 540.77 | F74: 530.38 | G74: 523.77 | H74: 557.77 | I74: 564.38 | J74: 574.77 | K74: 554 | L74: 537 | M74: 0.20202
A75: 65 | B75: BLISSGVS | C75: 107.95 | D75: 107.58 | E75: 106.17 | F75: 104.38 | G75: 102.97 | H75: 109.37 | I75: 110.78 | J75: 112.57 | K75: 109 | L75: 105.8 | M75: 0.51999
A76: 66 | B76: BLUEDART | C76: 2229.25 | D76: 2212.87 | E76: 2185.73 | F76: 2142.22 | G76: 2115.08 | H76: 2256.38 | I76: 2283.52 | J76: 2327.03 | K76: 2240 | L76: 2169.35 | M76: 0.00693
A77: 67 | B77: BLUESTARCO | C77: 740.15 | D77: 730.03 | E77: 716.12 | F77: 692.08 | G77: 678.17 | H77: 754.07 | I77: 767.98 | J77: 792.02 | K77: 743.95 | L77: 706 | M77: 0.2662
A78: 68 | B78: BBTC | C78: 980.65 | D78: 980.88 | E78: 964.77 | F78: 948.88 | G78: 932.77 | H78: 996.77 | I78: 1012.88 | J78: 1028.77 | K78: 997 | L78: 965 | M78: 4.81824
A79: 69 | B79: BOMDYEING | C79: 87.75 | D79: 87.70 | E79: 85.60 | F79: 83.45 | G79: 81.35 | H79: 89.85 | I79: 91.95 | J79: 94.10 | K79: 89.8 | L79: 85.55 | M79: 28.14111
A80: 70 | B80: BOSCHLTD | C80: 13807.25 | D80: 13762.42 | E80: 13644.83 | F80: 13482.42 | G80: 13364.83 | H80: 13924.83 | I80: 14042.42 | J80: 14204.83 | K80: 13880 | L80: 13600 | M80: 0.10111
A81: 71 | B81: BRIGADE | C81: 198.15 | D81: 199.45 | E81: 193.90 | F81: 189.65 | G81: 184.10 | H81: 203.70 | I81: 209.25 | J81: 213.50 | K81: 205 | L81: 195.2 | M81: 1.89315
A82: 72 | B82: BRITANNIA | C82: 2668 | D82: 2678.50 | E82: 2635.70 | F82: 2603.40 | G82: 2560.60 | H82: 2710.80 | I82: 2753.60 | J82: 2785.90 | K82: 2721.3 | L82: 2646.2 | M82: 4.78053
A83: 73 | B83: CARERATING | C83: 534.7 | D83: 535.28 | E83: 530.57 | F83: 526.43 | G83: 521.72 | H83: 539.42 | I83: 544.13 | J83: 548.27 | K83: 540 | L83: 531.15 | M83: 0.28078
A84: 74 | B84: CCL | C84: 239.45 | D84: 238.00 | E84: 236.00 | F84: 232.55 | G84: 230.55 | H84: 241.45 | I84: 243.45 | J84: 246.90 | K84: 240 | L84: 234.55 | M84: 0.08821
A85: 75 | B85: CESC | C85: 784.6 | D85: 780.53 | E85: 768.07 | F85: 751.53 | G85: 739.07 | H85: 797.07 | I85: 809.53 | J85: 826.07 | K85: 793 | L85: 764 | M85: 2.53691
A86: 76 | B86: CGPOWER | C86: 12.7 | D86: 12.70 | E86: 12.70 | F86: 12.70 | G86: 12.70 | H86: 12.70 | I86: 12.70 | J86: 12.70 | K86: 12.7 | L86: 12.7 | M86: 1.05987
A87: 77 | B87: CRISIL | C87: 1285.45 | D87: 1280.08 | E87: 1270.17 | F87: 1254.88 | G87: 1244.97 | H87: 1295.37 | I87: 1305.28 | J87: 1320.57 | K87: 1290 | L87: 1264.8 | M87: 0.09628
A88: 78 | B88: CADILAHC | C88: 238.8 | D88: 237.57 | E88: 234.33 | F88: 229.87 | G88: 226.63 | H88: 242.03 | I88: 245.27 | J88: 249.73 | K88: 240.8 | L88: 233.1 | M88: 16.75968
A89: 79 | B89: CANFINHOME | C89: 392.1 | D89: 394.22 | E89: 386.88 | F89: 381.67 | G89: 374.33 | H89: 399.43 | I89: 406.77 | J89: 411.98 | K89: 401.55 | L89: 389 | M89: 1.82865
A90: 80 | B90: CANBK | C90: 191.7 | D90: 192.83 | E90: 189.77 | F90: 187.83 | G90: 184.77 | H90: 194.77 | I90: 197.83 | J90: 199.77 | K90: 195.9 | L90: 190.9 | M90: 80.63242
A91: 81 | B91: CAPLIPOINT | C91: 425.45 | D91: 425.68 | E91: 416.87 | F91: 408.28 | G91: 399.47 | H91: 434.27 | I91: 443.08 | J91: 451.67 | K91: 434.5 | L91: 417.1 | M91: 0.39312
A92: 82 | B92: CARBORUNIV | C92: 289.85 | D92: 287.95 | E92: 281.90 | F92: 273.95 | G92: 267.90 | H92: 295.90 | I92: 301.95 | J92: 309.90 | K92: 294 | L92: 280 | M92: 0.20036
A93: 83 | B93: CASTROLIND | C93: 120.35 | D93: 120.65 | E93: 119.70 | F93: 119.05 | G93: 118.10 | H93: 121.30 | I93: 122.25 | J93: 122.90 | K93: 121.6 | L93: 120 | M93: 6.48238
A94: 84 | B94: CEATLTD | C94: 892.2 | D94: 894.42 | E94: 883.33 | F94: 874.47 | G94: 863.38 | H94: 903.28 | I94: 914.37 | J94: 923.23 | K94: 905.5 | L94: 885.55 | M94: 1.44612
A95: 85 | B95: CENTRALBK | C95: 19 | D95: 18.97 | E95: 18.83 | F95: 18.67 | G95: 18.53 | H95: 19.13 | I95: 19.27 | J95: 19.43 | K95: 19.1 | L95: 18.8 | M95: 2.20367
A96: 86 | B96: CDSL | C96: 192.6 | D96: 192.67 | E96: 189.93 | F96: 187.27 | G96: 184.53 | H96: 195.33 | I96: 198.07 | J96: 200.73 | K96: 195.4 | L96: 190 | M96: 1.10814
A97: 87 | B97: CENTURYPLY | C97: 134.05 | D97: 134.20 | E97: 133.40 | F97: 132.75 | G97: 131.95 | H97: 134.85 | I97: 135.65 | J97: 136.30 | K97: 135 | L97: 133.55 | M97: 0.80586
A98: 88 | B98: CERA | C98: 2439.3 | D98: 2432.20 | E98: 2415.40 | F98: 2391.50 | G98: 2374.70 | H98: 2456.10 | I98: 2472.90 | J98: 2496.80 | K98: 2449 | L98: 2408.3 | M98: 0.00805
A99: 89 | B99: CHAMBLFERT | C99: 157.6 | D99: 158.97 | E99: 154.48 | F99: 151.37 | G99: 146.88 | H99: 162.08 | I99: 166.57 | J99: 169.68 | K99: 163.45 | L99: 155.85 | M99: 2.60212
A100: 90 | B100: CHENNPETRO | C100: 186.1 | D100: 187.15 | E100: 183.30 | F100: 180.50 | G100: 176.65 | H100: 189.95 | I100: 193.80 | J100: 196.60 | K100: 191 | L100: 184.35 | M100: 1.20977
A101: 91 | B101: CHOLAHLDNG | C101: 450.35 | D101: 446.45 | E101: 439.90 | F101: 429.45 | G101: 422.90 | H101: 456.90 | I101: 463.45 | J101: 473.90 | K101: 453 | L101: 436 | M101: 0.60307
A102: 92 | B102: CHOLAFIN | C102: 269.2 | D102: 269.72 | E102: 267.33 | F102: 265.47 | G102: 263.08 | H102: 271.58 | I102: 273.97 | J102: 275.83 | K102: 272.1 | L102: 267.85 | M102: 27.50665
A103: 93 | B103: CIPLA | C103: 474.9 | D103: 477.05 | E103: 471.60 | F103: 468.30 | G103: 462.85 | H103: 480.35 | I103: 485.80 | J103: 489.10 | K103: 482.5 | L103: 473.75 | M103: 16.68897
A104: 94 | B104: CUB | C104: 197.55 | D104: 196.52 | E104: 194.43 | F104: 191.32 | G104: 189.23 | H104: 199.63 | I104: 201.72 | J104: 204.83 | K104: 198.6 | L104: 193.4 | M104: 25.49404
A105: 95 | B105: COALINDIA | C105: 198.6 | D105: 196.97 | E105: 194.43 | F105: 190.27 | G105: 187.73 | H105: 201.13 | I105: 203.67 | J105: 207.83 | K105: 199.5 | L105: 192.8 | M105: 160.95238
A106: 96 | B106: COCHINSHIP | C106: 345.9 | D106: 344.93 | E106: 341.97 | F106: 338.03 | G106: 335.07 | H106: 348.87 | I106: 351.83 | J106: 355.77 | K106: 347.9 | L106: 341 | M106: 0.28913
A107: 97 | B107: COFFEEDAY | C107: 61.05 | D107: 61.05 | E107: 61.05 | F107: 61.05 | G107: 61.05 | H107: 61.05 | I107: 61.05 | J107: 61.05 | K107: 61.05 | L107: 61.05 | M107: 2.80672
A108: 98 | B108: COLPAL | C108: 1251.8 | D108: 1247.95 | E108: 1241.90 | F108: 1232.00 | G108: 1225.95 | H108: 1257.85 | I108: 1263.90 | J108: 1273.80 | K108: 1254 | L108: 1238.05 | M108: 2.35891
A109: 99 | B109: CONCOR | C109: 504.5 | D109: 508.37 | E109: 498.38 | F109: 492.27 | G109: 482.28 | H109: 514.48 | I109: 524.47 | J109: 530.58 | K109: 518.35 | L109: 502.25 | M109: 9.9508
A110: 100 | B110: COROMANDEL | C110: 382 | D110: 381.68 | E110: 379.52 | F110: 377.03 | G110: 374.87 | H110: 384.17 | I110: 386.33 | J110: 388.82 | K110: 383.85 | L110: 379.2 | M110: 0.58615
A111: 101 | B111: CORPBANK | C111: 17.05 | D111: 17.17 | E111: 16.88 | F111: 16.72 | G111: 16.43 | H111: 17.33 | I111: 17.62 | J111: 17.78 | K111: 17.45 | L111: 17 | M111: 2.89159
A112: 102 | B112: COX&KINGS | C112: 3.7 | D112: 3.70 | E112: 3.70 | F112: 3.70 | G112: 3.70 | H112: 3.70 | I112: 3.70 | J112: 3.70 | K112: 3.7 | L112: 3.7 | M112: 4.80589
A113: 103 | B113: CREDITACC | C113: 599.65 | D113: 596.92 | E113: 584.93 | F113: 570.22 | G113: 558.23 | H113: 611.63 | I113: 623.62 | J113: 638.33 | K113: 608.9 | L113: 582.2 | M113: 1.23508
A114: 104 | B114: CROMPTON | C114: 233.9 | D114: 233.03 | E114: 231.07 | F114: 228.23 | G114: 226.27 | H114: 235.87 | I114: 237.83 | J114: 240.67 | K114: 235 | L114: 230.2 | M114: 3.66826
A115: 105 | B115: CUMMINSIND | C115: 574.25 | D115: 573.47 | E115: 566.43 | F115: 558.62 | G115: 551.58 | H115: 581.28 | I115: 588.32 | J115: 596.13 | K115: 580.5 | L115: 565.65 | M115: 2.96872
A116: 106 | B116: CYIENT | C116: 436.9 | D116: 434.65 | E116: 430.30 | F116: 423.70 | G116: 419.35 | H116: 441.25 | I116: 445.60 | J116: 452.20 | K116: 439 | L116: 428.05 | M116: 0.2303
A117: 107 | B117: DBCORP | C117: 136.55 | D117: 136.30 | E117: 133.60 | F117: 130.65 | G117: 127.95 | H117: 139.25 | I117: 141.95 | J117: 144.90 | K117: 139 | L117: 133.35 | M117: 0.21055
A118: 108 | B118: DCBBANK | C118: 198.35 | D118: 199.62 | E118: 196.63 | F118: 194.92 | G118: 191.93 | H118: 201.33 | I118: 204.32 | J118: 206.03 | K118: 202.6 | L118: 197.9 | M118: 2.78095
A119: 109 | B119: DCMSHRIRAM | C119: 380.2 | D119: 380.22 | E119: 374.93 | F119: 369.67 | G119: 364.38 | H119: 385.48 | I119: 390.77 | J119: 396.03 | K119: 385.5 | L119: 374.95 | M119: 1.18951
A120: 110 | B120: DLF | C120: 154.25 | D120: 154.00 | E120: 148.45 | F120: 142.65 | G120: 137.10 | H120: 159.80 | I120: 165.35 | J120: 171.15 | K120: 159.55 | L120: 148.2 | M120: 335.59078
A121: 111 | B121: DABUR | C121: 441.3 | D121: 440.37 | E121: 438.08 | F121: 434.87 | G121: 432.58 | H121: 443.58 | I121: 445.87 | J121: 449.08 | K121: 442.65 | L121: 437.15 | M121: 5.00428
A122: 112 | B122: DEEPAKFERT | C122: 81.7 | D122: 81.82 | E122: 80.28 | F122: 78.87 | G122: 77.33 | H122: 83.23 | I122: 84.77 | J122: 86.18 | K122: 83.35 | L122: 80.4 | M122: 1.39792
A123: 113 | B123: DEEPAKNTR | C123: 276.05 | D123: 275.63 | E123: 274.52 | F123: 272.98 | G123: 271.87 | H123: 277.17 | I123: 278.28 | J123: 279.82 | K123: 276.75 | L123: 274.1 | M123: 1.12318
A124: 114 | B124: DELTACORP | C124: 176.3 | D124: 175.18 | E124: 173.02 | F124: 169.73 | G124: 167.57 | H124: 178.47 | I124: 180.63 | J124: 183.92 | K124: 177.35 | L124: 171.9 | M124: 5.19804
A125: 115 | B125: DHFL | C125: 46.6 | D125: 46.73 | E125: 45.52 | F125: 44.43 | G125: 43.22 | H125: 47.82 | I125: 49.03 | J125: 50.12 | K125: 47.95 | L125: 45.65 | M125: 92.25491
A126: 116 | B126: DBL | C126: 385.3 | D126: 382.30 | E126: 371.40 | F126: 357.50 | G126: 346.60 | H126: 396.20 | I126: 407.10 | J126: 421.00 | K126: 393.2 | L126: 368.4 | M126: 4.51121
A127: 117 | B127: DISHTV | C127: 22.75 | D127: 23.12 | E127: 21.83 | F127: 20.92 | G127: 19.63 | H127: 24.03 | I127: 25.32 | J127: 26.23 | K127: 24.4 | L127: 22.2 | M127: 355.5324
A128: 118 | B128: DCAL | C128: 176.85 | D128: 176.93 | E128: 170.92 | F128: 164.98 | G128: 158.97 | H128: 182.87 | I128: 188.88 | J128: 194.82 | K128: 182.95 | L128: 171 | M128: 1.06683
A129: 119 | B129: DIVISLAB | C129: 1637.6 | D129: 1637.78 | E129: 1620.77 | F129: 1603.93 | G129: 1586.92 | H129: 1654.62 | I129: 1671.63 | J129: 1688.47 | K129: 1654.8 | L129: 1620.95 | M129: 4.26978
A130: 120 | B130: DIXON | C130: 2516.7 | D130: 2545.72 | E130: 2465.98 | F130: 2415.27 | G130: 2335.53 | H130: 2596.43 | I130: 2676.17 | J130: 2726.88 | K130: 2625.45 | L130: 2495 | M130: 0.07393
A131: 121 | B131: LALPATHLAB | C131: 1264.95 | D131: 1259.70 | E131: 1241.40 | F131: 1217.85 | G131: 1199.55 | H131: 1283.25 | I131: 1301.55 | J131: 1325.10 | K131: 1278 | L131: 1236.15 | M131: 1.44148
A132: 122 | B132: DRREDDY | C132: 2739.95 | D132: 2720.65 | E132: 2694.35 | F132: 2648.75 | G132: 2622.45 | H132: 2766.25 | I132: 2792.55 | J132: 2838.15 | K132: 2746.95 | L132: 2675.05 | M132: 7.91834
A133: 123 | B133: EIDPARRY | C133: 149.25 | D133: 149.28 | E133: 147.82 | F133: 146.38 | G133: 144.92 | H133: 150.72 | I133: 152.18 | J133: 153.62 | K133: 150.75 | L133: 147.85 | M133: 0.64247
A134: 124 | B134: EIHOTEL | C134: 156.4 | D134: 156.70 | E134: 155.20 | F134: 154.00 | G134: 152.50 | H134: 157.90 | I134: 159.40 | J134: 160.60 | K134: 158.2 | L134: 155.5 | M134: 0.45099
A135: 125 | B135: EDELWEISS | C135: 104.8 | D135: 105.10 | E135: 103.20 | F135: 101.60 | G135: 99.70 | H135: 106.70 | I135: 108.60 | J135: 110.20 | K135: 107 | L135: 103.5 | M135: 28.30875
A136: 126 | B136: EICHERMOT | C136: 16407.25 | D136: 16212.65 | E136: 15926.30 | F136: 15445.35 | G136: 15159.00 | H136: 16693.60 | I136: 16979.95 | J136: 17460.90 | K136: 16499 | L136: 15731.7 | M136: 2.47513
A137: 127 | B137: ELGIEQUIP | C137: 249.25 | D137: 247.32 | E137: 243.13 | F137: 237.02 | G137: 232.83 | H137: 253.43 | I137: 257.62 | J137: 263.73 | K137: 251.5 | L137: 241.2 | M137: 4.21599
A138: 128 | B138: EMAMILTD | C138: 294.75 | D138: 296.30 | E138: 292.60 | F138: 290.45 | G138: 286.75 | H138: 298.45 | I138: 302.15 | J138: 304.30 | K138: 300 | L138: 294.15 | M138: 2.35017
A139: 129 | B139: ENDURANCE | C139: 950.15 | D139: 943.08 | E139: 922.67 | F139: 895.18 | G139: 874.77 | H139: 970.57 | I139: 990.98 | J139: 1018.47 | K139: 963.5 | L139: 915.6 | M139: 0.22066
A140: 130 | B140: ENGINERSIN | C140: 108.6 | D140: 108.58 | E140: 107.02 | F140: 105.43 | G140: 103.87 | H140: 110.17 | I140: 111.73 | J140: 113.32 | K140: 110.15 | L140: 107 | M140: 23.88484
A141: 131 | B141: EQUITAS | C141: 116.05 | D141: 115.80 | E141: 114.10 | F141: 112.15 | G141: 110.45 | H141: 117.75 | I141: 119.45 | J141: 121.40 | K141: 117.5 | L141: 113.85 | M141: 53.50044
A142: 132 | B142: ERIS | C142: 388.9 | D142: 387.55 | E142: 385.35 | F142: 381.80 | G142: 379.60 | H142: 391.10 | I142: 393.30 | J142: 396.85 | K142: 389.75 | L142: 384 | M142: 0.21924
A143: 133 | B143: ESCORTS | C143: 485.8 | D143: 478.17 | E143: 467.98 | F143: 450.17 | G143: 439.98 | H143: 495.98 | I143: 506.17 | J143: 523.98 | K143: 488.35 | L143: 460.35 | M143: 44.62663
A144: 134 | B144: ESSELPACK | C144: 106.2 | D144: 105.38 | E144: 104.02 | F144: 101.83 | G144: 100.47 | H144: 107.57 | I144: 108.93 | J144: 111.12 | K144: 106.75 | L144: 103.2 | M144: 1.02277
A145: 135 | B145: EXIDEIND | C145: 180.15 | D145: 179.55 | E145: 178.00 | F145: 175.85 | G145: 174.30 | H145: 181.70 | I145: 183.25 | J145: 185.40 | K145: 181.1 | L145: 177.4 | M145: 5.95688
A146: 136 | B146: FDC | C146: 162.65 | D146: 162.05 | E146: 159.70 | F146: 156.75 | G146: 154.40 | H146: 165.00 | I146: 167.35 | J146: 170.30 | K146: 164.4 | L146: 159.1 | M146: 0.17752
A147: 137 | B147: FEDERALBNK | C147: 83.15 | D147: 82.48 | E147: 81.57 | F147: 79.98 | G147: 79.07 | H147: 84.07 | I147: 84.98 | J147: 86.57 | K147: 83.4 | L147: 80.9 | M147: 79.14489
A148: 138 | B148: FINEORG | C148: 1490.95 | D148: 1488.98 | E148: 1426.97 | F148: 1362.98 | G148: 1300.97 | H148: 1552.97 | I148: 1614.98 | J148: 1678.97 | K148: 1551 | L148: 1425 | M148: 0.04323
A149: 139 | B149: FINCABLES | C149: 369.5 | D149: 367.83 | E149: 364.67 | F149: 359.83 | G149: 356.67 | H149: 372.67 | I149: 375.83 | J149: 380.67 | K149: 371 | L149: 363 | M149: 1.69401
A150: 140 | B150: FINPIPE | C150: 516.6 | D150: 511.87 | E150: 504.73 | F150: 492.87 | G150: 485.73 | H150: 523.73 | I150: 530.87 | J150: 542.73 | K150: 519 | L150: 500 | M150: 0.27309
A151: 141 | B151: FSL | C151: 48.2 | D151: 48.30 | E151: 47.90 | F151: 47.60 | G151: 47.20 | H151: 48.60 | I151: 49.00 | J151: 49.30 | K151: 48.7 | L151: 48 | M151: 6.12895
A152: 142 | B152: FORTIS | C152: 126.95 | D152: 126.05 | E152: 124.30 | F152: 121.65 | G152: 119.90 | H152: 128.70 | I152: 130.45 | J152: 133.10 | K152: 127.8 | L152: 123.4 | M152: 3.03389
A153: 143 | B153: FCONSUMER | C153: 26.3 | D153: 26.35 | E153: 25.95 | F153: 25.60 | G153: 25.20 | H153: 26.70 | I153: 27.10 | J153: 27.45 | K153: 26.75 | L153: 26 | M153: 7.55381
A154: 144 | B154: FLFL | C154: 430.1 | D154: 425.97 | E154: 418.73 | F154: 407.37 | G154: 400.13 | H154: 437.33 | I154: 444.57 | J154: 455.93 | K154: 433.2 | L154: 414.6 | M154: 0.16535
A155: 145 | B155: FRETAIL | C155: 405.6 | D155: 404.00 | E155: 400.10 | F155: 394.60 | G155: 390.70 | H155: 409.50 | I155: 413.40 | J155: 418.90 | K155: 407.9 | L155: 398.5 | M155: 5.03737
A156: 146 | B156: GAIL | C156: 131.35 | D156: 130.88 | E156: 129.72 | F156: 128.08 | G156: 126.92 | H156: 132.52 | I156: 133.68 | J156: 135.32 | K156: 132.05 | L156: 129.25 | M156: 64.05463
A157: 147 | B157: GEPIL | C157: 750.55 | D157: 753.15 | E157: 741.60 | F157: 732.65 | G157: 721.10 | H157: 762.10 | I157: 773.65 | J157: 782.60 | K157: 764.7 | L157: 744.2 | M157: 0.06887
A158: 148 | B158: GET&D | C158: 157.2 | D158: 156.38 | E158: 153.77 | F158: 150.33 | G158: 147.72 | H158: 159.82 | I158: 162.43 | J158: 165.87 | K158: 159 | L158: 152.95 | M158: 0.08969
A159: 149 | B159: GHCL | C159: 192.8 | D159: 192.58 | E159: 191.27 | F159: 189.73 | G159: 188.42 | H159: 194.12 | I159: 195.43 | J159: 196.97 | K159: 193.9 | L159: 191.05 | M159: 0.35338
A160: 150 | B160: GMRINFRA | C160: 15.55 | D160: 15.38 | E160: 15.12 | F160: 14.68 | G160: 14.42 | H160: 15.82 | I160: 16.08 | J160: 16.52 | K160: 15.65 | L160: 14.95 | M160: 100.90076
A161: 151 | B161: GALAXYSURF | C161: 1281.8 | D161: 1287.83 | E161: 1269.67 | F161: 1257.53 | G161: 1239.37 | H161: 1299.97 | I161: 1318.13 | J161: 1330.27 | K161: 1306 | L161: 1275.7 | M161: 0.04044
A162: 152 | B162: GDL | C162: 105.75 | D162: 104.23 | E162: 101.67 | F162: 97.58 | G162: 95.02 | H162: 108.32 | I162: 110.88 | J162: 114.97 | K162: 106.8 | L162: 100.15 | M162: 1.65181
A163: 153 | B163: GAYAPROJ | C163: 110.45 | D163: 110.13 | E163: 108.42 | F163: 106.38 | G163: 104.67 | H163: 112.17 | I163: 113.88 | J163: 115.92 | K163: 111.85 | L163: 108.1 | M163: 0.40884
A164: 154 | B164: GICRE | C164: 173.45 | D164: 173.02 | E164: 171.03 | F164: 168.62 | G164: 166.63 | H164: 175.43 | I164: 177.42 | J164: 179.83 | K164: 175 | L164: 170.6 | M164: 0.64196
A165: 155 | B165: GILLETTE | C165: 7102.5 | D165: 7117.15 | E165: 7060.35 | F165: 7018.20 | G165: 6961.40 | H165: 7159.30 | I165: 7216.10 | J165: 7258.25 | K165: 7173.95 | L165: 7075 | M165: 0.06145
A166: 156 | B166: GSKCONS | C166: 7860.05 | D166: 7883.03 | E166: 7806.12 | F166: 7752.18 | G166: 7675.27 | H166: 7936.97 | I166: 8013.88 | J166: 8067.82 | K166: 7959.95 | L166: 7829.1 | M166: 0.1494
A167: 157 | B167: GLAXO | C167: 1278.35 | D167: 1272.13 | E167: 1256.42 | F167: 1234.48 | G167: 1218.77 | H167: 1294.07 | I167: 1309.78 | J167: 1331.72 | K167: 1287.85 | L167: 1250.2 | M167: 0.40944
A168: 158 | B168: GLENMARK | C168: 390.95 | D168: 389.03 | E168: 384.32 | F168: 377.68 | G168: 372.97 | H168: 395.67 | I168: 400.38 | J168: 407.02 | K168: 393.75 | L168: 382.4 | M168: 6.75693
A169: 159 | B169: GODFRYPHLP | C169: 981.4 | D169: 982.05 | E169: 971.30 | F169: 961.20 | G169: 950.45 | H169: 992.15 | I169: 1002.90 | J169: 1013.00 | K169: 992.8 | L169: 971.95 | M169: 0.56063
A170: 160 | B170: GODREJAGRO | C170: 462.05 | D170: 458.52 | E170: 452.53 | F170: 443.02 | G170: 437.03 | H170: 468.03 | I170: 474.02 | J170: 483.53 | K170: 464.5 | L170: 449 | M170: 0.25983
A171: 161 | B171: GODREJCP | C171: 599.5 | D171: 598.85 | E171: 588.55 | F171: 577.60 | G171: 567.30 | H171: 609.80 | I171: 620.10 | J171: 631.05 | K171: 609.15 | L171: 587.9 | M171: 7.02374
A172: 162 | B172: GODREJIND | C172: 400.1 | D172: 399.87 | E172: 397.73 | F172: 395.37 | G172: 393.23 | H172: 402.23 | I172: 404.37 | J172: 406.73 | K172: 402 | L172: 397.5 | M172: 0.85612
A173: 163 | B173: GODREJPROP | C173: 885.75 | D173: 885.80 | E173: 880.10 | F173: 874.45 | G173: 868.75 | H173: 891.45 | I173: 897.15 | J173: 902.80 | K173: 891.5 | L173: 880.15 | M173: 0.65134
A174: 164 | B174: GRANULES | C174: 92.45 | D174: 92.45 | E174: 91.15 | F174: 89.85 | G174: 88.55 | H174: 93.75 | I174: 95.05 | J174: 96.35 | K174: 93.75 | L174: 91.15 | M174: 3.06769
A175: 165 | B175: GRAPHITE | C175: 272.55 | D175: 272.87 | E175: 270.73 | F175: 268.92 | G175: 266.78 | H175: 274.68 | I175: 276.82 | J175: 278.63 | K175: 275 | L175: 271.05 | M175: 6.67081
A176: 166 | B176: GRASIM | C176: 703.7 | D176: 704.93 | E176: 698.42 | F176: 693.13 | G176: 686.62 | H176: 710.22 | I176: 716.73 | J176: 722.02 | K176: 711.45 | L176: 699.65 | M176: 12.4853
A177: 167 | B177: GESHIP | C177: 245.6 | D177: 244.10 | E177: 241.55 | F177: 237.50 | G177: 234.95 | H177: 248.15 | I177: 250.70 | J177: 254.75 | K177: 246.65 | L177: 240.05 | M177: 0.23149
A178: 168 | B178: GREAVESCOT | C178: 127.85 | D178: 127.68 | E178: 124.62 | F178: 121.38 | G178: 118.32 | H178: 130.92 | I178: 133.98 | J178: 137.22 | K178: 130.75 | L178: 124.45 | M178: 3.99228
A179: 169 | B179: GRINDWELL | C179: 557.75 | D179: 555.92 | E179: 553.83 | F179: 549.92 | G179: 547.83 | H179: 559.83 | I179: 561.92 | J179: 565.83 | K179: 558 | L179: 552 | M179: 0.03102
A180: 170 | B180: GRUH | C180: 246.05 | D180: 245.95 | E180: 242.10 | F180: 238.15 | G180: 234.30 | H180: 249.90 | I180: 253.75 | J180: 257.70 | K180: 249.8 | L180: 242 | M180: 5.41945
A181: 171 | B181: GUJALKALI | C181: 418.4 | D181: 418.27 | E181: 412.73 | F181: 407.07 | G181: 401.53 | H181: 423.93 | I181: 429.47 | J181: 435.13 | K181: 423.8 | L181: 412.6 | M181: 0.27549
A182: 172 | B182: GUJGASLTD | C182: 173 | D182: 173.03 | E182: 171.47 | F182: 169.93 | G182: 168.37 | H182: 174.57 | I182: 176.13 | J182: 177.67 | K182: 174.6 | L182: 171.5 | M182: 3.90236
A183: 173 | B183: GMDCLTD | C183: 66.05 | D183: 65.53 | E183: 64.57 | F183: 63.08 | G183: 62.12 | H183: 67.02 | I183: 67.98 | J183: 69.47 | K183: 66.5 | L183: 64.05 | M183: 1.09493
A184: 174 | B184: GNFC | C184: 184 | D184: 182.75 | E184: 179.50 | F184: 175.00 | G184: 171.75 | H184: 187.25 | I184: 190.50 | J184: 195.00 | K184: 186 | L184: 178.25 | M184: 2.89332
A185: 175 | B185: GPPL | C185: 83.1 | D185: 82.02 | E185: 79.63 | F185: 76.17 | G185: 73.78 | H185: 85.48 | I185: 87.87 | J185: 91.33 | K185: 84.4 | L185: 78.55 | M185: 0.8497
A186: 176 | B186: GSFC | C186: 76.1 | D186: 76.15 | E186: 75.30 | F186: 74.50 | G186: 73.65 | H186: 76.95 | I186: 77.80 | J186: 78.60 | K186: 77 | L186: 75.35 | M186: 3.77602
A187: 177 | B187: GSPL | C187: 218.8 | D187: 219.27 | E187: 217.23 | F187: 215.67 | G187: 213.63 | H187: 220.83 | I187: 222.87 | J187: 224.43 | K187: 221.3 | L187: 217.7 | M187: 4.18609
A188: 178 | B188: GULFOILLUB | C188: 854.45 | D188: 855.97 | E188: 844.93 | F188: 835.42 | G188: 824.38 | H188: 865.48 | I188: 876.52 | J188: 886.03 | K188: 867 | L188: 846.45 | M188: 0.0989
A189: 179 | B189: HEG | C189: 1025.4 | D189: 1025.52 | E189: 1015.03 | F189: 1004.67 | G189: 994.18 | H189: 1035.88 | I189: 1046.37 | J189: 1056.73 | K189: 1036 | L189: 1015.15 | M189: 1.79165
A190: 180 | B190: HCLTECH | C190: 1100.4 | D190: 1106.17 | E190: 1091.18 | F190: 1081.97 | G190: 1066.98 | H190: 1115.38 | I190: 1130.37 | J190: 1139.58 | K190: 1121.15 | L190: 1096.95 | M190: 10.37843
A191: 181 | B191: HDFCAMC | C191: 2611.25 | D191: 2617.07 | E191: 2590.28 | F191: 2569.32 | G191: 2542.53 | H191: 2638.03 | I191: 2664.82 | J191: 2685.78 | K191: 2643.85 | L191: 2596.1 | M191: 2.51312
A192: 182 | B192: HDFCBANK | C192: 2245.9 | D192: 2241.27 | E192: 2225.93 | F192: 2205.97 | G192: 2190.63 | H192: 2261.23 | I192: 2276.57 | J192: 2296.53 | K192: 2256.6 | L192: 2221.3 | M192: 32.17501
A193: 183 | B193: HDFCLIFE | C193: 529.9 | D193: 531.30 | E193: 526.60 | F193: 523.30 | G193: 518.60 | H193: 534.60 | I193: 539.30 | J193: 542.60 | K193: 536 | L193: 528 | M193: 16.41066
A194: 184 | B194: HATHWAY | C194: 28.5 | D194: 29.32 | E194: 27.38 | F194: 26.27 | G194: 24.33 | H194: 30.43 | I194: 32.37 | J194: 33.48 | K194: 31.25 | L194: 28.2 | M194: 14.79109
A195: 185 | B195: HATSUN | C195: 618.15 | D195: 613.60 | E195: 597.30 | F195: 576.45 | G195: 560.15 | H195: 634.45 | I195: 650.75 | J195: 671.60 | K195: 629.9 | L195: 592.75 | M195: 0.0273
A196: 186 | B196: HAVELLS | C196: 659.85 | D196: 659.40 | E196: 653.45 | F196: 647.05 | G196: 641.10 | H196: 665.80 | I196: 671.75 | J196: 678.15 | K196: 665.35 | L196: 653 | M196: 7.51108
A197: 187 | B197: HEIDELBERG | C197: 190.4 | D197: 192.28 | E197: 187.62 | F197: 184.83 | G197: 180.17 | H197: 195.07 | I197: 199.73 | J197: 202.52 | K197: 196.95 | L197: 189.5 | M197: 3.31071
A198: 188 | B198: HERITGFOOD | C198: 377.9 | D198: 378.95 | E198: 373.90 | F198: 369.90 | G198: 364.85 | H198: 382.95 | I198: 388.00 | J198: 392.00 | K198: 384 | L198: 374.95 | M198: 0.2428
A199: 189 | B199: HEROMOTOCO | C199: 2659.95 | D199: 2640.02 | E199: 2610.03 | F199: 2560.12 | G199: 2530.13 | H199: 2689.93 | I199: 2719.92 | J199: 2769.83 | K199: 2670 | L199: 2590.1 | M199: 10.21359
A200: 190 | B200: HEXAWARE | C200: 386.85 | D200: 389.00 | E200: 382.45 | F200: 378.05 | G200: 371.50 | H200: 393.40 | I200: 399.95 | J200: 404.35 | K200: 395.55 | L200: 384.6 | M200: 7.98325
A201: 191 | B201: HFCL | C201: 18.95 | D201: 18.85 | E201: 18.55 | F201: 18.15 | G201: 17.85 | H201: 19.25 | I201: 19.55 | J201: 19.95 | K201: 19.15 | L201: 18.45 | M201: 29.05018
A202: 192 | B202: HSCL | C202: 73 | D202: 74.07 | E202: 71.63 | F202: 70.27 | G202: 67.83 | H202: 75.43 | I202: 77.87 | J202: 79.23 | K202: 76.5 | L202: 72.7 | M202: 7.83979
A203: 193 | B203: HIMATSEIDE | C203: 137.8 | D203: 136.73 | E203: 133.72 | F203: 129.63 | G203: 126.62 | H203: 140.82 | I203: 143.83 | J203: 147.92 | K203: 139.75 | L203: 132.65 | M203: 1.21006
A204: 194 | B204: HINDALCO | C204: 188.4 | D204: 186.70 | E204: 183.70 | F204: 179.00 | G204: 176.00 | H204: 191.40 | I204: 194.40 | J204: 199.10 | K204: 189.7 | L204: 182 | M204: 55.70553
A205: 195 | B205: HAL | C205: 673.4 | D205: 669.35 | E205: 663.10 | F205: 652.80 | G205: 646.55 | H205: 679.65 | I205: 685.90 | J205: 696.20 | K205: 675.6 | L205: 659.05 | M205: 0.08287
A206: 196 | B206: HINDCOPPER | C206: 33.9 | D206: 33.82 | E206: 33.28 | F206: 32.67 | G206: 32.13 | H206: 34.43 | I206: 34.97 | J206: 35.58 | K206: 34.35 | L206: 33.2 | M206: 7.71025
... 320 more rows

Sheet Bulk Deals
E6: Back To Main Page
A7: Subject : | B7: BULK DEAL | D7: =Main!B10 -> 2019-09-09
A9: Date | B9: Scrip code | C9: Scrip Name | D9: Client Name | E9: Buy / Sell | F9: Quantity Traded | G9: Trade Price / Wt.Avg.trade price | H9: Exchange
A10: 2019-09-06 | B10: 541144 | C10: ACTIVE | D10: SMITH AND THOMSON REALTY PRIVATE LIMITED | E10: SELL | F10: 110,000 | G10: 15.78 | H10: BSE
A11: 2019-09-06 | B11: 540697 | C11: AMFL | D11: TEJAS HARSHADBHAI PATEL | E11: BUY | F11: 128,000 | G11: 9.06 | H11: BSE
A12: 2019-09-06 | B12: 540697 | C12: AMFL | D12: NISHA JIGARBHAI SHAH | E12: SELL | F12: 120,000 | G12: 9.06 | H12: BSE
A13: 2019-09-06 | B13: 504340 | C13: CONFINT | D13: DINESH NATHA PAGI | E13: SELL | F13: 139,881 | G13: 0.64 | H13: BSE
A14: 2019-09-06 | B14: 504340 | C14: CONFINT | D14: MANOJNAGINLALJAIN | E14: BUY | F14: 205,832 | G14: 0.65 | H14: BSE
A15: 2019-09-06 | B15: 504340 | C15: CONFINT | D15: SHIV RATAN BHAUKA | E15: SELL | F15: 96,000 | G15: 0.66 | H15: BSE
A16: 2019-09-06 | B16: 540268 | C16: DHANVARSHA | D16: YAN SECURITIES | E16: BUY | F16: 200,000 | G16: 53.5 | H16: BSE
A17: 2019-09-06 | B17: 540268 | C17: DHANVARSHA | D17: DAHIBEN DWARKADAS PATEL | E17: SELL | F17: 136,199 | G17: 53.50 | H17: BSE
A18: 2019-09-06 | B18: 540268 | C18: DHANVARSHA | D18: MUKUL RATILAL TELI | E18: SELL | F18: 74,076 | G18: 53.50 | H18: BSE
A19: 2019-09-06 | B19: 541627 | C19: HITECHWIND | D19: RUPAL BHAVIN SHAH | E19: BUY | F19: 26,300 | G19: 9.40 | H19: BSE
A20: 2019-09-06 | B20: 541627 | C20: HITECHWIND | D20: DAXABEN PRAVINBHAI SHAH | E20: SELL | F20: 26,300 | G20: 9.4 | H20: BSE
A21: 2019-09-06 | B21: 538765 | C21: JSHL | D21: AVINASH TIWARI | E21: SELL | F21: 35,000 | G21: 7.64 | H21: BSE
A22: 2019-09-06 | B22: 538765 | C22: JSHL | D22: MANISHA SINHA | E22: SELL | F22: 65,000 | G22: 7.61 | H22: BSE
A23: 2019-09-06 | B23: 519003 | C23: MODINATUR | D23: OWN INFRACON PRIVATE LIMITED | E23: BUY | F23: 365,385 | G23: 33.55 | H23: BSE
A24: 2019-09-06 | B24: 519003 | C24: MODINATUR | D24: PENTAGON BUILDERS PVT LTD | E24: SELL | F24: 365,385 | G24: 33.55 | H24: BSE
A25: 2019-09-06 | B25: 538860 | C25: PANAFIC | D25: COMPETENT FINLEASE PVT LTD | E25: SELL | F25: 993,435 | G25: 0.28 | H25: BSE
A26: 2019-09-06 | B26: 538860 | C26: PANAFIC | D26: WEEKLINE INVESTMENT AND TRADING COMPANY LIMITED | E26: BUY | F26: 993,436 | G26: 0.28 | H26: BSE
A27: 2019-09-06 | B27: 539143 | C27: PANTH | D27: PANKAJ LABHUBHAI DANGAR | E27: BUY | F27: 63,450 | G27: 129.45 | H27: BSE
A28: 2019-09-06 | B28: 539143 | C28: PANTH | D28: PANKAJ LABHUBHAI DANGAR | E28: SELL | F28: 2,005 | G28: 128 | H28: BSE
A29: 2019-09-06 | B29: 542725 | C29: SBC | D29: NEERAJ KUMAR & SONS (HUF) | E29: BUY | F29: 84,000 | G29: 24.18 | H29: BSE
A30: 2019-09-06 | B30: 542765 | C30: TRANSPACT | D30: ARYAMAN BROKING LIMITED | E30: BUY | F30: 4,000 | G30: 131 | H30: BSE
A31: 2019-09-06 | B31: 539097 | C31: YOGYA | D31: MEET PARESH SHAH | E31: BUY | F31: 32,000 | G31: 35.28 | H31: BSE
A32: 2019-09-06 | B32: 539097 | C32: YOGYA | D32: MEET PARESH SHAH | E32: SELL | F32: 16,000 | G32: 33.9 | H32: BSE
A33: 2019-09-06 | B33: BCP | C33: B.C. Power Controls Ltd | D33: SILVERTOSS SHOPPERS PRIVATE LIMITED | E33: BUY | F33: 1,000,000 | G33: 9.7 | H33: NSE
A34: 2019-09-06 | B34: DGCONTENT | C34: Digicontent Limited | D34: UNIQUE COMTRADE PRIVATE LIMITED | E34: BUY | F34: 450,000 | G34: 6.3 | H34: NSE
A35: 2019-09-06 | B35: HIGHGROUND | C35: High Ground Entp Ltd | D35: UNITY FIN-CAP P. LTD | E35: BUY | F35: 1,000,000 | G35: 1.3 | H35: NSE
A36: 2019-09-06 | B36: KARURVYSYA | C36: Karur Vysya Bank Ltd | D36: DOVETAIL INDIA FUND CLASS 6 SHARES | E36: BUY | F36: 12,738,453 | G36: 57.25 | H36: NSE
A37: 2019-09-06 | B37: NACLIND | C37: NACL Industries Ltd | D37: DOVETAIL INDIA FUND CLASS 11 SHARES | E37: BUY | F37: 1,371,847 | G37: 26.28 | H37: NSE
A38: 2019-09-06 | B38: RELCAPITAL | C38: Reliance Capital Limited | D38: TOWER RESEARCH CAPITAL MARKETS INDIA PRIVATE LIMITED | E38: BUY | F38: 2,780,012 | G38: 34.96 | H38: NSE
A39: 2019-09-06 | B39: RELCAPITAL | C39: Reliance Capital Limited | D39: MANSINGH HOTELS AND RESORTS LIMITED | E39: BUY | F39: 1,868,915 | G39: 34.78 | H39: NSE
A40: 2019-09-06 | B40: RELINFRA | C40: Reliance Infrastructu Ltd | D40: TOWER RESEARCH CAPITAL MARKETS INDIA PRIVATE LIMITED | E40: BUY | F40: 2,025,060 | G40: 37.26 | H40: NSE
A41: 2019-09-06 | B41: SHANKARA | C41: Shankara Bldg Product Ltd | D41: ANKITA VISHAL SHAH | E41: BUY | F41: 123,834 | G41: 358.99 | H41: NSE
A42: 2019-09-06 | B42: YESBANK | C42: Yes Bank Limited | D42: TOWER RESEARCH CAPITAL MARKETS INDIA PRIVATE LIMITED | E42: BUY | F42: 14,164,732 | G42: 60.98 | H42: NSE
A43: 2019-09-06 | B43: BCP | C43: B.C. Power Controls Ltd | D43: PALAK BIPIN SHAH | E43: SELL | F43: 300,000 | G43: 9.7 | H43: NSE
A44: 2019-09-06 | B44: BCP | C44: B.C. Power Controls Ltd | D44: BON LON PVT LTD | E44: SELL | F44: 580,000 | G44: 9.63 | H44: NSE
A45: 2019-09-06 | B45: CKPLEISURE | C45: CKP Leisure Limited | D45: SAVASTHI INVESTMENTS LTD | E45: SELL | F45: 88,000 | G45: 5.04 | H45: NSE
A46: 2019-09-06 | B46: HIGHGROUND | C46: High Ground Entp Ltd | D46: HIGH GROUND PRODUCTIONS PVT. LTD. | E46: SELL | F46: 1,000,000 | G46: 1.3 | H46: NSE
A47: 2019-09-06 | B47: KARURVYSYA | C47: Karur Vysya Bank Ltd | D47: SAIF INDIA IV FII HOLDINGS LIMITED | E47: SELL | F47: 11,095,729 | G47: 57.01 | H47: NSE
A48: 2019-09-06 | B48: RELCAPITAL | C48: Reliance Capital Limited | D48: TOWER RESEARCH CAPITAL MARKETS INDIA PRIVATE LIMITED | E48: SELL | F48: 2,780,012 | G48: 34.9 | H48: NSE
A49: 2019-09-06 | B49: RELCAPITAL | C49: Reliance Capital Limited | D49: MANSINGH HOTELS AND RESORTS LIMITED | E49: SELL | F49: 1,912,915 | G49: 34.87 | H49: NSE
A50: 2019-09-06 | B50: RELINFRA | C50: Reliance Infrastructu Ltd | D50: TOWER RESEARCH CAPITAL MARKETS INDIA PRIVATE LIMITED | E50: SELL | F50: 2,025,060 | G50: 37.24 | H50: NSE
A51: 2019-09-06 | B51: SHANKARA | C51: Shankara Bldg Product Ltd | D51: ANKITA VISHAL SHAH | E51: SELL | F51: 105,834 | G51: 358.93 | H51: NSE
A52: 2019-09-06 | B52: YESBANK | C52: Yes Bank Limited | D52: TOWER RESEARCH CAPITAL MARKETS INDIA PRIVATE LIMITED | E52: SELL | F52: 14,164,732 | G52: 60.98 | H52: NSE

Sheet Call Tracker (Equity & F&O)
M5: Back To Main Page
A6: Retail Research Technical Calls & Fundamental Performance Report for the month of September-2019
M7: =Main!B10 -> 2019-09-09
B8: Positional Call
A9: Sr.no | B9: Date | D9: Company | E9: Rec | F9: Rec Price | G9: Stop Loss*** | H9: Call Closed At | I9: Target | J9: Remark | K9: Profit / Loss per Share | L9: Gain / Loss % | M9: Status | N9: Closed Date | O9: NSE Closed Price
A10: 1 | B10: 2019-08-01 | D10: HDFCBANK | E10: Buy | F10: 2205-2215 | G10: 2130 | I10: 2320-2370 | J10: Open | O10: =VLOOKUP(D10,Sheet2!A25:M1664,6,0) -> 2245.9 | R10: H
A11: 2 | B11: 2019-08-02 | D11: LT | E11: Buy | F11: 1345-1355 | G11: 1270 | I11: 1500 | J11: Open | O11: =VLOOKUP(D11,Sheet2!A26:M1665,6,0) -> 1328.65 | R11: H
A12: 3 | B12: 2019-08-09 | D12: TATACHEM | E12: Buy | F12: 566 | G12: 534 | H12: 583.5 | I12: 620-640 | J12: Profit of Rs.17.50/- | K12: =H12-F12 -> 17.5 | L12: =K12/F12 -> 3.09% | M12: Successful | N12: 2019-09-05 | R12: H
A13: 4 | B13: 2019-08-19 | D13: TATAELXSI | E13: Buy | F13: 635 | G13: 597 | H13: 660.5 | I13: 700-720 | J13: Part Profit of Rs.25.50/- | K13: =H13-F13 -> 25.5 | L13: =K13/F13 -> 4.02% | M13: Successful | N13: 2019-08-27 | O13: =VLOOKUP(D13,Sheet2!A36:M1675,6,0) -> 629.7 | R13: R
A14: 5 | B14: 2019-08-23 | D14: IOC | E14: Buy | F14: 122.5 | G14: 114.4 | H14: 122.75 | I14: 135 | J14: Neutral | K14: =H14-F14 -> 0.25 | L14: =K14/F14 -> 0.20% | M14: Neutral | N14: 2019-09-03 | R14: H
A15: 6 | B15: 2019-08-30 | D15: BIOCON | E15: Buy | F15: 229.5 | G15: 214.3 | H15: 237 | I15: 255-260 | J15: Part Profit of Rs.7.5/- | K15: =H15-F15 -> 7.5 | L15: =K15/F15 -> 3.27% | M15: Successful | N15: 2019-08-30 | O15: =VLOOKUP(D15,Sheet2!A38:M1677,6,0) -> 236.45 | R15: R
A16: 7 | B16: 2019-09-03 | D16: POWERGRID | E16: Buy | F16: 197-199 | G16: 186 | I16: 220-224 | J16: Open | O16: =VLOOKUP(D16,Sheet2!A31:M1670,6,0) -> 203.5 | R16: R
A17: 8 | B17: 2019-09-04 | D17: JUSTDIAL | E17: Buy | F17: 707-712 | G17: 673 | I17: 775-785 | J17: Open | O17: =VLOOKUP(D17,Sheet2!A32:M1671,6,0) -> 707.25 | R17: R
A30: CLBS = Closing Basis *** | F30: Reinitiated $
A31: Dividend adjusted <> | F31: Revised stoploss #
A32: Part book {}
B34: Momentum Call
A35: Sr.no | B35: Date | D35: Company | E35: Rec | F35: Rec Price | G35: Stop Loss | H35: Call Closed At | I35: Target | J35: Remark | K35: Profit / Loss per Share/Lot | L35: Gain / Loss % | M35: Gain / Loss per Lot | N35: Lot | O35: Status | P35: Closed Date
A36: 1 | B36: 2019-08-30 | D36: INFY | E36: Sell | F36: 805 | G36: 822 | H36: 827.5 | I36: 760 | J36: Loss of Rs.22.5/- | K36: =F36-H36 -> -22.5 | L36: =K36/F36 -> -2.80% | O36: Unsuccessful | P36: 2019-09-05 | R36: H
A37: 2 | B37: 2019-09-03 | D37: CONCOR SEP FUT | E37: Buy | F37: 498 | G37: 488 | H37: 503 | I37: 515 | J37: Profit of Rs.5/- | K37: =H37-F37 -> 5 | M37: =N37*K37 -> 7815 | N37: 1563 | O37: Successful | P37: 2019-09-03 | R37: N
A38: 3 | B38: 2019-09-03 | D38: DABUR | E38: Sell | F38: 451 | G38: 464 | H38: 446 | I38: 435-430 | J38: Profit of Rs.5/- | K38: =F38-H38 -> 5 | L38: =K38/F38 -> 1.11% | O38: Successful | P38: 2019-09-03 | R38: H
A39: 4 | B39: 2019-09-03 | D39: NIFTY SEP FUT | E39: Buy | F39: 10845 | G39: 10740 | H39: 10905 | I39: 10980-11000 | J39: Profit of Rs.60/- | K39: =H39-F39 -> 60 | M39: =N39*K39 -> 4500 | N39: 75 | O39: Successful | P39: 2019-09-04 | R39: R
A40: 5 | B40: 2019-09-03 | D40: BANKNIFTY SEP FUT | E40: Buy | F40: 26870 | G40: 26580 | H40: 27070 | I40: 27000-27100 | J40: Profit of Rs.200/- | K40: 200 | M40: =N40*K40 -> 4000 | N40: 20 | O40: Successful | P40: 2019-09-04 | R40: R
A41: 6 | B41: 2019-09-04 | D41: HDFCBANK SEP FUT | E41: Buy | F41: 2210 | G41: 2167 | H41: 2242.5 | I41: 2270 | J41: Profit of Rs.32.50/- | K41: 32.5 | M41: 8125 | N41: 250 | O41: Successful | P41: 2019-09-04 | R41: R
A42: 7 | B42: 2019-09-04 | D42: BANKBARODA | E42: Buy | F42: 92 | G42: 88.7 | H42: 93.7 | I42: 96-98 | J42: Profit of Rs.5/- | K42: 1.7 | L42: =K42/F42 -> 1.85% | O42: Successful | P42: 2019-09-04 | R42: R
A43: 8 | B43: 2019-09-04 | D43: ICICIBANK SEP FUT | E43: Buy | F43: 396 | G43: 386 | H43: 401.5 | I43: 410 | J43: Profit of Rs.5.50/- | K43: 5.5 | M43: =N43*K43 -> 7562.5 | N43: 1375 | O43: Successful | P43: 2019-09-04 | R43: N
A44: 9 | B44: 2019-09-04 | D44: CONCOR SEP FUT | E44: Buy | F44: 493 | G44: 484 | H44: 498 | I44: 510 | J44: Profit of Rs.5/- | K44: 5 | M44: =N44*K44 -> 7815 | N44: 1563 | O44: Successful | P44: 2019-09-04 | R44: N
A45: 10 | B45: 2019-09-04 | D45: DABUR SEP FUT | E45: Buy | F45: 436.5 | G45: 426 | H45: 444 | I45: 455 | J45: Profit of Rs.7.5/- | K45: 7.5 | M45: =N45*K45 -> 9375 | N45: 1250 | O45: Successful | P45: 2019-09-04 | R45: N
A46: 11 | B46: 2019-09-05 | D46: COLPAL SEP FUT | E46: Buy | F46: 1243-1247 | G46: 1228 | I46: 1270 | J46: Open | R46: N
A47: 12 | B47: 2019-09-05 | D47: SBIN | E47: Buy | F47: 271-274 | G47: 264 | I47: 285-290 | J47: Open | R47: H
A48: 13 | B48: 2019-09-05 | D48: PFC | E48: Buy | F48: 106.5 | G48: 104 | H48: 104 | I48: 112-114 | J48: Loss of Rs.2.5/- | K48: =H48-F48 -> -2.5 | L48: =K48/F48 -> -2.35% | O48: Unsuccessful | P48: 2019-09-05 | R48: H
A49: 14 | B49: 2019-09-05 | D49: M&M SEP FUT | E49: Buy | F49: 517 | G49: 505 | H49: 524 | I49: 535 | J49: Profit of Rs.7/- | K49: =H49-F49 -> 7 | M49: =N49*K49 -> 7000 | N49: 1000 | O49: Successful | P49: 2019-09-06 | R49: N
A50: 15 | B50: 2019-09-05 | D50: POWERGRID SEP FUT | E50: Buy | F50: 198.5 | G50: 195 | H50: 200.5 | I50: 206 | J50: Profit of Rs.2/- | K50: =H50-F50 -> 2 | M50: =N50*K50 -> 8000 | N50: 4000 | O50: Successful | P50: 2019-09-05 | R50: N
A51: 16 | B51: 2019-09-05 | D51: YESBANK | E51: Buy | F51: 61-61.40 | G51: 59.7 | I51: 65 | J51: Open | R51: R
A52: 17 | B52: 2019-09-06 | D52: HDFC | E52: Buy | F52: 2025-2030 | G52: 1980 | I52: 2100-2120 | J52: Open | R52: H
A53: 18 | B53: 2019-09-06 | D53: BATAINDIA SEP FUT | E53: Buy | F53: 1529-1533 | G53: 1510 | I53: 1560-1570 | J53: Open | R53: N
A54: 19 | B54: 2019-09-06 | D54: TORNTPOWER SEP FUT | E54: Sell | F54: 274.50-275.50 | G54: 279 | I54: 266 | J54: Open | R54: N
B55: 2019-09-06 | D55: CONCOR SEP FUT | E55: Buy | F55: 504-506 | G55: 495 | I55: 520-525 | J55: Open | R55: N
A74: CLBS = Closing Basis ***
A75: Dividend adjusted <> | F75: Reinitiated $
F76: Revised stoploss #
A78: Master Trade High Risk
A79: Sr.no | B79: Date | D79: Company | E79: Rec | F79: Rec Price | G79: Stop Loss | H79: Call Closed At | I79: Target | J79: Remark | K79: Profit / Loss per share | L79: Gain / Loss per Lot | M79: Lot | N79: Status | O79: Closed Date
A80: 1 | B80: 2019-09-05 | D80: HEROMOTOCO SEP FUT | E80: Buy | F80: 2595 | G80: 2490 | H80: 2645 | I80: 2750 | J80: Profit of Rs.42.5/- | K80: =H80-F80 -> 50 | L80: =M80*42.5 -> 8500 | M80: 200 | N80: Successful | O80: 2019-09-06 | R80: H
D81: HEROMOTOCO SEP 2700 CE | E81: Sell | F81: 40 | H81: 47.5 | K81: =F81-H81 -> -7.5 | R81: H
A88: Master Trade Medium Risk
A89: Sr.no | B89: Date | D89: Company | E89: Rec | F89: Rec Price | G89: Stop Loss | H89: Call Closed At | I89: Target | J89: Remark | K89: Profit/ Loss per lot | L89: Gain / Loss per Lot | M89: Lot | N89: Status | O89: Closed Date
A90: 1 | B90: 2019-09-03 | D90: NIFTY 05-Sep 11000 CE | E90: Buy | F90: 38 | G90: 19 | H90: 49 | I90: 80 | J90: Profit of Rs.11/- | K90: =H90-F90 -> 11 | L90: =K90*M90 -> 825 | M90: 75 | N90: Successful | O90: 2019-09-03 | R90: H
A91: 2 | B91: 2019-09-03 | D91: NIFTY 05-Sep 11000 CE | E91: Buy | F91: 38 | G91: 19 | H91: 27 | I91: 80 | J91: Loss of Rs.11/- | K91: =H91-F91 -> -11 | L91: =K91*M91 -> -825 | M91: 75 | N91: Unsuccessful | O91: 2019-09-03 | R91: H
A92: 3 | B92: 2019-09-03 | D92: NIFTY 05-Sep 10900 CE | E92: Buy | F92: 41 | G92: 27 | H92: 28 | I92: 70-75 | J92: Loss of Rs.13/- | K92: =H92-F92 -> -13 | L92: =K92*M92 -> -975 | M92: 75 | N92: Unsuccessful | O92: 2019-09-04 | R92: H
A93: 4 | B93: 2019-09-05 | D93: NIFTY 12-Sep 11000 CE | E93: Buy | F93: 40 | G93: 22 | H93: 51 | I93: 70-75 | J93: Profit of Rs.11/- | K93: 11 | L93: 825 | M93: 75 | N93: Successful | O93: 2019-09-06 | R93: H
A94: 5 | B94: 2019-09-06 | D94: M&M Sep 530 CE | E94: Buy | F94: 11.5 | G94: 6 | H94: 13.75 | I94: 20 | J94: Profit of Rs.2.25/- | K94: 2.25 | L94: 2250 | M94: 1000 | N94: Successful | O94: 2019-09-06 | R94: H
A100: Techno -Funda (positional)
A101: Sr.no | B101: Date | D101: Company | E101: Rec | F101: Rec Price | G101: Stop Loss*** | H101: Call Closed At | I101: Target | J101: Remark | K101: Profit / Loss per Share | L101: Gain / Loss % | M101: Status | N101: Closed Date | O101: NSE Closed Price
A102: 1 | B102: 2019-08-13 | D102: ITC | E102: Buy | F102: 246-248 | G102: 228 | I102: 290-300 | J102: Open | O102: =VLOOKUP(D102,Sheet2!A131:M1770,6,0) -> 243.9
A106: CLBS = Closing Basis *** | F106: Reinitiated $
A107: Dividend adjusted <> | F107: Revised stoploss #
B112: Investment Idea
A113: Sr.no | B113: Date | D113: Company | E113: Rec | F113: Rec Price | G113: Point of Review | H113: Close Rate | I113: Target | J113: Remark | K113: Profit / Loss per Share | L113: Gain / Loss % | M113: Status | N113: Closed Date
A114: 1 | B114: 2013-11-01 | D114: L&T Finance Holding | E114: Accu | F114: 82.00 | G114: - | H114: 100 | I114: 100.00 | J114: Target Achieved | K114: =H114-F114 -> 18.00 | L114: =K114/F114 -> 21.95% | M114: Successful | N114: 2016-10-14
A115: 2 | B115: 2014-06-04 | D115: Finolex Inds | E115: Buy | F115: 257.00 | G115: - | H115: 300 | I115: 300.00 | J115: Target Achieved | K115: =H115-F115 -> 43.00 | L115: 16.73% | M115: Successful | N115: 2014-07-02
A116: 3 | B116: 2014-07-08 | D116: JK Cement | E116: Buy | F116: 393.00 | G116: - | H116: 468 | I116: 468.00 | J116: Target Achieved | K116: =H116-F116 -> 75.00 | L116: 19.08% | M116: Successful | N116: 2014-08-12
A117: 4 | B117: 2014-08-06 | D117: Finolex Cables | E117: Buy | F117: 205.00 | G117: - | H117: 275 | I117: 250.00 | J117: Target Achieved | K117: 70.00 | L117: 34.15% | M117: Successful | N117: 2014-11-19
A118: 5 | B118: 2014-09-04 | D118: Exide Inds | E118: Buy | F118: 162.00 | G118: - | H118: 190 | I118: 190.00 | J118: Target Achieved | K118: 28.00 | L118: 17.28% | M118: Successful | N118: 2015-01-02
A119: 6 | B119: 2014-09-04 | D119: Deepak Nitrite | E119: Buy | F119: 75.00 | G119: - | H119: 91.5 | I119: 95-100 | J119: Profit of Rs.16.50/- | K119: 16.50 | L119: 22.00% | M119: Successful | N119: 2014-11-11
A120: 7 | B120: 2014-10-01 | D120: Mercks | E120: Buy | F120: 850.00 | G120: - | H120: 982.5 | I120: 1050.00 | J120: Profit of Rs.132.50/- | K120: 132.50 | L120: 15.59% | M120: Successful | N120: 2015-02-04
A121: 8 | B121: 2014-10-01 | D121: Grindwell Norton | E121: Buy | F121: 475.00 | G121: - | H121: 515 | I121: 600.00 | J121: Profit of Rs.40/- | K121: 40.00 | L121: 8.42% | M121: Successful | N121: 2014-10-27
A122: 9 | B122: 2014-10-01 | D122: Snowman Logistics | E122: Buy | F122: 86.00 | G122: - | H122: 99 | I122: 140.00 | J122: Profit of Rs.13.00/- | K122: 13.00 | L122: 15.12% | M122: Successful | N122: 2014-10-27
A123: 10 | B123: 2014-10-14 | D123: Birla Corp | E123: Buy | F123: 496.60 | G123: - | H123: 621 | I123: 580.00 | J123: Target Achieved | K123: 124.40 | L123: 25.05% | M123: Successful | N123: 2016-08-23
A124: 11 | B124: 2014-10-14 | D124: Ultratech Cem | E124: Buy | F124: 2481.90 | G124: - | H124: 2840 | I124: 2870.00 | J124: Profit of Rs.358.10/- | K124: 358.10 | L124: 14.43% | M124: Successful | N124: 2015-01-13
A125: 12 | B125: 2014-10-16 | D125: Sintex Inds | E125: Buy | F125: 84.50 | G125: - | H125: 93 | I125: 110.00 | J125: Profit of Rs.8.50/- | K125: 8.50 | L125: 10.06% | M125: Successful | N125: 2014-10-27
A126: 13 | B126: 2014-10-16 | D126: HSIL | E126: Buy | F126: 401.00 | G126: - | H126: 428 | I126: 450.00 | J126: Profit of Rs.27.00/- | K126: 27.00 | L126: 6.73% | M126: Successful | N126: 2015-01-16
A127: 14 | B127: 2014-10-16 | D127: Eveready Inds | E127: Buy | F127: 101.00 | G127: - | H127: 112 | I127: 120.00 | J127: Profit of Rs.11.00/- | K127: 11.00 | L127: 10.89% | M127: Successful | N127: 2014-10-27
A128: 15 | B128: 2014-11-11 | D128: Pennar Inds | E128: Buy | F128: 59.00 | G128: - | H128: 76 | I128: 76.00 | J128: Target Achieved | K128: 17.00 | L128: 28.81% | M128: Successful | N128: 2017-10-24
A129: 16 | B129: 2014-11-11 | D129: Snowman Logistics | E129: Buy | F129: 99.00 | G129: - | H129: 120 | I129: 120.00 | J129: Profit of Rs.21/- | K129: 21.00 | L129: 21.21% | M129: Successful | N129: 2014-11-17
A130: 17 | B130: 2014-11-13 | D130: Dharamsi Morarji Chem | E130: Buy | F130: 22.00 | G130: - | H130: 33.55 | I130: 32.00 | J130: Profit of Rs 11.55/- | K130: 11.55 | L130: 52.50% | M130: Successful | N130: 2015-07-03
A131: 18 | B131: 2014-12-03 | D131: Tatachem | E131: Buy | F131: 440.00 | G131: - | H131: 520 | I131: 520.00 | J131: Profit of Rs 80.00/- | K131: 80.00 | L131: 18.18% | M131: Successful | N131: 2015-07-23
A132: 19 | B132: 2014-12-03 | D132: Advanta | E132: Buy | F132: 360.00 | G132: - | H132: 427 | I132: 425.00 | J132: Profit of Rs.67.00/- | K132: 67.00 | L132: 18.61% | M132: Successful | N132: 2015-02-23
A133: 20 | B133: 2015-01-08 | D133: GDL | E133: Buy | F133: 360.00 | G133: - | H133: 455 | I133: 420.00 | J133: Profit of Rs.95.00/- | K133: 95.00 | L133: 26.39% | M133: Successful | N133: 2015-01-20
A134: 21 | B134: 2015-01-08 | D134: NRB Bearing | E134: Buy | F134: 130.00 | H134: 175.5 | I134: 165.00 | J134: Profit of Rs 45.50/- | K134: 45.50 | L134: 35.00% | M134: Successful | N134: 2017-12-19
A135: 22 | B135: 2015-02-05 | D135: GSFC | E135: Accu | F135: 98.00 | H135: 120 | I135: 120.00 | J135: Target Achieved | K135: 22.00 | L135: 22.45% | M135: Successful | N135: 2017-01-18
A136: 23 | B136: 2015-02-05 | D136: Sundrmfast | E136: Accu | F136: 196.00 | H136: 262 | I136: 255.00 | J136: Target Achieved | K136: 66.00 | L136: 33.67% | M136: Successful | N136: 2016-08-17
A137: 24 | B137: 2015-03-04 | D137: GPPL | E137: Accu | F137: 235 | H137: 77.00 | I137: 280-285 | J137: Loss of Rs.158/- | K137: =H137-F137 -> -158.00 | L137: -67.23% | M137: Unsuccessful | N137: 2019-02-26
A138: 25 | B138: 2015-03-04 | D138: ORIENTCEM | E138: Accu | F138: 185.00 | H138: 224 | I138: 220-225 | J138: Target Achieved | K138: 39.00 | L138: =K138/F138 -> 21.08% | M138: Successful | N138: 2016-10-04
A139: 26 | B139: 2015-03-27 | D139: PFS | E139: Accu | F139: 49.5 | H139: 15.85 | I139: 67.00 | J139: Loss of Rs.33.65/- | K139: =H139-F139 -> -33.65 | L139: =K139/F139 -> -68% | M139: Unsuccessful | N139: 2019-06-11
A140: 27 | B140: 2015-03-30 | D140: Walchandnagar Ind Ltd | E140: Accu | F140: 183.50 | H140: 219 | I140: 218.00 | J140: Profit of Rs.35.50/- | K140: 35.50 | L140: =K140/F140 -> 19.35% | M140: Successful | N140: 2015-04-09
A141: 28 | B141: 2015-04-20 | D141: Kalpataru Power Transmission Ltd | E141: Accu | F141: =(227+237)/2 -> 232.00 | H141: 298 | I141: 298.00 | J141: Target Achieved | K141: 66.00 | L141: 28.45% | M141: Successful | N141: 2017-03-29
A142: 29 | B142: 2015-05-04 | D142: Mastek Ltd | E142: Buy | F142: 385.00 | H142: =212.5+331 -> 543.5 | I142: 510.00 | J142: Profit of Rs 158.50/- | K142: 158.50 | L142: 41.17% | M142: Successful | N142: 2015-08-19
A143: 30 | B143: 2015-05-04 | D143: Suprajit Eng | E143: Buy | F143: 115.50 | H143: 146 | I143: 142.00 | J143: Profit of Rs 30.50/- | K143: 30.50 | L143: 26.41% | M143: Successful | N143: 2015-07-17
A144: 31 | B144: 2015-05-27 | D144: TCI | E144: Buy | F144: 237.50 | H144: 279.5 | I144: 278.00 | J144: Target Achieved | K144: 42.00 | L144: 17.68% | M144: Successful | N144: 2015-08-06
A145: 32 | B145: 2015-06-19 | D145: HSIL | E145: Accu | F145: 340.00 | H145: 448 | I145: 448.00 | J145: Target Achieved | K145: 108.00 | L145: 31.76% | M145: Successful | N145: 2017-10-10
A146: 33 | B146: 2015-07-06 | D146: Capital First | E146: Accu | F146: 390.00 | H146: 460 | I146: 460.00 | J146: Target Achieved | K146: 70.00 | L146: 17.95% | M146: Successful | N146: 2016-04-18
A147: 34 | B147: 2015-07-10 | D147: Dolphin OffShore | E147: Accu | F147: 122.5 | H147: 61.00 | I147: 172.00 | J147: Loss of Rs.61.50/- | K147: -61.50 | L147: -50.20% | M147: Unsuccessful | N147: 2018-08-21
A148: 35 | B148: 2015-08-03 | D148: Allcargo logistics | E148: Accu | F148: 297.50 | H148: 350 | I148: 360.00 | J148: Profit of Rs 52.50/- | K148: 52.50 | L148: 17.65% | M148: Successful | N148: 2015-08-16
A149: 36 | B149: 2015-08-03 | D149: Camline Fine | E149: Accu | F149: 115.50 | H149: 149 | I149: 140.00 | J149: Profit of Rs 33.50/- | K149: 33.50 | L149: 29.00% | M149: Successful | N149: 2017-01-05
A150: 37 | B150: 2015-09-04 | D150: TCI | E150: Accu | F150: 226.00 | H150: 292 | I150: 292.00 | J150: Target Achieved | K150: 66.00 | L150: 29.20% | M150: Successful | N150: 2015-10-09
A151: 38 | B151: 2015-09-07 | D151: Kalpataru Power Transmission Ltd | E151: Accu | F151: 232.50 | H151: 312.5 | I151: 310.00 | J151: Target Achieved | K151: 80.00 | L151: 34.41% | M151: Successful | N151: 2017-03-29
A152: 39 | B152: 2015-09-21 | D152: LLOYD ELECTRIC & ENG LTD | E152: Accu | F152: 196.50 | H152: 238 | I152: 238.00 | J152: Target Achieved | K152: 41.50 | L152: 21.12% | M152: Successful | N152: 2015-10-14
A153: 40 | B153: 2015-09-24 | D153: L&T Finance Holding | E153: Accu | F153: 65.00 | H153: 82 | I153: 82.00 | J153: Target Achieved | K153: 17.00 | L153: 26.15% | M153: Successful | N153: 2016-07-27
A154: 41 | B154: 2015-10-14 | D154: KEC International ltd | E154: Accu | F154: 144.00 | H154: 182.5 | I154: 181.00 | J154: Target Achieved | K154: 38.50 | L154: 26.74% | M154: Successful | N154: 2017-03-23
A155: 42 | B155: 2015-10-14 | D155: Gruh Finance | E155: Accu | F155: 264.00 | H155: 311 | I155: 311.00 | J155: Target Achieved | K155: 47.00 | L155: 17.80% | M155: Successful | N155: 2016-08-22
A156: 43 | B156: 2015-11-10 | D156: Pidilitind | E156: Buy | F156: 549.50 | H156: 630 | I156: 630.00 | J156: Target Achieved | K156: 80.50 | L156: 14.65% | M156: Successful | N156: 2016-02-19
A157: 44 | B157: 2015-12-04 | D157: Zensar Technology | E157: Accu | F157: 1027.50 | H157: 1315 | I157: 1250.00 | J157: Target Achieved | K157: =H157-F157 -> 287.50 | L157: 27.98% | M157: Successful | N157: 2018-05-24
A158: 45 | B158: 2015-12-29 | D158: Vinati Organics Ltd | E158: Accu | F158: 465.00 | H158: 540 | I158: 540.00 | J158: Target Achieved | K158: 75.00 | L158: 16.13% | M158: Successful | N158: 2016-06-09
A159: 46 | B159: 2016-01-11 | D159: GSFC | E159: Buy | F159: 81.00 | H159: 110 | I159: 110.00 | J159: Target Achieved | K159: 29.00 | L159: 35.80% | M159: Successful | N159: 2017-01-10
A160: 47 | B160: 2016-01-13 | D160: SSWL | E160: Buy | F160: 417.50 | H160: 547 | I160: 535.00 | J160: Target Achieved | K160: 129.50 | L160: 31.02% | M160: Successful | N160: 2016-07-27
A161: 48 | B161: 2016-02-08 | D161: Persistent System Ltd | E161: Accu | F161: 650.00 | H161: 800 | I161: 800.00 | J161: Target Achieved | K161: 150.00 | L161: 23.08% | M161: Successful | N161: 2018-02-23
A162: 49 | B162: 2016-03-04 | D162: UPL | E162: Accu | F162: 437.50 | H162: 504.5 | I162: 522.00 | J162: Profit of Rs.67/- | K162: 67.00 | L162: 15.31% | M162: Successful | N162: 2016-04-20
A163: 50 | B163: 2016-03-09 | D163: Ashoka Buildcon Ltd | E163: Accu | F163: 189.50 | H163: 218 | I163: 218.00 | J163: Target Achieved | K163: 28.50 | L163: 15.04% | M163: Successful | N163: 2017-10-26
A164: 51 | B164: 2016-04-11 | D164: PTC INDIA FIN SERV LTD | E164: Accu | F164: 36.5 | H164: 15.85 | I164: 60.00 | J164: Loss of Rs.20.65/- | K164: -20.65 | L164: -56.58% | M164: Unsuccessful | N164: 2019-06-11
A165: 52 | B165: 2016-04-12 | D165: CAMLINFINE $ | E165: Accu | F165: 93.00 | H165: 149 | I165: 140.00 | J165: Profit of Rs 56/- | K165: 56.00 | L165: 60.22% | M165: Successful | N165: 2017-01-05
A166: 53 | B166: 2016-04-12 | D166: Greaves Cotton Ltd. | E166: Accu | F166: 130.00 | H166: 150 | I166: 150-155 | J166: Target Achieved | K166: 20.00 | L166: 15.38% | M166: Successful | N166: 2016-07-13
A167: 54 | B167: 2016-05-02 | D167: KEC International ltd $ | E167: Accu | F167: 127.50 | H167: 148 | I167: 148-150 | J167: Target Achieved | K167: 20.50 | L167: 16.08% | M167: Successful | N167: 2016-07-13
A168: 55 | B168: 2016-05-03 | D168: Mindtree | E168: Accu | F168: 675.00 | H168: 815 | I168: 790-800 | J168: Target Achieved | K168: 140.00 | L168: 20.74% | M168: Successful | N168: 2018-02-23
A169: 56 | B169: 2016-06-06 | D169: TRITURBINE | E169: Accu | F169: 110.00 | H169: 126.5 | I169: 125.00 | J169: Profit of Rs.16.50/- | K169: 16.50 | L169: 15.00% | M169: Successful | N169: 2016-07-01
A170: 57 | B170: 2016-06-17 | D170: Pennar Industries Ltd | E170: Accu | F170: 44.00 | H170: 69.5 | I170: 69.50 | J170: Profit of Rs.25.50/- | K170: 25.50 | L170: 57.95% | M170: Successful | N170: 2017-08-30
A171: 58 | B171: 2016-07-05 | D171: Bajaj Corp Ltd | E171: Accu | F171: 395 | H171: =(468.5+342.5)/2 -> 405.50 | I171: 510.00 | J171: Profit of Rs.10.50/- | K171: 10.50 | L171: 3% | M171: Neutral | N171: 2019-05-21
A172: 59 | B172: 2016-08-02 | D172: GPPL $ | E172: Buy | F172: 169.5 | H172: 77.00 | I172: 198-200 | J172: Loss of Rs.92.5/- | K172: -92.50 | L172: -54.57% | M172: Unsuccessful | N172: 2019-02-26
A173: 60 | B173: 2016-08-04 | D173: WONDERLA HOLIDAYS LTD | E173: Accu | F173: 400 | H173: 305.00 | I173: 475.00 | J173: Loss of Rs.95/- | K173: -95.00 | L173: -23.75% | M173: Unsuccessful | N173: 2019-05-21
A174: 61 | B174: 2016-08-11 | D174: CAMLINFINE | E174: Accu | F174: 86.50 | H174: 130 | I174: 130.00 | J174: Profit of Rs.43.50/- | K174: 43.50 | L174: 50.29% | M174: Successful | N174: 2017-12-22
A175: 62 | B175: 2016-08-18 | D175: GRANULES | E175: Accu | F175: 133.5 | H175: 126.50 | I175: 178.00 | J175: Exit | K175: -7.00 | L175: -5.24% | M175: Unsuccessful | N175: 2016-09-02
A176: 63 | B176: 2016-08-31 | D176: VA TECH WABAG | E176: Accu | F176: 560.00 | H176: 725 | I176: 725.00 | J176: Target Achieved | K176: 165.00 | L176: 29.46% | M176: Successful | N176: 2016-03-27
A177: 64 | B177: 2016-09-01 | D177: SKIPPER LIMITED | E177: Accu | F177: 160.50 | H177: 210 | I177: 210.00 | J177: Target Achieved | K177: 49.50 | L177: 30.84% | M177: Successful | N177: 2017-05-16
A178: 65 | B178: 2016-10-14 | D178: ASIANTILES | E178: Accu | F178: 280.00 | H178: 345 | I178: 345.00 | J178: Target Achieved | K178: 65.00 | L178: 23.21% | M178: Successful | N178: 2017-03-20
A179: 66 | B179: 2016-10-14 | D179: DEEPIND | E179: Accu | F179: 245.00 | H179: 325.5 | I179: 330.00 | J179: Profit of Rs.80.5/- | K179: 80.50 | L179: 32.86% | M179: Successful | N179: 2017-02-03
A180: 67 | B180: 2016-10-17 | D180: DCBBANK | E180: Accu | F180: 125.00 | H180: 160 | I180: 160.00 | J180: Target Achieved | K180: =H180-F180 -> 35.00 | L180: 28.00% | M180: Successful | N180: 2017-03-09
A181: 68 | B181: 2016-10-17 | D181: ORIENTREF | E181: Accu | F181: 114.00 | H181: 145 | I181: 145.00 | J181: Target Achieved | K181: 31.00 | L181: =K181/F181 -> 27.19% | M181: Successful | N181: 2017-05-04
A182: 69 | B182: 2016-10-17 | D182: GANECOS | E182: Accu | F182: 212.00 | H182: 280 | I182: 276.00 | J182: Profit of Rs.68/- | K182: 68.00 | L182: =K182/F182 -> 32.08% | M182: Successful | N182: 2017-05-03
A183: 70 | B183: 2016-11-04 | D183: NBCC | E183: Accu | F183: 155.00 | H183: 210 | I183: 210.00 | J183: Profit of Rs.55/- | K183: 55.00 | L183: =K183/F183 -> 35.48% | M183: Successful | N183: 2017-07-28
A184: 71 | B184: 2016-12-08 | D184: INFRATEL | E184: Accu | F184: 380.00 | H184: 478 | I184: 468.00 | J184: Target Achieved | K184: 98.00 | L184: =K184/F184 -> 25.79% | M184: Successful | N184: 2017-10-17
A185: 72 | B185: 2016-12-30 | D185: GODREJPROP | E185: Accu | F185: 305.00 | H185: 375 | I185: 375.00 | J185: Target Achieved | K185: 70.00 | L185: 22.95% | M185: Successful | N185: 2017-02-02
A186: 73 | B186: 2017-01-04 | D186: DEEPAKNTR | E186: Accu | F186: 99.50 | H186: 158 | I186: 158.00 | J186: Target Achieved | K186: 58.50 | L186: 58.79% | M186: Successful | N186: 2017-06-12
A187: 74 | B187: 2017-02-20 | D187: RECLTD | E187: Accu | F187: 140.50 | H187: 220 | I187: 220.00 | J187: Target Achieved | K187: 79.50 | L187: 56.58% | M187: Successful | N187: 2017-05-09
A188: 75 | B188: 2017-03-24 | D188: VRLLOG | E188: Accu | F188: 300.50 | H188: 417.5 | I188: 420.00 | J188: Profit of Rs.117/- | K188: 117.00 | L188: 38.94% | M188: Successful | N188: 2017-12-01
A189: 76 | B189: 2017-04-05 | D189: RATNAMANI | E189: Accu | F189: 785.00 | H189: 930 | I189: 920.00 | J189: Profit of Rs.145/- | K189: 145.00 | L189: 18.47% | M189: Successful | N189: 2017-08-29
A190: 77 | B190: 2017-04-12 | D190: DABUR | E190: Accu | F190: 289.50 | H190: 354 | I190: 360.00 | J190: Profit of Rs.64.5/- | K190: 64.50 | L190: =K190/F190 -> 22.28% | M190: Successful | N190: 2017-11-01
A191: 78 | B191: 2017-04-20 | D191: KPRMILL | E191: Accu | F191: 700.00 | H191: 840 | I191: 840.00 | J191: Profit of Rs.140/- | K191: 140.00 | L191: =K191/F191 -> 20.00% | M191: Successful | N191: 2017-06-07
A192: 79 | B192: 2017-05-22 | D192: GREAVESCOT | E192: Accu | F192: 153-158 | I192: 190.00 | J192: Open
A193: 80 | B193: 2017-06-01 | D193: ESSELPACK | E193: Accu | F193: 130.00 | H193: 144.25 | I193: 170.00 | J193: Profit of Rs.14.25/- | K193: =H193-F193 -> 14.25 | L193: =K193/F193 -> 10.96% | M193: Successful | N193: 2019-07-29
A194: 81 | B194: 2017-06-15 | D194: KEI | E194: Accu | F194: 214.50 | H194: 262 | I194: 262.00 | J194: Profit of Rs.47.5/- | K194: =H194-F194 -> 47.50 | L194: 22.14% | M194: Successful | N194: 2017-08-30
A195: 82 | B195: 2017-07-17 | D195: MAYURUNIQ | E195: Accu | F195: 370.00 | H195: 447.5 | I195: 450.00 | J195: Target Achieved | K195: 77.50 | L195: 20.95% | M195: Successful | N195: 2017-10-27
A196: 83 | B196: 2017-07-27 | D196: RAMCOCEM | E196: Accu | F196: 657.50 | H196: 825 | I196: 820.00 | J196: Target Achieved | K196: 167.50 | L196: 25.48% | M196: Successful | N196: 2017-12-21
A197: 84 | B197: 2017-08-17 | D197: FINPIPE | E197: Accu | F197: 605.00 | H197: 750 | I197: 750.00 | J197: Profit of Rs.145/- | K197: 145.00 | L197: 23.97% | M197: Successful | N197: 2017-10-19
A198: 85 | B198: 2017-09-01 | D198: SHK | E198: Accu | F198: 255 | H198: 217.25 | I198: 320.00 | J198: Loss of Rs.37.75/- | K198: -37.75 | L198: -15% | M198: Unsuccessful | N198: 2019-07-15
A199: 86 | B199: 2017-09-19 | D199: SKIPPER | E199: Accu | F199: 215.00 | H199: 258 | I199: 258.00 | J199: Target Achieved | K199: 43.00 | L199: 20.00% | M199: Successful | N199: 2017-11-01
A200: 87 | B200: 2017-09-20 | D200: CAMLINFINE | E200: Accu | F200: 75.00 | H200: 90 | I200: 90.00 | J200: Profit of Rs.15.00/- | K200: 15.00 | L200: 20.00% | M200: Successful | N200: 2017-10-11
A201: 88 | B201: 2017-10-03 | D201: GNA | E201: Accu | F201: 315.00 | H201: 392 | I201: 384.00 | J201: Profit of Rs.77/- | K201: 77.00 | L201: 24.44% | M201: Successful | N201: 2017-10-09
A202: 89 | B202: 2017-10-05 | D202: NOCIL | E202: Accu | F202: 145.00 | H202: 179 | I202: 180.00 | J202: Profit of Rs.34/- | K202: 34.00 | L202: 23.45% | M202: Successful | N202: 2017-10-17
A203: 90 | B203: 2017-10-06 | D203: CENTURYPLY | E203: Accu | F203: 256.00 | H203: 323 | I203: 320.00 | J203: Target Achieved | K203: 67.00 | L203: 26.17% | M203: Successful | N203: 2017-11-28
A204: 91 | B204: 2017-10-09 | D204: RECLTD | E204: Accu | F204: 152.5 | H204: 183.50 | I204: 210.00 | J204: Part Profit of Rs.31/- | K204: 31.00 | L204: 20% | M204: Successful | N204: 2017-11-03
A205: 92 | B205: 2017-10-09 | D205: EIHOTEL | E205: Accu | F205: 137.50 | H205: 184 | I205: 183.00 | J205: Profit of Rs.46.5/- | K205: 46.50 | L205: 33.82% | M205: Successful | N205: 2018-01-08
A206: 93 | B206: 2017-10-10 | D206: NRBBEARING | E206: Accu | F206: 125.50 | H206: 158 | I206: 155.00 | J206: Profit of Rs.32.5/- | K206: 32.50 | L206: 25.90% | M206: Successful | N206: 2017-11-28
A207: 94 | B207: 2017-11-07 | D207: HATSUN | E207: Accu | F207: 740.00 | H207: 892.5 | I207: 900.00 | J207: Profit of Rs.152.5/- | K207: 152.50 | L207: 20.61% | M207: Successful | N207: 2017-11-13
A208: 95 | B208: 2017-12-04 | D208: SANGHIIND | E208: Accu | F208: 118.50 | H208: 143.5 | I208: 145.00 | J208: Profit of Rs.25/- | K208: 25.00 | L208: 21.10% | M208: Successful | N208: 2017-12-28
A209: 96 | B209: 2017-12-05 | D209: ALLCARGO | E209: Accu | F209: 177.5 | H209: 215.00 | I209: 230.00 | J209: Part Profit of Rs.37.5/- | K209: 37.50 | L209: 21% | M209: Successful | N209: 2017-12-27
A210: 97 | B210: 2017-12-21 | D210: KAJARIACER | E210: Accu | F210: 715 | H210: 500.00 | I210: 872.00 | J210: Loss of Rs.215/- | K210: =H210-F210 -> -215.00 | L210: =K210/F210 -> -30.07% | M210: Unsuccessful | N210: 2019-07-24
A211: 98 | B211: 2018-02-07 | D211: GREAVESCOT | E211: Accu | F211: 130-132 | I211: 190.00 | J211: Open
A212: 99 | B212: 2018-02-27 | D212: MOLDTKPAC | E212: Accu | F212: 320-330 | I212: 398.00 | J212: Open
A213: 100 | B213: 2018-03-05 | D213: LICHSGFIN | E213: Accu | F213: 505-515 | I213: 672.00 | J213: Open
A214: 101 | B214: 2018-04-02 | D214: EVERESTIND | E214: Accu | F214: 492.5 | H214: 589.00 | I214: 613.00 | J214: Part Profit of Rs.37.5/- | K214: =H214-F214 -> 96.50 | L214: =K214/F214 -> 20% | M214: Successful | N214: 2018-08-21
A215: 102 | B215: 2018-04-04 | D215: GPPL | E215: Accu | F215: 141.5 | H215: 77.00 | I215: 180.00 | J215: Loss of Rs.64.5/- | K215: =H215-F215 -> -64.50 | L215: =K215/F215 -> -45.58% | M215: Unsuccessful | N215: 2019-02-26
A216: 103 | B216: 2018-04-19 | D216: MANPASAND | E216: Accu | F216: 430 | H216: 220.00 | I216: 537.00 | J216: Loss of Rs.210/- | K216: =H216-F216 -> -210.00 | L216: =K216/F216 -> -48.84% | M216: Unsuccessful | N216: 2018-06-01
A217: 104 | B217: 2018-04-30 | D217: HEIDELBERG | E217: Accu | F217: 156 | H217: 196.00 | I217: 196.00 | J217: Profit of Rs.40/- | K217: =H217-F217 -> 40.00 | L217: =K217/F217 -> 26% | M217: Successful | N217: 2019-05-20
A218: 105 | B218: 2018-06-07 | D218: KEC | E218: Accu | F218: 340-345 | I218: 439.00 | J218: Open
A219: 106 | B219: 2018-07-04 | D219: ASHOKLEY | E219: Accu | F219: 125-130 | I219: 170.00 | J219: Open
A220: 107 | B220: 2018-08-06 | D220: GABRIEL | E220: Accu | F220: 150.00 | H220: 102 | I220: 182.00 | J220: Loss of Rs.48 /- | K220: =H220-F220 -> -48.00 | L220: =K220/F220 -> -32.00% | M220: Unsuccessful | N220: 2019-07-15
A221: 108 | B221: 2018-08-29 | D221: GRINDWELL | E221: Accu | F221: 525.00 | H221: 585 | I221: 635.00 | J221: Profit of Rs.60- | K221: =H221-F221 -> 60.00 | L221: =K221/F221 -> 11.43% | N221: 2019-07-16
A222: 109 | B222: 2018-10-22 | D222: FINPIPE | E222: Accu | F222: 475.00 | H222: 574 | I222: 570.00 | J222: Target Achieved | K222: =H222-F222 -> 99.00 | L222: =K222/F222 -> 20.84% | M222: Successful | N222: 2018-10-30
A223: 110 | B223: 2018-10-23 | D223: JKPAPER | E223: Accu | F223: 158-162 | I223: 191.00 | J223: Open
A224: 111 | B224: 2018-10-24 | D224: GULFOILLUB | E224: Accu | F224: 707.50 | H224: 872 | I224: 872.00 | J224: Target Achieved | K224: =H224-F224 -> 164.50 | L224: =K224/F224 -> 23.25% | M224: Successful | N224: 2019-01-17
A225: 112 | B225: 2018-10-25 | D225: GODREJCP | E225: Accu | F225: 707.5 | H225: 850.00 | I225: 890.00 | J225: Part Profit of Rs.142.5/- | K225: =H225-F225 -> 142.50 | L225: =K225/F225 -> 20% | M225: Successful | N225: 2018-12-19
A226: 113 | B226: 2018-10-25 | D226: DBCORP | E226: Accu | F226: 164.00 | H226: 204 | I226: 209.00 | J226: Profit of Rs.40/- | K226: =H226-F226 -> 40.00 | L226: =K226/F226 -> 24.39% | M226: Successful | N226: 2019-03-15
A227: 114 | B227: 2018-10-26 | D227: RITES | E227: Accu | F227: 240.00 | H227: 297 | I227: 297.00 | J227: Target Achieved | K227: =H227-F227 -> 57.00 | L227: =K227/F227 -> 23.75% | M227: Successful | N227: 2018-11-13
A228: 115 | B228: 2018-12-05 | D228: CCL | E228: Accu | F228: 260-270 | I228: 321.00 | J228: Open
A229: 116 | B229: 2018-12-05 | D229: BRIGADE | E229: Accu | F229: 202.50 | H229: 255 | I229: 252.00 | J229: Target Achieved | K229: =H229-F229 -> 52.50 | L229: =K229/F229 -> 25.93% | M229: Successful | N229: 2019-03-18
A230: 117 | B230: 2018-12-31 | D230: JKCEMENT | E230: Accu | F230: 710.00 | H230: 866 | I230: 866.00 | J230: Target Achieved | K230: =H230-F230 -> 156.00 | L230: =K230/F230 -> 21.97% | M230: Successful | N230: 2019-03-29
A231: 118 | B231: 2019-01-04 | D231: MGL | E231: Accu | F231: 890-900 | I231: 1185.00 | J231: Open
A232: 119 | B232: 2019-02-26 | D232: MARICO | E232: Accu | F232: 335-345 | I232: 411.00 | J232: Open
A233: 120 | B233: 2019-04-04 | D233: ITDCEM | E233: Accu | F233: 128-132 | I233: 158.00 | J233: Open
A234: 121 | B234: 2019-04-04 | D234: COCHINSHIP | E234: Accu | F234: 384-390 | I234: 490.00 | J234: Open
A235: 122 | B235: 2019-08-30 | D235: INDHOTEL | E235: Accu | F235: 135-140 | I235: 190.00 | J235: Open
F238: Reinitiated $
B240: Instituitonal Investment Idea
A241: Sr.no | B241: Date | D241: Company | E241: Rec | F241: Rec Price | G241: Point of Review | H241: Close Rate | I241: Target | J241: Remark | K241: Profit / Loss per Share | L241: Gain / Loss % | M241: Status | N241: Closed Date
A242: 1 | B242: 2016-04-13 | D242: DHFL | E242: Accu | F242: 196.00 | H242: 299 | I242: 299.00 | J242: Target Achieved | K242: 103.00 | L242: 52.55% | M242: Successful | N242: 2016-09-07
A243: 2 | B243: 2016-04-13 | D243: Magma | E243: Accu | F243: 88.00 | H243: 103 | I243: 103.00 | J243: Target Achieved | K243: 15.00 | L243: 17.05% | M243: Successful | N243: 2016-06-09
A244: 3 | B244: 2016-06-01 | D244: Atulauto | E244: Accu | F244: 495-505 | I244: 565-570 | J244: Open
A245: 4 | B245: 2016-06-28 | D245: EVEREADY | E245: Accu | F245: 262.50 | H245: 340 | I245: 333.00 | J245: Profit of Rs.77.50/- | K245: 77.50 | L245: 29.52% | M245: Successful | N245: 2017-10-09
A246: 5 | B246: 2016-06-28 | D246: FIEMIND | E246: Accu | F246: 840.00 | H246: 1230 | I246: 1230.00 | J246: Target Achieved | K246: 390.00 | L246: 46.43% | M246: Successful | N246: 2016-10-06
A247: 6 | B247: 2016-10-03 | D247: IFBIND | E247: Accu | F247: 430.00 | H247: 596 | I247: 575.00 | J247: Profit of Rs.166/- | K247: 166.00 | L247: 38.60% | M247: Successful | N247: 2017-02-03
A248: 7 | B248: 2016-12-06 | D248: PRECAM | E248: Accu | F248: 150.5 | H248: 72.50 | I248: 174.00 | J248: Loss of Rs.78/- | K248: -78.00 | L248: -51.83% | M248: Unsuccessful | N248: 2018-08-21
A249: 8 | B249: 2017-01-04 | D249: DEEPAKNTR | E249: Accu | F249: 99.50 | H249: 158 | I249: 158.00 | J249: Target Achieved | K249: 58.50 | L249: 58.79% | M249: Successful | N249: 2017-06-12
A250: 9 | B250: 2017-02-20 | D250: SUBROS | E250: Accu | F250: 202.50 | H250: 234 | I250: 234.00 | J250: Target Achieved | K250: 31.50 | L250: 15.56% | M250: Successful | N250: 2017-04-11
A251: 10 | B251: 2017-03-24 | D251: FIEMIND | E251: Accu | F251: 850.00 | H251: 1042.5 | I251: 1023.00 | J251: Profit of Rs 192.50/- | K251: 192.50 | L251: 22.65% | M251: Successful | N251: 2017-04-05
A252: 11 | B252: 2017-04-06 | D252: ZEEMEDIA | E252: Accu | F252: 40 | H252: 13.10 | I252: 60.00 | J252: Loss of Rs.26.9/- | K252: -26.90 | L252: -67.25% | M252: Unsuccessful | N252: 2018-02-07
A253: 12 | B253: 2017-09-19 | D253: SKIPPER | E253: Accu | F253: 215.00 | H253: 258 | I253: 258.00 | J253: Target Achieved | K253: 43.00 | L253: 20.00% | M253: Successful | N253: 2017-11-01
A254: 13 | B254: 2017-10-10 | D254: BOROSIL | E254: Accu | F254: 895.00 | H254: 1122.5 | I254: 1078.00 | J254: Profit of Rs.227.5/- | K254: 227.50 | L254: 25.42% | M254: Successful | N254: 2018-01-17
A255: 14 | B255: 2017-10-12 | D255: CYIENT | E255: Accu | F255: 525.00 | H255: 629 | I255: 629.00 | J255: Target Achieved | K255: 104.00 | L255: 19.81% | M255: Successful | N255: 2018-01-19
A256: 15 | B256: 2017-12-29 | D256: GNA | E256: Accu | F256: 435.00 | H256: 542.5 | I256: 539.00 | J256: Target Achieved | K256: 107.50 | L256: 24.71% | M256: Successful | N256: 2018-04-16
A257: 16 | B257: 2017-12-29 | D257: ZENSARTECH | E257: Accu | F257: 885.00 | H257: 1090 | I257: 1084.00 | J257: Target Achieved | K257: 205.00 | L257: 23.16% | M257: Successful | N257: 2018-04-23
... 8 more rows

Sheet Sheet2 (hidden)
A1: SYMBOL | B1: SERIES | C1: OPEN | D1: HIGH | E1: LOW | F1: CLOSE | G1: LAST | H1: PREVCLOSE | I1: TOTTRDQTY | J1: TOTTRDVAL | K1: TIMESTAMP | L1: TOTALTRADES | M1: ISIN | N1: ISIN
A2: 20MICRONS | B2: EQ | C2: 34 | D2: 34.95 | E2: 33.2 | F2: 33.65 | G2: 33.65 | H2: 33.4 | I2: 33307 | J2: 1133949.75 | K2: 2019-09-06 | L2: 490 | M2: INE144J01027
A3: 21STCENMGM | B3: EQ | C3: 12.35 | D3: 12.35 | E3: 12.3 | F3: 12.3 | G3: 12.3 | H3: 12.3 | I3: 466 | J3: 5746.8 | K3: 2019-09-06 | L3: 5 | M3: INE253B01015
A4: 3IINFOTECH | B4: EQ | C4: 1.75 | D4: 2 | E4: 1.7 | F4: 1.95 | G4: 2 | H4: 1.7 | I4: 2200294 | J4: 4055616.4 | K4: 2019-09-06 | L4: 789 | M4: INE748C01020
A5: 3MINDIA | B5: EQ | C5: 20463.45 | D5: 20719.95 | E5: 20450.1 | F5: 20515.35 | G5: 20598 | H5: 20407.8 | I5: 1794 | J5: 36841746.35 | K5: 2019-09-06 | L5: 883 | M5: INE470A01017
A6: 3PLAND | B6: EQ | C6: 6.1 | D6: 6.1 | E6: 5.9 | F6: 5.9 | G6: 5.9 | H6: 6.1 | I6: 2679 | J6: 16116.1 | K6: 2019-09-06 | L6: 16 | M6: INE105C01023
A7: 5PAISA | B7: EQ | C7: 137.95 | D7: 138 | E7: 131.8 | F7: 136.6 | G7: 135.45 | H7: 133.65 | I7: 16567 | J7: 2247587.55 | K7: 2019-09-06 | L7: 393 | M7: INE618L01018
A8: 63MOONS | B8: EQ | C8: 110.85 | D8: 114.1 | E8: 105.55 | F8: 110.65 | G8: 111 | H8: 108.7 | I8: 281033 | J8: 31412117.25 | K8: 2019-09-06 | L8: 4127 | M8: INE111B01023
A9: 8KMILES | B9: EQ | C9: 54.5 | D9: 54.5 | E9: 52 | F9: 53.3 | G9: 53.75 | H9: 53.9 | I9: 41283 | J9: 2195900.65 | K9: 2019-09-06 | L9: 568 | M9: INE650K01021
A10: A2ZINFRA | B10: EQ | C10: 9.5 | D10: 9.5 | E10: 9.3 | F10: 9.3 | G10: 9.3 | H10: 9.4 | I10: 193442 | J10: 1808518.8 | K10: 2019-09-06 | L10: 317 | M10: INE619I01012
A11: AARTIDRUGS | B11: EQ | C11: 455.25 | D11: 462.65 | E11: 453.1 | F11: 454.5 | G11: 454.95 | H11: 455.25 | I11: 3585 | J11: 1632282.75 | K11: 2019-09-06 | L11: 310 | M11: INE767A01016
A12: AARTIIND | B12: EQ | C12: 1594 | D12: 1594.4 | E12: 1572.25 | F12: 1581.1 | G12: 1574 | H12: 1582.1 | I12: 11948 | J12: 18867876.95 | K12: 2019-09-06 | L12: 1377 | M12: INE769A01020
A13: AARVEEDEN | B13: EQ | C13: 13.7 | D13: 14.9 | E13: 13.7 | F13: 14.55 | G13: 14.6 | H13: 13.45 | I13: 4354 | J13: 61562.85 | K13: 2019-09-06 | L13: 92 | M13: INE273D01019
A14: AAVAS | B14: EQ | C14: 1565 | D14: 1585.1 | E14: 1548 | F14: 1565.45 | G14: 1560 | H14: 1550.25 | I14: 88435 | J14: 138334657.3 | K14: 2019-09-06 | L14: 3620 | M14: INE216P01012
A15: ABAN | B15: EQ | C15: 25.1 | D15: 25.5 | E15: 24.15 | F15: 25.25 | G15: 25.3 | H15: 24.75 | I15: 82235 | J15: 2065314.9 | K15: 2019-09-06 | L15: 852 | M15: INE421A01028
A16: ABB | B16: EQ | C16: 1319.8 | D16: 1339 | E16: 1310.35 | F16: 1319.3 | G16: 1322 | H16: 1316.15 | I16: 28271 | J16: 37448735.2 | K16: 2019-09-06 | L16: 2196 | M16: INE117A01022
A17: ABBOTINDIA | B17: EQ | C17: 9479.9 | D17: 9779 | E17: 9470 | F17: 9726.25 | G17: 9770 | H17: 9489.8 | I17: 5567 | J17: 53602792.05 | K17: 2019-09-06 | L17: 1724 | M17: INE358A01014
A18: ABCAPITAL | B18: EQ | C18: 92.4 | D18: 93 | E18: 92 | F18: 92.6 | G18: 92.65 | H18: 91.5 | I18: 1325343 | J18: 122644122.1 | K18: 2019-09-06 | L18: 9458 | M18: INE674K01013
A19: ABFRL | B19: EQ | C19: 188.95 | D19: 195 | E19: 187.8 | F19: 194.15 | G19: 194.6 | H19: 188.8 | I19: 265200 | J19: 51010663.2 | K19: 2019-09-06 | L19: 6546 | M19: INE647O01011
A20: ABSLNN50ET | B20: EQ | C20: 256.7 | D20: 261.59 | E20: 251.21 | F20: 259.41 | G20: 259.41 | H20: 260.15 | I20: 115 | J20: 29969.27 | K20: 2019-09-06 | L20: 10 | M20: INF209KB1B87
A21: ACC | B21: EQ | C21: 1468.45 | D21: 1477 | E21: 1453.7 | F21: 1463.25 | G21: 1461.1 | H21: 1461.15 | I21: 464686 | J21: 681988985.4 | K21: 2019-09-06 | L21: 23376 | M21: INE012A01025
A22: ACCELYA | B22: EQ | C22: 832 | D22: 840 | E22: 825.2 | F22: 833.7 | G22: 833.95 | H22: 842.9 | I22: 981 | J22: 818019.8 | K22: 2019-09-06 | L22: 229 | M22: INE793A01012
A23: ACE | B23: EQ | C23: 60.5 | D23: 66.3 | E23: 60.2 | F23: 65.3 | G23: 66 | H23: 59.85 | I23: 307162 | J23: 19462603.65 | K23: 2019-09-06 | L23: 5035 | M23: INE731H01025
A24: ADANIENT | B24: EQ | C24: 135.4 | D24: 138.45 | E24: 135.05 | F24: 137.75 | G24: 137.65 | H24: 135.75 | I24: 3744649 | J24: 512276334.7 | K24: 2019-09-06 | L24: 16142 | M24: INE423A01024
A25: ADANIGAS | B25: EQ | C25: 136.85 | D25: 138.95 | E25: 135.8 | F25: 137.45 | G25: 137.55 | H25: 137.15 | I25: 325892 | J25: 44820564 | K25: 2019-09-06 | L25: 3389 | M25: INE399L01023
A26: ADANIGREEN | B26: EQ | C26: 45.25 | D26: 45.8 | E26: 44.75 | F26: 45.1 | G26: 45.05 | H26: 45.05 | I26: 278208 | J26: 12580098.5 | K26: 2019-09-06 | L26: 1878 | M26: INE364U01010
A27: ADANIPORTS | B27: EQ | C27: 368 | D27: 368.7 | E27: 363.8 | F27: 365.75 | G27: 364.5 | H27: 366.55 | I27: 2366109 | J27: 867110164.6 | K27: 2019-09-06 | L27: 43680 | M27: INE742F01042
A28: ADANIPOWER | B28: EQ | C28: 57.6 | D28: 59.3 | E28: 57.45 | F28: 58.35 | G28: 58.45 | H28: 57.15 | I28: 8465988 | J28: 494601062.1 | K28: 2019-09-06 | L28: 22348 | M28: INE814H01011
A29: ADANITRANS | B29: EQ | C29: 237.75 | D29: 240 | E29: 233.85 | F29: 238.3 | G29: 239 | H29: 237.75 | I29: 59700 | J29: 14211440.4 | K29: 2019-09-06 | L29: 2089 | M29: INE931S01010
A30: ADFFOODS | B30: EQ | C30: 250.1 | D30: 258.85 | E30: 250 | F30: 256.85 | G30: 255.25 | H30: 250.7 | I30: 21424 | J30: 5454525.45 | K30: 2019-09-06 | L30: 1715 | M30: INE982B01019
A31: ADHUNIK | B31: BE | C31: 1.05 | D31: 1.15 | E31: 1.05 | F31: 1.1 | G31: 1.1 | H31: 1.1 | I31: 19201 | J31: 21071.35 | K31: 2019-09-06 | L31: 17 | M31: INE400H01019
A32: ADHUNIKIND | B32: EQ | C32: 85.6 | D32: 89.5 | E32: 84.9 | F32: 87.7 | G32: 89.4 | H32: 85.15 | I32: 62439 | J32: 5367199.4 | K32: 2019-09-06 | L32: 282 | M32: INE452L01012
A33: ADLABS | B33: EQ | C33: 3.4 | D33: 3.5 | E33: 3.25 | F33: 3.4 | G33: 3.35 | H33: 3.35 | I33: 145789 | J33: 501986.3 | K33: 2019-09-06 | L33: 356 | M33: INE172N01012
A34: ADORWELD | B34: EQ | C34: 283.4 | D34: 289.95 | E34: 283.1 | F34: 285.55 | G34: 285.25 | H34: 287.55 | I34: 2802 | J34: 802562.15 | K34: 2019-09-06 | L34: 69 | M34: INE045A01017
A35: ADROITINFO | B35: BE | C35: 8.8 | D35: 8.8 | E35: 8.8 | F35: 8.8 | G35: 8.8 | H35: 9.25 | I35: 1 | J35: 8.8 | K35: 2019-09-06 | L35: 1 | M35: INE737B01033
A36: ADSL | B36: EQ | C36: 13.45 | D36: 14.2 | E36: 13.35 | F36: 13.9 | G36: 13.8 | H36: 13.4 | I36: 14273 | J36: 197007.7 | K36: 2019-09-06 | L36: 78 | M36: INE102I01027
A37: ADVANIHOTR | B37: EQ | C37: 51.7 | D37: 51.85 | E37: 50.5 | F37: 51.5 | G37: 51.5 | H37: 50.9 | I37: 1550 | J37: 79881.85 | K37: 2019-09-06 | L37: 23 | M37: INE199C01026
A38: ADVENZYMES | B38: EQ | C38: 149.55 | D38: 155.75 | E38: 147.25 | F38: 153.7 | G38: 154.9 | H38: 149.25 | I38: 54815 | J38: 8405730.75 | K38: 2019-09-06 | L38: 2086 | M38: INE837H01020
A39: AEGISCHEM | B39: EQ | C39: 183.35 | D39: 192 | E39: 183.35 | F39: 190.5 | G39: 189.75 | H39: 182.95 | I39: 69691 | J39: 13108318.2 | K39: 2019-09-06 | L39: 3418 | M39: INE208C01025
A40: AFFLE | B40: EQ | C40: 829 | D40: 852 | E40: 825.55 | F40: 842.5 | G40: 835 | H40: 828.45 | I40: 60451 | J40: 50867716 | K40: 2019-09-06 | L40: 5092 | M40: INE00WC01019
A41: AGARIND | B41: EQ | C41: 129.85 | D41: 132.05 | E41: 128.1 | F41: 130.1 | G41: 130.1 | H41: 127.45 | I41: 679 | J41: 88661.1 | K41: 2019-09-06 | L41: 35 | M41: INE204E01012
A42: AGCNET | B42: BE | C42: 114 | D42: 114 | E42: 110 | F42: 110.45 | G42: 110 | H42: 112.25 | I42: 1342 | J42: 148910.7 | K42: 2019-09-06 | L42: 32 | M42: INE676A01019
A43: AGLSL | B43: EQ | C43: 49.9 | D43: 50.9 | E43: 46.95 | F43: 49.25 | G43: 50.9 | H43: 50.35 | I43: 8952 | J43: 439338.05 | K43: 2019-09-06 | L43: 56 | M43: INE517U01013
A44: AGRITECH | B44: EQ | C44: 44.45 | D44: 46.5 | E44: 43.8 | F44: 45.8 | G44: 45.9 | H44: 44.3 | I44: 22822 | J44: 1040666.55 | K44: 2019-09-06 | L44: 294 | M44: INE449G01018
A45: AGROPHOS | B45: BE | C45: 88 | D45: 88.5 | E45: 84 | F45: 88.45 | G45: 88.5 | H45: 88.25 | I45: 517 | J45: 45724.1 | K45: 2019-09-06 | L45: 8 | M45: INE740V01019
A46: AHLEAST | B46: EQ | C46: 162.95 | D46: 166.45 | E46: 155.4 | F46: 162.25 | G46: 164 | H46: 160 | I46: 505 | J46: 81384.75 | K46: 2019-09-06 | L46: 141 | M46: INE926K01017
A47: AHLUCONT | B47: EQ | C47: 301.15 | D47: 306.4 | E47: 301.15 | F47: 304.9 | G47: 302.55 | H47: 305.8 | I47: 553 | J47: 168226 | K47: 2019-09-06 | L47: 47 | M47: INE758C01029
A48: AHLWEST | B48: EQ | C48: 305 | D48: 317.95 | E48: 290.05 | F48: 303.35 | G48: 300 | H48: 300 | I48: 916 | J48: 276448.85 | K48: 2019-09-06 | L48: 63 | M48: INE915K01010
A49: AIAENG | B49: EQ | C49: 1512.95 | D49: 1523.05 | E49: 1497 | F49: 1507.2 | G49: 1504 | H49: 1512.95 | I49: 63048 | J49: 94689431.25 | K49: 2019-09-06 | L49: 3211 | M49: INE212H01026
A50: AIONJSW | B50: EQ | C50: 14.2 | D50: 14.35 | E50: 13.85 | F50: 14.2 | G50: 14.1 | H50: 14.15 | I50: 19192 | J50: 271898.4 | K50: 2019-09-06 | L50: 103 | M50: INE743C01021
A51: AIRAN | B51: EQ | C51: 12.3 | D51: 12.3 | E51: 11 | F51: 11.1 | G51: 11.1 | H51: 11.25 | I51: 15787 | J51: 179199.25 | K51: 2019-09-06 | L51: 131 | M51: INE645W01026
A52: AJANTPHARM | B52: EQ | C52: 1040.2 | D52: 1040.9 | E52: 1021.6 | F52: 1033.1 | G52: 1039 | H52: 1039.4 | I52: 108658 | J52: 112221722.7 | K52: 2019-09-06 | L52: 6008 | M52: INE031B01049
A53: AJMERA | B53: EQ | C53: 118.9 | D53: 120 | E53: 117 | F53: 118.95 | G53: 119 | H53: 117.4 | I53: 15557 | J53: 1846696.45 | K53: 2019-09-06 | L53: 470 | M53: INE298G01027
A54: AKSHARCHEM | B54: EQ | C54: 204.75 | D54: 204.8 | E54: 195.6 | F54: 197.5 | G54: 197 | H54: 197.9 | I54: 1906 | J54: 378339 | K54: 2019-09-06 | L54: 295 | M54: INE542B01011
A55: AKSHOPTFBR | B55: EQ | C55: 8.75 | D55: 8.75 | E55: 8.25 | F55: 8.25 | G55: 8.25 | H55: 8.65 | I55: 96838 | J55: 803826.9 | K55: 2019-09-06 | L55: 219 | M55: INE523B01011
A56: AKZOINDIA | B56: EQ | C56: 1703 | D56: 1717.3 | E56: 1700 | F56: 1704.2 | G56: 1705 | H56: 1703.95 | I56: 3069 | J56: 5238161.55 | K56: 2019-09-06 | L56: 577 | M56: INE133A01011
A57: ALANKIT | B57: EQ | C57: 20.3 | D57: 20.8 | E57: 19.7 | F57: 20.2 | G57: 19.9 | H57: 19.8 | I57: 123412 | J57: 2495966.6 | K57: 2019-09-06 | L57: 402 | M57: INE914E01040
A58: ALBERTDAVD | B58: EQ | C58: 330.1 | D58: 354 | E58: 330 | F58: 348.3 | G58: 354 | H58: 329.15 | I58: 4276 | J58: 1467188.95 | K58: 2019-09-06 | L58: 343 | M58: INE155C01010
A59: ALBK | B59: EQ | C59: 33.35 | D59: 33.6 | E59: 32.85 | F59: 33 | G59: 33 | H59: 33.35 | I59: 721386 | J59: 23919683.65 | K59: 2019-09-06 | L59: 3171 | M59: INE428A01015
A60: ALCHEM | B60: BE | C60: 1 | D60: 1 | E60: 1 | F60: 1 | G60: 1 | H60: 0.95 | I60: 361 | J60: 361 | K60: 2019-09-06 | L60: 4 | M60: INE964B01033
A61: ALEMBICLTD | B61: BE | C61: 40.25 | D61: 40.25 | E61: 38.6 | F61: 39.7 | G61: 39.8 | H61: 39.6 | I61: 42104 | J61: 1658870.8 | K61: 2019-09-06 | L61: 261 | M61: INE426A01027
A62: ALICON | B62: EQ | C62: 394 | D62: 400 | E62: 378.25 | F62: 398.6 | G62: 400 | H62: 392.6 | I62: 585 | J62: 232843.5 | K62: 2019-09-06 | L62: 77 | M62: INE062D01024
A63: ALKALI | B63: EQ | C63: 41 | D63: 41.2 | E63: 40.5 | F63: 41 | G63: 41 | H63: 41.2 | I63: 7717 | J63: 315975.95 | K63: 2019-09-06 | L63: 47 | M63: INE773I01017
A64: ALKEM | B64: EQ | C64: 1851.75 | D64: 1855 | E64: 1815 | F64: 1835.9 | G64: 1828 | H64: 1847.4 | I64: 11061 | J64: 20350364.75 | K64: 2019-09-06 | L64: 4640 | M64: INE540L01014
A65: ALKYLAMINE | B65: EQ | C65: 770.8 | D65: 775 | E65: 764.8 | F65: 767.1 | G65: 765 | H65: 766.7 | I65: 557 | J65: 427784.2 | K65: 2019-09-06 | L65: 107 | M65: INE150B01021
A66: ALLCARGO | B66: EQ | C66: 90.7 | D66: 92.35 | E66: 90.35 | F66: 91.55 | G66: 91.6 | H66: 90.75 | I66: 84788 | J66: 7724552.15 | K66: 2019-09-06 | L66: 1042 | M66: INE418H01029
A67: ALLSEC | B67: EQ | C67: 258.65 | D67: 270.35 | E67: 258.65 | F67: 268.85 | G67: 268.85 | H67: 263.75 | I67: 208 | J67: 55020.75 | K67: 2019-09-06 | L67: 44 | M67: INE835G01018
A68: ALMONDZ | B68: EQ | C68: 10.2 | D68: 10.65 | E68: 9.65 | F68: 9.75 | G68: 10.15 | H68: 10.15 | I68: 5003 | J68: 49353.1 | K68: 2019-09-06 | L68: 38 | M68: INE326B01027
A69: ALOKTEXT | B69: EQ | C69: 2.5 | D69: 2.5 | E69: 2.4 | F69: 2.45 | G69: 2.5 | H69: 2.5 | I69: 1876115 | J69: 4597495.65 | K69: 2019-09-06 | L69: 869 | M69: INE270A01011
A70: ALPA | B70: EQ | C70: 14.55 | D70: 14.85 | E70: 14.3 | F70: 14.5 | G70: 14.6 | H70: 14.2 | I70: 9519 | J70: 138006.15 | K70: 2019-09-06 | L70: 85 | M70: INE385I01010
A71: ALPHAGEO | B71: EQ | C71: 201.1 | D71: 209.5 | E71: 199 | F71: 208.65 | G71: 209.5 | H71: 199.55 | I71: 41361 | J71: 8341884.85 | K71: 2019-09-06 | L71: 576 | M71: INE137C01018
A72: ALPSINDUS | B72: BE | C72: 0.45 | D72: 0.45 | E72: 0.4 | F72: 0.45 | G72: 0.45 | H72: 0.4 | I72: 6003 | J72: 2701.2 | K72: 2019-09-06 | L72: 8 | M72: INE093B01015
A73: AMARAJABAT | B73: EQ | C73: 618 | D73: 628.1 | E73: 618 | F73: 625.55 | G73: 626.7 | H73: 621.4 | I73: 265460 | J73: 165705006.6 | K73: 2019-09-06 | L73: 9463 | M73: INE885A01032
A74: AMBER | B74: EQ | C74: 814 | D74: 834 | E74: 814 | F74: 821.3 | G74: 817.1 | H74: 812.25 | I74: 9778 | J74: 8030936.7 | K74: 2019-09-06 | L74: 896 | M74: INE371P01015
A75: AMBIKCO | B75: EQ | C75: 867.85 | D75: 898 | E75: 863.7 | F75: 881.05 | G75: 879.65 | H75: 872.15 | I75: 3564 | J75: 3155401.5 | K75: 2019-09-06 | L75: 462 | M75: INE540G01014
A76: AMBUJACEM | B76: EQ | C76: 193.6 | D76: 196.7 | E76: 193.3 | F76: 194.7 | G76: 194.9 | H76: 193.2 | I76: 1565369 | J76: 305212535.5 | K76: 2019-09-06 | L76: 14233 | M76: INE079A01024
A77: AMDIND | B77: EQ | C77: 16 | D77: 16.8 | E77: 16 | F77: 16.5 | G77: 16.35 | H77: 16.1 | I77: 15000 | J77: 245297.7 | K77: 2019-09-06 | L77: 93 | M77: INE005I01014
A78: AMJLAND | B78: EQ | C78: 16.6 | D78: 17.35 | E78: 16.25 | F78: 17 | G78: 17 | H78: 16.95 | I78: 1304 | J78: 22003.55 | K78: 2019-09-06 | L78: 36 | M78: INE606A01024
A79: AMRUTANJAN | B79: EQ | C79: 308 | D79: 308 | E79: 301.25 | F79: 304.35 | G79: 303 | H79: 301.95 | I79: 8410 | J79: 2556009.8 | K79: 2019-09-06 | L79: 601 | M79: INE098F01031
A80: ANANTRAJ | B80: EQ | C80: 33.5 | D80: 34.85 | E80: 33.1 | F80: 34.05 | G80: 34.4 | H80: 33.25 | I80: 467688 | J80: 15883356.5 | K80: 2019-09-06 | L80: 1235 | M80: INE242C01024
A81: ANDHRABANK | B81: EQ | C81: 19.2 | D81: 19.25 | E81: 18.75 | F81: 18.9 | G81: 18.9 | H81: 19.25 | I81: 568695 | J81: 10761521.5 | K81: 2019-09-06 | L81: 1638 | M81: INE434A01013
A82: ANDHRACEMT | B82: EQ | C82: 2.9 | D82: 2.9 | E82: 2.9 | F82: 2.9 | G82: 2.9 | H82: 2.8 | I82: 9108 | J82: 26413.2 | K82: 2019-09-06 | L82: 16 | M82: INE666E01012
A83: ANDHRSUGAR | B83: EQ | C83: 289.9 | D83: 297.75 | E83: 286.95 | F83: 288.75 | G83: 287.55 | H83: 287.35 | I83: 16489 | J83: 4756892.95 | K83: 2019-09-06 | L83: 368 | M83: INE715B01013
A84: ANIKINDS | B84: EQ | C84: 7.7 | D84: 8.8 | E84: 7.4 | F84: 8.2 | G84: 8.4 | H84: 8.1 | I84: 3886 | J84: 32559.55 | K84: 2019-09-06 | L84: 43 | M84: INE087B01017
A85: ANKITMETAL | B85: BE | C85: 0.4 | D85: 0.5 | E85: 0.4 | F85: 0.4 | G85: 0.4 | H85: 0.45 | I85: 57966 | J85: 25946.35 | K85: 2019-09-06 | L85: 13 | M85: INE106I01010
A86: ANSALAPI | B86: EQ | C86: 4.25 | D86: 4.4 | E86: 4.1 | F86: 4.4 | G86: 4.4 | H86: 4.2 | I86: 70138 | J86: 304223.9 | K86: 2019-09-06 | L86: 211 | M86: INE436A01026
A87: ANSALHSG | B87: EQ | C87: 5.05 | D87: 5.3 | E87: 4.8 | F87: 5.15 | G87: 5.15 | H87: 4.85 | I87: 71675 | J87: 365015.6 | K87: 2019-09-06 | L87: 321 | M87: INE880B01015
A88: ANTGRAPHIC | B88: BE | C88: 0.8 | D88: 0.85 | E88: 0.8 | F88: 0.85 | G88: 0.85 | H88: 0.85 | I88: 23477 | J88: 19042 | K88: 2019-09-06 | L88: 23 | M88: INE414B01021
A89: ANUP | B89: EQ | C89: 386.05 | D89: 393.2 | E89: 386 | F89: 389.3 | G89: 388 | H89: 388.6 | I89: 8967 | J89: 3486865.7 | K89: 2019-09-06 | L89: 441 | M89: INE294Z01018
A90: APARINDS | B90: EQ | C90: 538.95 | D90: 539 | E90: 525.25 | F90: 532.7 | G90: 530.2 | H90: 535.95 | I90: 958 | J90: 512778.85 | K90: 2019-09-06 | L90: 149 | M90: INE372A01015
A91: APCL | B91: EQ | C91: 142.75 | D91: 145 | E91: 141.35 | F91: 143 | G91: 143 | H91: 139.55 | I91: 2439 | J91: 349658.65 | K91: 2019-09-06 | L91: 118 | M91: INE071F01012
A92: APCOTEXIND | B92: EQ | C92: 212.75 | D92: 218 | E92: 204.95 | F92: 209.05 | G92: 208.6 | H92: 207.55 | I92: 21505 | J92: 4474126.2 | K92: 2019-09-06 | L92: 634 | M92: INE116A01032
A93: APEX | B93: EQ | C93: 207.75 | D93: 223.3 | E93: 207.45 | F93: 217 | G93: 216.5 | H93: 206.35 | I93: 124320 | J93: 26935330.75 | K93: 2019-09-06 | L93: 3889 | M93: INE346W01013
A94: APLAPOLLO | B94: EQ | C94: 1299.9 | D94: 1299.9 | E94: 1270 | F94: 1286.05 | G94: 1292 | H94: 1273.5 | I94: 30504 | J94: 39083408.05 | K94: 2019-09-06 | L94: 903 | M94: INE702C01019
A95: APLLTD | B95: EQ | C95: 494.45 | D95: 500 | E95: 492.3 | F95: 493.7 | G95: 493.3 | H95: 494 | I95: 11085 | J95: 5488777.4 | K95: 2019-09-06 | L95: 588 | M95: INE901L01018
A96: APOLLO | B96: EQ | C96: 72 | D96: 84.7 | E96: 70 | F96: 84.7 | G96: 84.7 | H96: 70.6 | I96: 163983 | J96: 13338426.8 | K96: 2019-09-06 | L96: 2940 | M96: INE713T01010
A97: APOLLOHOSP | B97: EQ | C97: 1503 | D97: 1536.45 | E97: 1484.8 | F97: 1500.2 | G97: 1489.8 | H97: 1497 | I97: 1098301 | J97: 1662063075 | K97: 2019-09-06 | L97: 56943 | M97: INE437A01024
A98: APOLLOTYRE | B98: EQ | C98: 175 | D98: 176.7 | E98: 174.6 | F98: 175.25 | G98: 175.5 | H98: 173.75 | I98: 2010523 | J98: 352949383.6 | K98: 2019-09-06 | L98: 11220 | M98: INE438A01022
A99: APOLSINHOT | B99: EQ | C99: 850 | D99: 850 | E99: 841.1 | F99: 848.65 | G99: 849.95 | H99: 852.6 | I99: 94 | J99: 79614.9 | K99: 2019-09-06 | L99: 23 | M99: INE451F01024
A100: APTECHT | B100: EQ | C100: 125.55 | D100: 126.5 | E100: 123.5 | F100: 124.25 | G100: 124.15 | H100: 124.85 | I100: 79095 | J100: 9868577.7 | K100: 2019-09-06 | L100: 1260 | M100: INE266F01018
A101: ARCHIDPLY | B101: EQ | C101: 24 | D101: 24.8 | E101: 23.25 | F101: 24.6 | G101: 24.6 | H101: 23.45 | I101: 10019 | J101: 242391.6 | K101: 2019-09-06 | L101: 185 | M101: INE877I01016
A102: ARCHIES | B102: EQ | C102: 19.2 | D102: 19.2 | E102: 18.15 | F102: 18.35 | G102: 18.2 | H102: 18.3 | I102: 37549 | J102: 697974.65 | K102: 2019-09-06 | L102: 409 | M102: INE731A01020
A103: ARCOTECH | B103: EQ | C103: 2.15 | D103: 2.15 | E103: 2 | F103: 2 | G103: 2.1 | H103: 2.1 | I103: 19159 | J103: 39267 | K103: 2019-09-06 | L103: 45 | M103: INE574I01035
A104: ARIES | B104: EQ | C104: 52.05 | D104: 59.7 | E104: 52 | F104: 57.65 | G104: 57.55 | H104: 52.75 | I104: 98569 | J104: 5588927.05 | K104: 2019-09-06 | L104: 1358 | M104: INE298I01015
A105: ARIHANT | B105: EQ | C105: 15 | D105: 16.65 | E105: 14.5 | F105: 16 | G105: 16 | H105: 15.1 | I105: 448 | J105: 6738.2 | K105: 2019-09-06 | L105: 14 | M105: INE413D01011
A106: ARIHANTSUP | B106: EQ | C106: 30 | D106: 31.15 | E106: 29.4 | F106: 30.65 | G106: 30.65 | H106: 30 | I106: 1558 | J106: 46622.25 | K106: 2019-09-06 | L106: 291 | M106: INE643K01018
A107: ARMANFIN | B107: EQ | C107: 373 | D107: 379 | E107: 361.05 | F107: 375.7 | G107: 376.5 | H107: 360.4 | I107: 3054 | J107: 1139426 | K107: 2019-09-06 | L107: 113 | M107: INE109C01017
A108: AROGRANITE | B108: EQ | C108: 40.4 | D108: 41.9 | E108: 40 | F108: 40.9 | G108: 40 | H108: 40.35 | I108: 3241 | J108: 132495.8 | K108: 2019-09-06 | L108: 94 | M108: INE210C01013
A109: ARROWGREEN | B109: BE | C109: 60.95 | D109: 61.15 | E109: 58 | F109: 61.15 | G109: 61.15 | H109: 58.25 | I109: 1887 | J109: 115114.65 | K109: 2019-09-06 | L109: 41 | M109: INE570D01018
A110: ARROWTEX | B110: EQ | C110: 10.5 | D110: 10.5 | E110: 10.15 | F110: 10.15 | G110: 10.15 | H110: 9.9 | I110: 7698 | J110: 78388.1 | K110: 2019-09-06 | L110: 29 | M110: INE933J01015
A111: ARSHIYA | B111: EQ | C111: 19.25 | D111: 20.25 | E111: 19.1 | F111: 19.45 | G111: 19.45 | H111: 19.5 | I111: 11446 | J111: 224252 | K111: 2019-09-06 | L111: 51 | M111: INE968D01022
A112: ARSSINFRA | B112: EQ | C112: 23.05 | D112: 24.3 | E112: 23 | F112: 24.3 | G112: 24.3 | H112: 23.15 | I112: 17235 | J112: 415093.1 | K112: 2019-09-06 | L112: 102 | M112: INE267I01010
A113: ARVIND | B113: EQ | C113: 49.75 | D113: 51 | E113: 48.2 | F113: 50.6 | G113: 50.65 | H113: 49.45 | I113: 3997457 | J113: 198348039.1 | K113: 2019-09-06 | L113: 14971 | M113: INE034A01011
A114: ARVINDFASN | B114: EQ | C114: 462.65 | D114: 472.15 | E114: 459 | F114: 463.7 | G114: 464 | H114: 460.45 | I114: 5844 | J114: 2702646.3 | K114: 2019-09-06 | L114: 483 | M114: INE955V01021
A115: ARVSMART | B115: EQ | C115: 88.05 | D115: 89 | E115: 87 | F115: 87.45 | G115: 87.3 | H115: 88.05 | I115: 3611 | J115: 318412.05 | K115: 2019-09-06 | L115: 170 | M115: INE034S01021
A116: ASAHIINDIA | B116: EQ | C116: 184.95 | D116: 185.85 | E116: 183.55 | F116: 184.85 | G116: 184.55 | H116: 185.55 | I116: 3761 | J116: 694267.25 | K116: 2019-09-06 | L116: 195 | M116: INE439A01020
A117: ASAHISONG | B117: EQ | C117: 124.85 | D117: 124.85 | E117: 118.4 | F117: 121.25 | G117: 119.1 | H117: 121.9 | I117: 2949 | J117: 358151.35 | K117: 2019-09-06 | L117: 173 | M117: INE228I01012
A118: ASAL | B118: EQ | C118: 32.05 | D118: 32.15 | E118: 30.25 | F118: 31.4 | G118: 31.8 | H118: 31.9 | I118: 1221 | J118: 38015.85 | K118: 2019-09-06 | L118: 39 | M118: INE900C01027
A119: ASHAPURMIN | B119: BE | C119: 27.3 | D119: 27.3 | E119: 25.05 | F119: 26.6 | G119: 26.65 | H119: 26 | I119: 5138 | J119: 135262.45 | K119: 2019-09-06 | L119: 50 | M119: INE348A01023
A120: ASHIANA | B120: EQ | C120: 108 | D120: 111.8 | E120: 107.25 | F120: 109.75 | G120: 109.15 | H120: 108.5 | I120: 22119 | J120: 2406537.2 | K120: 2019-09-06 | L120: 475 | M120: INE365D01021
A121: ASHIMASYN | B121: EQ | C121: 8 | D121: 8 | E121: 7.3 | F121: 7.45 | G121: 7.4 | H121: 7.4 | I121: 6906 | J121: 51523.6 | K121: 2019-09-06 | L121: 51 | M121: INE440A01010
A122: ASHOKA | B122: EQ | C122: 91.85 | D122: 98.6 | E122: 90.9 | F122: 96.9 | G122: 96.7 | H122: 90.8 | I122: 512978 | J122: 48136216.75 | K122: 2019-09-06 | L122: 4895 | M122: INE442H01029
A123: ASHOKLEY | B123: EQ | C123: 62.5 | D123: 64.4 | E123: 62.25 | F123: 63.9 | G123: 63.9 | H123: 63.05 | I123: 32439839 | J123: 2058974419 | K123: 2019-09-06 | L123: 64649 | M123: INE208A01029
A124: ASIANHOTNR | B124: EQ | C124: 105.9 | D124: 110 | E124: 105.9 | F124: 108.95 | G124: 110 | H124: 105.9 | I124: 600 | J124: 65070 | K124: 2019-09-06 | L124: 4 | M124: INE363A01022
A125: ASIANPAINT | B125: EQ | C125: 1524 | D125: 1539.45 | E125: 1519.75 | F125: 1532.4 | G125: 1530.6 | H125: 1519.75 | I125: 801338 | J125: 1225769858 | K125: 2019-09-06 | L125: 38668 | M125: INE021A01026
A126: ASIANTILES | B126: EQ | C126: 235 | D126: 236.9 | E126: 234 | F126: 235.65 | G126: 236 | H126: 235.45 | I126: 85503 | J126: 20141783 | K126: 2019-09-06 | L126: 1524 | M126: INE022I01019
A127: ASPINWALL | B127: EQ | C127: 131.4 | D127: 143 | E127: 131.1 | F127: 135.3 | G127: 138 | H127: 138 | I127: 3363 | J127: 448789.35 | K127: 2019-09-06 | L127: 87 | M127: INE991I01015
A128: ASSAMCO | B128: BE | C128: 0.8 | D128: 0.8 | E128: 0.8 | F128: 0.8 | G128: 0.8 | H128: 0.85 | I128: 136743 | J128: 109394.4 | K128: 2019-09-06 | L128: 81 | M128: INE442A01024
A129: ASTEC | B129: EQ | C129: 385 | D129: 390 | E129: 375.4 | F129: 382.7 | G129: 380.1 | H129: 380.25 | I129: 5530 | J129: 2114758.4 | K129: 2019-09-06 | L129: 331 | M129: INE563J01010
A130: ASTERDM | B130: EQ | C130: 116.3 | D130: 119.5 | E130: 115.4 | F130: 118.8 | G130: 118.55 | H130: 116.65 | I130: 40787 | J130: 4784488 | K130: 2019-09-06 | L130: 979 | M130: INE914M01019
A131: ASTRAL | B131: EQ | C131: 1328 | D131: 1328 | E131: 1296.75 | F131: 1303.55 | G131: 1298 | H131: 1314.85 | I131: 21331 | J131: 27914649.65 | K131: 2019-09-06 | L131: 2850 | M131: INE006I01046
A132: ASTRAMICRO | B132: EQ | C132: 76.8 | D132: 80.5 | E132: 74.8 | F132: 77.5 | G132: 78 | H132: 76.3 | I132: 204055 | J132: 16027373.6 | K132: 2019-09-06 | L132: 2015 | M132: INE386C01029
A133: ASTRAZEN | B133: EQ | C133: 2004.8 | D133: 2049 | E133: 1973.05 | F133: 1996.55 | G133: 1996 | H133: 1990 | I133: 82197 | J133: 165200290.6 | K133: 2019-09-06 | L133: 2563 | M133: INE203A01020
A134: ASTRON | B134: EQ | C134: 99 | D134: 102.75 | E134: 97.25 | F134: 101.95 | G134: 102.45 | H134: 97.05 | I134: 465287 | J134: 46184405.65 | K134: 2019-09-06 | L134: 3405 | M134: INE646X01014
A135: ATFL | B135: EQ | C135: 488 | D135: 505.25 | E135: 479.95 | F135: 480.3 | G135: 480.95 | H135: 482.3 | I135: 42713 | J135: 20631909.6 | K135: 2019-09-06 | L135: 3413 | M135: INE209A01019
A136: ATLANTA | B136: EQ | C136: 6 | D136: 6.4 | E136: 5.85 | F136: 6.35 | G136: 6.35 | H136: 6.1 | I136: 6371 | J136: 39224.2 | K136: 2019-09-06 | L136: 45 | M136: INE285H01022
A137: ATLASCYCLE | B137: BE | C137: 41.9 | D137: 42.75 | E137: 41 | F137: 42.05 | G137: 42 | H137: 41.7 | I137: 2024 | J137: 84690.2 | K137: 2019-09-06 | L137: 28 | M137: INE446A01025
A138: ATNINTER | B138: BE | C138: 0.15 | D138: 0.2 | E138: 0.1 | F138: 0.2 | G138: 0.2 | H138: 0.15 | I138: 3242 | J138: 620.5 | K138: 2019-09-06 | L138: 6 | M138: INE803A01027
A139: ATUL | B139: EQ | C139: 3473.1 | D139: 3498.2 | E139: 3455 | F139: 3467.65 | G139: 3455 | H139: 3451.85 | I139: 44470 | J139: 154394401.8 | K139: 2019-09-06 | L139: 4416 | M139: INE100A01010
A140: ATULAUTO | B140: EQ | C140: 210.05 | D140: 224.15 | E140: 207.35 | F140: 212.45 | G140: 213.05 | H140: 210.35 | I140: 14368 | J140: 3068220.5 | K140: 2019-09-06 | L140: 898 | M140: INE951D01028
A141: AUBANK | B141: EQ | C141: 675.25 | D141: 676.95 | E141: 665.5 | F141: 667.1 | G141: 666.05 | H141: 675.25 | I141: 260791 | J141: 174782207.6 | K141: 2019-09-06 | L141: 28646 | M141: INE949L01017
A142: AURIONPRO | B142: EQ | C142: 85.6 | D142: 89 | E142: 85.6 | F142: 88.8 | G142: 88.9 | H142: 88.35 | I142: 4752 | J142: 422352.6 | K142: 2019-09-06 | L142: 88 | M142: INE132H01018
A143: AUROPHARMA | B143: EQ | C143: 616.5 | D143: 621.55 | E143: 611.85 | F143: 619.45 | G143: 618.5 | H143: 613.05 | I143: 2360423 | J143: 1457575580 | K143: 2019-09-06 | L143: 57577 | M143: INE406A01037
A144: AUSOMENT | B144: EQ | C144: 32 | D144: 32 | E144: 29.1 | F144: 30.85 | G144: 30.9 | H144: 29.35 | I144: 302 | J144: 9236.95 | K144: 2019-09-06 | L144: 39 | M144: INE218C01016
A145: AUTOAXLES | B145: EQ | C145: 829.05 | D145: 871 | E145: 809 | F145: 856.05 | G145: 854 | H145: 824.45 | I145: 6509 | J145: 5535207.9 | K145: 2019-09-06 | L145: 1020 | M145: INE449A01011
A146: AUTOIND | B146: EQ | C146: 34.5 | D146: 34.5 | E146: 33.05 | F146: 33.7 | G146: 34 | H146: 34.2 | I146: 3144 | J146: 105790.35 | K146: 2019-09-06 | L146: 47 | M146: INE718H01014
A147: AUTOLITIND | B147: EQ | C147: 20.4 | D147: 21.85 | E147: 19.05 | F147: 21.45 | G147: 21.4 | H147: 20.4 | I147: 3497 | J147: 71802.7 | K147: 2019-09-06 | L147: 53 | M147: INE448A01013
A148: AVADHSUGAR | B148: EQ | C148: 222.05 | D148: 225 | E148: 221.55 | F148: 222.2 | G148: 222 | H148: 221.3 | I148: 24642 | J148: 5488709.05 | K148: 2019-09-06 | L148: 689 | M148: INE349W01017
A149: AVANTIFEED | B149: EQ | C149: 334.45 | D149: 349 | E149: 327.9 | F149: 346.9 | G149: 347 | H149: 331.95 | I149: 553136 | J149: 189463163.9 | K149: 2019-09-06 | L149: 14253 | M149: INE871C01038
A150: AVTNPL | B150: EQ | C150: 21.75 | D150: 23.1 | E150: 21.25 | F150: 22.25 | G150: 22.2 | H150: 21.8 | I150: 45200 | J150: 1010179.1 | K150: 2019-09-06 | L150: 274 | M150: INE488D01021
A151: AXISBANK | B151: EQ | C151: 653.1 | D151: 672.75 | E151: 653.1 | F151: 671.1 | G151: 670.55 | H151: 649.6 | I151: 11101456 | J151: 7399946629 | K151: 2019-09-06 | L151: 238280 | M151: INE238A01034
A152: AXISCADES | B152: EQ | C152: 66.4 | D152: 70.7 | E152: 65.45 | F152: 69.4 | G152: 70 | H152: 65.35 | I152: 496880 | J152: 33556428.05 | K152: 2019-09-06 | L152: 1444 | M152: INE555B01013
A153: AXISGOLD | B153: EQ | C153: 3362 | D153: 3406.5 | E153: 3351.3 | F153: 3357.6 | G153: 3351.3 | H153: 3440.9 | I153: 1672 | J153: 5641343.3 | K153: 2019-09-06 | L153: 183 | M153: INF846K01347
A154: AXISNIFTY | B154: EQ | C154: 1136 | D154: 1164.6 | E154: 1126.43 | F154: 1130.48 | G154: 1130.48 | H154: 1111.97 | I154: 360 | J154: 407188.16 | K154: 2019-09-06 | L154: 25 | M154: INF846K01ZL0
A155: AYMSYNTEX | B155: EQ | C155: 31.05 | D155: 32.85 | E155: 30 | F155: 31.25 | G155: 31.1 | H155: 32.1 | I155: 6544 | J155: 203484.55 | K155: 2019-09-06 | L155: 127 | M155: INE193B01039
A156: BAGFILMS | B156: EQ | C156: 2.15 | D156: 2.35 | E156: 2.15 | F156: 2.2 | G156: 2.2 | H156: 2.15 | I156: 958354 | J156: 2173857.45 | K156: 2019-09-06 | L156: 469 | M156: INE116D01028
A157: BAJAJ-AUTO | B157: EQ | C157: 2772.9 | D157: 2864.8 | E157: 2745.5 | F157: 2839.35 | G157: 2838.7 | H157: 2759.2 | I157: 1005180 | J157: 2833844858 | K157: 2019-09-06 | L157: 46338 | M157: INE917I01010
A158: BAJAJCON | B158: EQ | C158: 251.25 | D158: 252.8 | E158: 249.5 | F158: 252.05 | G158: 252 | H158: 251.25 | I158: 87208 | J158: 21936578.25 | K158: 2019-09-06 | L158: 5018 | M158: INE933K01021
A159: BAJAJELEC | B159: EQ | C159: 373 | D159: 376.95 | E159: 368 | F159: 375.6 | G159: 374.55 | H159: 371.25 | I159: 32076 | J159: 11960000.75 | K159: 2019-09-06 | L159: 1657 | M159: INE193E01025
A160: BAJAJFINSV | B160: EQ | C160: 7023.5 | D160: 7187.95 | E160: 7023.5 | F160: 7175.9 | G160: 7156.3 | H160: 7001.05 | I160: 302126 | J160: 2150091161 | K160: 2019-09-06 | L160: 31185 | M160: INE918I01018
A161: BAJAJHIND | B161: EQ | C161: 6.8 | D161: 7.5 | E161: 6.75 | F161: 7.35 | G161: 7.35 | H161: 6.85 | I161: 4601790 | J161: 33317495.1 | K161: 2019-09-06 | L161: 4249 | M161: INE306A01021
A162: BAJAJHLDNG | B162: EQ | C162: 3324.95 | D162: 3330 | E162: 3269.55 | F162: 3305.1 | G162: 3295.05 | H162: 3316.2 | I162: 16285 | J162: 53762589.15 | K162: 2019-09-06 | L162: 1840 | M162: INE118A01012
A163: BAJFINANCE | B163: EQ | C163: 3330 | D163: 3388 | E163: 3298 | F163: 3373 | G163: 3370 | H163: 3292.7 | I163: 1700894 | J163: 5689961278 | K163: 2019-09-06 | L163: 76350 | M163: INE296A01024
A164: BALAJITELE | B164: EQ | C164: 57.85 | D164: 57.95 | E164: 55.2 | F164: 55.5 | G164: 55.55 | H164: 56.6 | I164: 34335 | J164: 1941067.7 | K164: 2019-09-06 | L164: 406 | M164: INE794B01026
A165: BALAMINES | B165: EQ | C165: 257.1 | D165: 264 | E165: 257.1 | F165: 261.9 | G165: 264 | H165: 257.1 | I165: 17457 | J165: 4558973.7 | K165: 2019-09-06 | L165: 1063 | M165: INE050E01027
A166: BALAXI | B166: BE | C166: 100 | D166: 102.05 | E166: 92.5 | F166: 95.85 | G166: 100 | H166: 97.2 | I166: 722 | J166: 71665.15 | K166: 2019-09-06 | L166: 22 | M166: INE618N01014
A167: BALKRISHNA | B167: EQ | C167: 19.35 | D167: 21 | E167: 18.3 | F167: 21 | G167: 21 | H167: 17.5 | I167: 49283 | J167: 977358.8 | K167: 2019-09-06 | L167: 781 | M167: INE875R01011
A168: BALKRISIND | B168: EQ | C168: 727 | D168: 728 | E168: 715.75 | F168: 724.7 | G168: 723 | H168: 725.35 | I168: 268610 | J168: 194099526.1 | K168: 2019-09-06 | L168: 4838 | M168: INE787D01026
A169: BALLARPUR | B169: EQ | C169: 0.65 | D169: 0.65 | E169: 0.55 | F169: 0.6 | G169: 0.6 | H169: 0.6 | I169: 2824714 | J169: 1691937.5 | K169: 2019-09-06 | L169: 326 | M169: INE294A01037
A170: BALMLAWRIE | B170: EQ | C170: 176.5 | D170: 177.4 | E170: 173.6 | F170: 176.45 | G170: 176.9 | H170: 174.75 | I170: 201475 | J170: 35375177.9 | K170: 2019-09-06 | L170: 2851 | M170: INE164A01016
A171: BALPHARMA | B171: EQ | C171: 38.75 | D171: 40.2 | E171: 38.1 | F171: 38.7 | G171: 38.95 | H171: 38.75 | I171: 7604 | J171: 297973.65 | K171: 2019-09-06 | L171: 159 | M171: INE083D01012
A172: BALRAMCHIN | B172: EQ | C172: 130.6 | D172: 134.9 | E172: 130.6 | F172: 132.5 | G172: 131.8 | H172: 132.5 | I172: 759076 | J172: 100966317.8 | K172: 2019-09-06 | L172: 16634 | M172: INE119A01028
A173: BANARBEADS | B173: EQ | C173: 39.65 | D173: 40.65 | E173: 39.65 | F173: 40.25 | G173: 40.3 | H173: 39.8 | I173: 792 | J173: 31905.15 | K173: 2019-09-06 | L173: 30 | M173: INE655B01011
A174: BANARISUG | B174: EQ | C174: 1080 | D174: 1098 | E174: 1075 | F174: 1090 | G174: 1095 | H174: 1080.95 | I174: 534 | J174: 583044.1 | K174: 2019-09-06 | L174: 34 | M174: INE459A01010
A175: BANCOINDIA | B175: EQ | C175: 98.5 | D175: 100.7 | E175: 97.5 | F175: 100.15 | G175: 100.5 | H175: 97.2 | I175: 16295 | J175: 1622253.7 | K175: 2019-09-06 | L175: 511 | M175: INE213C01025
A176: BANDHANBNK | B176: EQ | C176: 451.4 | D176: 451.95 | E176: 447 | F176: 449.75 | G176: 450 | H176: 449.05 | I176: 201372 | J176: 90493011.9 | K176: 2019-09-06 | L176: 7624 | M176: INE545U01014
A177: BANG | B177: EQ | C177: 31 | D177: 32 | E177: 30 | F177: 30.95 | G177: 30.75 | H177: 32 | I177: 23821 | J177: 734119.9 | K177: 2019-09-06 | L177: 496 | M177: INE863I01016
A178: BANKBARODA | B178: EQ | C178: 94 | D178: 95.4 | E178: 93.15 | F178: 94.4 | G178: 94.45 | H178: 93.75 | I178: 19983569 | J178: 1879205314 | K178: 2019-09-06 | L178: 50051 | M178: INE028A01039
A179: BANKBEES | B179: EQ | C179: 2766 | D179: 2789.85 | E179: 2760.15 | F179: 2784.79 | G179: 2782 | H179: 2753.4 | I179: 2274 | J179: 6324279.01 | K179: 2019-09-06 | L179: 482 | M179: INF732E01078
A180: BANKINDIA | B180: EQ | C180: 63.8 | D180: 64.9 | E180: 62.8 | F180: 63.7 | G180: 63.6 | H180: 63.7 | I180: 6979117 | J180: 446127782.7 | K180: 2019-09-06 | L180: 15814 | M180: INE084A01016
A181: BANSWRAS | B181: EQ | C181: 66.9 | D181: 67.5 | E181: 65 | F181: 65.8 | G181: 66.5 | H181: 67 | I181: 2273 | J181: 150648.4 | K181: 2019-09-06 | L181: 60 | M181: INE629D01012
A182: BARTRONICS | B182: EQ | C182: 2.4 | D182: 2.6 | E182: 2.4 | F182: 2.45 | G182: 2.45 | H182: 2.5 | I182: 6692 | J182: 16332.3 | K182: 2019-09-06 | L182: 32 | M182: INE855F01034
A183: BASF | B183: EQ | C183: 1014.95 | D183: 1027.35 | E183: 1007 | F183: 1010 | G183: 1010 | H183: 1014.95 | I183: 3687 | J183: 3734971.65 | K183: 2019-09-06 | L183: 597 | M183: INE373A01013
A184: BASML | B184: EQ | C184: 111.1 | D184: 129 | E184: 111.1 | F184: 124.9 | G184: 129 | H184: 119.1 | I184: 297 | J184: 36490.95 | K184: 2019-09-06 | L184: 74 | M184: INE186H01014
A185: BATAINDIA | B185: EQ | C185: 1528.1 | D185: 1544.55 | E185: 1511.05 | F185: 1541.35 | G185: 1544.55 | H185: 1521.95 | I185: 356817 | J185: 547274291.8 | K185: 2019-09-06 | L185: 12959 | M185: INE176A01028
A186: BAYERCROP | B186: EQ | C186: 3141.2 | D186: 3141.2 | E186: 3085 | F186: 3110.85 | G186: 3086 | H186: 3133.5 | I186: 5479 | J186: 17044895.95 | K186: 2019-09-06 | L186: 1023 | M186: INE462A01022
A187: BBL | B187: EQ | C187: 863.8 | D187: 877.75 | E187: 850 | F187: 868.65 | G187: 868.05 | H187: 857.35 | I187: 2353 | J187: 2036509.55 | K187: 2019-09-06 | L187: 329 | M187: INE464A01028
A188: BBTC | B188: EQ | C188: 973 | D188: 997 | E188: 965 | F188: 980.65 | G188: 979 | H188: 967.35 | I188: 481824 | J188: 474674831 | K188: 2019-09-06 | L188: 18231 | M188: INE050A01025
A189: BCG | B189: EQ | C189: 3.4 | D189: 3.4 | E189: 3.25 | F189: 3.35 | G189: 3.3 | H189: 3.25 | I189: 280812 | J189: 935156.15 | K189: 2019-09-06 | L189: 134 | M189: INE425B01027
A190: BCP | B190: EQ | C190: 9.55 | D190: 9.85 | E190: 9.55 | F190: 9.85 | G190: 9.85 | H190: 9.7 | I190: 1846636 | J190: 17858465.35 | K190: 2019-09-06 | L190: 130 | M190: INE905P01028
A191: BDL | B191: EQ | C191: 281.95 | D191: 290.55 | E191: 275.15 | F191: 276.75 | G191: 276.05 | H191: 278.65 | I191: 59649 | J191: 16783667.75 | K191: 2019-09-06 | L191: 2527 | M191: INE171Z01018
A192: BEARDSELL | B192: EQ | C192: 11.65 | D192: 12.8 | E192: 11.25 | F192: 12.65 | G192: 12.8 | H192: 12.05 | I192: 7881 | J192: 99215.55 | K192: 2019-09-06 | L192: 68 | M192: INE520H01022
A193: BEDMUTHA | B193: EQ | C193: 11.8 | D193: 13 | E193: 11.25 | F193: 12.05 | G193: 12.05 | H193: 12 | I193: 44747 | J193: 556879.85 | K193: 2019-09-06 | L193: 140 | M193: INE844K01012
A194: BEL | B194: EQ | C194: 107.5 | D194: 109.5 | E194: 106.95 | F194: 109.05 | G194: 109.1 | H194: 107.85 | I194: 9829787 | J194: 1064292064 | K194: 2019-09-06 | L194: 41762 | M194: INE263A01024
A195: BEML | B195: EQ | C195: 818 | D195: 825.4 | E195: 805.5 | F195: 813.15 | G195: 809 | H195: 816.55 | I195: 600397 | J195: 490105739.4 | K195: 2019-09-06 | L195: 17385 | M195: INE258A01016
A196: BEPL | B196: EQ | C196: 53.4 | D196: 56.25 | E196: 53.4 | F196: 54.7 | G196: 54.5 | H196: 53.6 | I196: 296262 | J196: 16280441.7 | K196: 2019-09-06 | L196: 2042 | M196: INE922A01025
A197: BERGEPAINT | B197: EQ | C197: 362 | D197: 364.95 | E197: 359.1 | F197: 364.4 | G197: 364.95 | H197: 361.75 | I197: 691781 | J197: 250939431.1 | K197: 2019-09-06 | L197: 8212 | M197: INE463A01038
A198: BFINVEST | B198: EQ | C198: 265 | D198: 269.9 | E198: 264 | F198: 266.05 | G198: 265.9 | H198: 265.1 | I198: 20343 | J198: 5436253.85 | K198: 2019-09-06 | L198: 718 | M198: INE878K01010
A199: BFUTILITIE | B199: EQ | C199: 160 | D199: 162.4 | E199: 159.15 | F199: 161 | G199: 160.55 | H199: 158.65 | I199: 165556 | J199: 26650000.15 | K199: 2019-09-06 | L199: 3612 | M199: INE243D01012
A200: BGLOBAL | B200: BE | C200: 1.1 | D200: 1.15 | E200: 1.05 | F200: 1.15 | G200: 1.15 | H200: 1.1 | I200: 67057 | J200: 74229.4 | K200: 2019-09-06 | L200: 26 | M200: INE224M01013
... 1485 more rows

Sheet Sheet1 (hidden)

Sheet Sheet3 (hidden)

Sheet Sheet4 (hidden)

Sheet Sheet5 (hidden)
